{"text_format":"1","workbook":"xlsx","n_sheets":23,"sheets":["Accueil","Liste","Choix","JANVIER","FEVRIER","MARS","AVRIL","MAI","JUIN","JUILLET","AOUT","SEPTEMBRE","OCTOBRE","NOVEMBRE","DECEMBRE","TMF34","TMF47","Choix_FE","Choix_MAI","données","BDD","Base","Récapitulatif"],"not_rendered":{"charts":0,"images":15,"macros":1,"external_links":2,"defined_names":57,"comments":1,"pivot_tables":0},"unopened":[],"bounds":{"document_bytes":16777216,"sheet_cells":100000,"rows_first":2000,"rows_last":500,"rows_between":2000,"halvings":0,"cell_chars":16384,"cell_head_chars":4096},"cells_cut":0,"cells_raw":0,"read":"whole","date_system":"1900"}

{"sheet":"Accueil","index":0,"n_rows":23,"n_cols":16,"rows_kept":23,"cut":false,"hidden":false,"merged":[]}
[]
[{"$f":"MONTH(C2)","v":4},{"$f":"TEXT(WEEKDAY(C2),\"jjjj\")","v":"jeudi"},"2017-04-13",75757,"CHABAS",77,55]
[]
[]
[]
[]
[]
[]
[]
[]
[]
[]
[]
[]
[]
[]
[]
[]
[]
[]
[]
[]
[null,null,null,null,null,null,null,null,null,null,null,null,null,null,null," "]

{"sheet":"Liste","index":1,"n_rows":17,"n_cols":15,"rows_kept":17,"cut":false,"hidden":true,"merged":[]}
[]
[]
[]
[]
[]
[]
[]
[]
[]
[]
[]
[]
[]
[]
[null,null,null,null,null,null,null,null,null,null,null,null,null," "]
[null,null,null,null,null,null,null,null,null,null,null,null,null,null,"é\"'(-"]
[" "]

{"sheet":"Choix","index":2,"n_rows":0,"n_cols":0,"rows_kept":0,"cut":false,"hidden":true,"merged":[]}

{"sheet":"JANVIER","index":3,"n_rows":0,"n_cols":0,"rows_kept":0,"cut":false,"hidden":true,"merged":[[0,35,0,37],[0,2,0,4],[0,5,0,7],[0,8,0,10],[0,11,0,13],[0,14,0,16],[0,17,0,19],[0,20,0,22],[0,23,0,25],[0,26,0,28],[0,29,0,31],[0,32,0,34],[0,56,0,58],[0,38,0,40],[0,41,0,43],[0,44,0,46],[0,47,0,49],[0,50,0,52],[0,53,0,55]]}

{"sheet":"FEVRIER","index":4,"n_rows":0,"n_cols":0,"rows_kept":0,"cut":false,"hidden":true,"merged":[]}

{"sheet":"MARS","index":5,"n_rows":0,"n_cols":0,"rows_kept":0,"cut":false,"hidden":true,"merged":[]}

{"sheet":"AVRIL","index":6,"n_rows":0,"n_cols":0,"rows_kept":0,"cut":false,"hidden":true,"merged":[]}

{"sheet":"MAI","index":7,"n_rows":0,"n_cols":0,"rows_kept":0,"cut":false,"hidden":true,"merged":[]}

{"sheet":"JUIN","index":8,"n_rows":0,"n_cols":0,"rows_kept":0,"cut":false,"hidden":true,"merged":[]}

{"sheet":"JUILLET","index":9,"n_rows":0,"n_cols":0,"rows_kept":0,"cut":false,"hidden":true,"merged":[]}

{"sheet":"AOUT","index":10,"n_rows":0,"n_cols":0,"rows_kept":0,"cut":false,"hidden":true,"merged":[]}

{"sheet":"SEPTEMBRE","index":11,"n_rows":0,"n_cols":0,"rows_kept":0,"cut":false,"hidden":true,"merged":[]}

{"sheet":"OCTOBRE","index":12,"n_rows":0,"n_cols":0,"rows_kept":0,"cut":false,"hidden":true,"merged":[]}

{"sheet":"NOVEMBRE","index":13,"n_rows":0,"n_cols":0,"rows_kept":0,"cut":false,"hidden":true,"merged":[]}

{"sheet":"DECEMBRE","index":14,"n_rows":0,"n_cols":0,"rows_kept":0,"cut":false,"hidden":true,"merged":[]}

{"sheet":"TMF34","index":15,"n_rows":0,"n_cols":0,"rows_kept":0,"cut":false,"hidden":true,"merged":[]}

{"sheet":"TMF47","index":16,"n_rows":0,"n_cols":0,"rows_kept":0,"cut":false,"hidden":true,"merged":[]}

{"sheet":"Choix_FE","index":17,"n_rows":0,"n_cols":0,"rows_kept":0,"cut":false,"hidden":true,"merged":[]}

{"sheet":"Choix_MAI","index":18,"n_rows":0,"n_cols":0,"rows_kept":0,"cut":false,"hidden":true,"merged":[]}

{"sheet":"données","index":19,"n_rows":3,"n_cols":7,"rows_kept":3,"cut":false,"hidden":true,"merged":[]}
["Mois","Jour","Date","Numéro de bon","Transporteur","Palettes chargement","Palettes déchargement"]
[{"$f":"MONTH(C2)","v":2},{"$f":"TEXT(WEEKDAY(C2),\"jjjj\")","v":"lundi"},"2017-02-13",789,"ARNAUD",780,782]
[{"$f":"MONTH(C3)","v":4},{"$f":"TEXT(WEEKDAY(C3),\"jjjj\")","v":"jeudi"},"2017-04-13",456456,"TEL",75,72]

{"sheet":"BDD","index":20,"n_rows":26,"n_cols":5,"rows_kept":26,"cut":false,"hidden":true,"merged":[]}
["Transporteurs","Clients","Auchan Mag","Auchan Transp","Interne"]
["ARNAUD","ABCD","AUCHAN BEYCHAC","KN BEYCHAC","KN ANGERS"]
["BLASON","ALDI","AUCHAN Montauban","SDTL","KN BLANQUEFORT"]
["DOME (DTT = LUSTRUCRU)","BLASON","AUCHAN MTB Drive","T3C","KN FLEURY"]
["EFS","CELYS  CITE GOURMANDE","AUCHAN TLSE Drive",null,"KN TOULOUSE"]
["GEODIS","CEMOI","AUCHAN Toulouse",null,"KN VALLET"]
["JAMMET","CITE GOURMANDE",null,null,"LFB"]
["LAHAYE LAITA","LAHAYE"]
["LAUQUE","LAITA"]
["LE TORCH","LODIFRAIS 33"]
["MALHERBE","LUSTUCRU"]
["MEDIMAR","ŒUF GASCON"]
["MESGUEN","OLANO BX"]
["OLANO","PATIS"]
["STAM","PETIT BASQUE"]
["STFV","POMONA CESTAS"]
["TEL","POMONA CESTAS"]
["TMF","POMONA SO"]
["TRANSOCCITAN","POT AU PIN"]
[null,"SCALANDES"]
[null,"SCASO"]
[null,"SOGIVIG"]
[null,"STEF BX"]
[null,"SU AGEN"]
[null,"SU BON ENCONTRE"]
[null,"TCA"]

{"sheet":"Base","index":21,"n_rows":33,"n_cols":1,"rows_kept":33,"cut":false,"hidden":true,"merged":[]}
["Tableau correspondant"]
["ARNAUD"]
["BARRAU"]
["BELLEVILLE"]
["BSL"]
["CHABAS"]
["DENJEAN"]
["DW TRANS"]
["EYCHENNE"]
["FAU"]
["FORMEL"]
["GALTIER"]
["JAMMET"]
["KN33"]
["KN44"]
["LA LAURAGAISE"]
["LADOUX"]
["LAUQUE"]
["L'OURS BLANC"]
["OLANO82"]
["RANDON"]
["ROUCAYROL"]
["SETAK"]
["STAM82"]
["T2L"]
["TDD"]
["TDS"]
["TEL"]
["TMF34"]
["TMF47"]
["TRANSCN"]
["TRANSOCCITAN"]
["TRESSERRAS"]

{"sheet":"Récapitulatif","index":22,"n_rows":35,"n_cols":15,"rows_kept":35,"cut":false,"hidden":true,"merged":[]}
[]
[null,"Palettes à nous devoir",1,2,3,4,5,6,7,8,9,10,11,12,"TOTAL"]
[null,"ARNAUD",{"$f":"IF(SUMIFS(données!$F:$F,données!$A:$A,Récapitulatif!$C$2,données!$E:$E,Récapitulatif!B3)-(SUMIFS(données!$G:$G,données!$A:$A,Récapitulatif!$C$2,données!$E:$E,Récapitulatif!B3))=0,\"\",(SUMIFS(données!$F:$F,données!$A:$A,Récapitulatif!$C$2,données!$E:$E,Récapitulatif!B3)-(SUMIFS(données!$G:$G,données!$A:$A,Récapitulatif!$C$2,données!$E:$E,Récapitulatif!B3))))","v":""},{"$f":"IF(SUMIFS(données!$F:$F,données!$A:$A,Récapitulatif!$D$2,données!$E:$E,Récapitulatif!B3)-(SUMIFS(données!$G:$G,données!$A:$A,Récapitulatif!$D$2,données!$E:$E,Récapitulatif!B3))=0,\"\",(SUMIFS(données!$F:$F,données!$A:$A,Récapitulatif!$D$2,données!$E:$E,Récapitulatif!B3)-(SUMIFS(données!$G:$G,données!$A:$A,Récapitulatif!$D$2,données!$E:$E,Récapitulatif!B3))))","v":-2},{"$f":"IF(SUMIFS(données!$F:$F,données!$A:$A,Récapitulatif!$E$2,données!$E:$E,Récapitulatif!B3)-(SUMIFS(données!$G:$G,données!$A:$A,Récapitulatif!$E$2,données!$E:$E,Récapitulatif!B3))=0,\"\",(SUMIFS(données!$F:$F,données!$A:$A,Récapitulatif!$E$2,données!$E:$E,Récapitulatif!B3)-(SUMIFS(données!$G:$G,données!$A:$A,Récapitulatif!$E$2,données!$E:$E,Récapitulatif!B3))))","v":""},{"$f":"IF(SUMIFS(données!$F:$F,données!$A:$A,Récapitulatif!$F$2,données!$E:$E,Récapitulatif!B3)-(SUMIFS(données!$G:$G,données!$A:$A,Récapitulatif!$F$2,données!$E:$E,Récapitulatif!B3))=0,\"\",(SUMIFS(données!$F:$F,données!$A:$A,Récapitulatif!$F$2,données!$E:$E,Récapitulatif!B3)-(SUMIFS(données!$G:$G,données!$A:$A,Récapitulatif!$F$2,données!$E:$E,Récapitulatif!B3))))","v":""},{"$f":"IF(SUMIFS(données!$F:$F,données!$A:$A,Récapitulatif!$G$2,données!$E:$E,Récapitulatif!B3)-(SUMIFS(données!$G:$G,données!$A:$A,Récapitulatif!$G$2,données!$E:$E,Récapitulatif!B3))=0,\"\",(SUMIFS(données!$F:$F,données!$A:$A,Récapitulatif!$G$2,données!$E:$E,Récapitulatif!B3)-(SUMIFS(données!$G:$G,données!$A:$A,Récapitulatif!$G$2,données!$E:$E,Récapitulatif!B3))))","v":""},{"$f":"IF(SUMIFS(données!$F:$F,données!$A:$A,Récapitulatif!$H$2,données!$E:$E,Récapitulatif!B3)-(SUMIFS(données!$G:$G,données!$A:$A,Récapitulatif!$H$2,données!$E:$E,Récapitulatif!B3))=0,\"\",(SUMIFS(données!$F:$F,données!$A:$A,Récapitulatif!$H$2,données!$E:$E,Récapitulatif!B3)-(SUMIFS(données!$G:$G,données!$A:$A,Récapitulatif!$H$2,données!$E:$E,Récapitulatif!B3))))","v":""},{"$f":"IF(SUMIFS(données!$F:$F,données!$A:$A,Récapitulatif!$I$2,données!$E:$E,Récapitulatif!B3)-(SUMIFS(données!$G:$G,données!$A:$A,Récapitulatif!$I$2,données!$E:$E,Récapitulatif!B3))=0,\"\",(SUMIFS(données!$F:$F,données!$A:$A,Récapitulatif!$I$2,données!$E:$E,Récapitulatif!B3)-(SUMIFS(données!$G:$G,données!$A:$A,Récapitulatif!$I$2,données!$E:$E,Récapitulatif!B3))))","v":""},{"$f":"IF(SUMIFS(données!$F:$F,données!$A:$A,Récapitulatif!$J$2,données!$E:$E,Récapitulatif!B3)-(SUMIFS(données!$G:$G,données!$A:$A,Récapitulatif!$J$2,données!$E:$E,Récapitulatif!B3))=0,\"\",(SUMIFS(données!$F:$F,données!$A:$A,Récapitulatif!$J$2,données!$E:$E,Récapitulatif!B3)-(SUMIFS(données!$G:$G,données!$A:$A,Récapitulatif!$J$2,données!$E:$E,Récapitulatif!B3))))","v":""},{"$f":"IF(SUMIFS(données!$F:$F,données!$A:$A,Récapitulatif!$K$2,données!$E:$E,Récapitulatif!B3)-(SUMIFS(données!$G:$G,données!$A:$A,Récapitulatif!$K$2,données!$E:$E,Récapitulatif!B3))=0,\"\",(SUMIFS(données!$F:$F,données!$A:$A,Récapitulatif!$K$2,données!$E:$E,Récapitulatif!B3)-(SUMIFS(données!$G:$G,données!$A:$A,Récapitulatif!$K$2,données!$E:$E,Récapitulatif!B3))))","v":""},{"$f":"IF(SUMIFS(données!$F:$F,données!$A:$A,Récapitulatif!$L$2,données!$E:$E,Récapitulatif!B3)-(SUMIFS(données!$G:$G,données!$A:$A,Récapitulatif!$L$2,données!$E:$E,Récapitulatif!B3))=0,\"\",(SUMIFS(données!$F:$F,données!$A:$A,Récapitulatif!$L$2,données!$E:$E,Récapitulatif!B3)-(SUMIFS(données!$G:$G,données!$A:$A,Récapitulatif!$L$2,données!$E:$E,Récapitulatif!B3))))","v":""},{"$f":"IF(SUMIFS(données!$F:$F,données!$A:$A,Récapitulatif!$M$2,données!$E:$E,Récapitulatif!B3)-(SUMIFS(données!$G:$G,données!$A:$A,Récapitulatif!$M$2,données!$E:$E,Récapitulatif!B3))=0,\"\",(SUMIFS(données!$F:$F,données!$A:$A,Récapitulatif!$M$2,données!$E:$E,Récapitulatif!B3)-(SUMIFS(données!$G:$G,données!$A:$A,Récapitulatif!$M$2,données!$E:$E,Récapitulatif!B3))))","v":""},{"$f":"IF(SUMIFS(données!$F:$F,données!$A:$A,Récapitulatif!$N$2,données!$E:$E,Récapitulatif!B3)-(SUMIFS(données!$G:$G,données!$A:$A,Récapitulatif!$N$2,données!$E:$E,Récapitulatif!B3))=0,\"\",(SUMIFS(données!$F:$F,données!$A:$A,Récapitulatif!$N$2,données!$E:$E,Récapitulatif!B3)-(SUMIFS(données!$G:$G,données!$A:$A,Récapitulatif!$N$2,données!$E:$E,Récapitulatif!B3))))","v":""},{"$f":"IF(SUM(C3:N3)=0,\"\",SUM(C3:N3))","v":-2}]
[null,"BARRAU",{"$f":"IF(SUMIFS(données!$F:$F,données!$A:$A,Récapitulatif!$C$2,données!$E:$E,Récapitulatif!B4)-(SUMIFS(données!$G:$G,données!$A:$A,Récapitulatif!$C$2,données!$E:$E,Récapitulatif!B4))=0,\"\",(SUMIFS(données!$F:$F,données!$A:$A,Récapitulatif!$C$2,données!$E:$E,Récapitulatif!B4)-(SUMIFS(données!$G:$G,données!$A:$A,Récapitulatif!$C$2,données!$E:$E,Récapitulatif!B4))))","v":""},{"$f":"IF(SUMIFS(données!$F:$F,données!$A:$A,Récapitulatif!$D$2,données!$E:$E,Récapitulatif!B4)-(SUMIFS(données!$G:$G,données!$A:$A,Récapitulatif!$D$2,données!$E:$E,Récapitulatif!B4))=0,\"\",(SUMIFS(données!$F:$F,données!$A:$A,Récapitulatif!$D$2,données!$E:$E,Récapitulatif!B4)-(SUMIFS(données!$G:$G,données!$A:$A,Récapitulatif!$D$2,données!$E:$E,Récapitulatif!B4))))","v":""},{"$f":"IF(SUMIFS(données!$F:$F,données!$A:$A,Récapitulatif!$E$2,données!$E:$E,Récapitulatif!B4)-(SUMIFS(données!$G:$G,données!$A:$A,Récapitulatif!$E$2,données!$E:$E,Récapitulatif!B4))=0,\"\",(SUMIFS(données!$F:$F,données!$A:$A,Récapitulatif!$E$2,données!$E:$E,Récapitulatif!B4)-(SUMIFS(données!$G:$G,données!$A:$A,Récapitulatif!$E$2,données!$E:$E,Récapitulatif!B4))))","v":""},{"$f":"IF(SUMIFS(données!$F:$F,données!$A:$A,Récapitulatif!$F$2,données!$E:$E,Récapitulatif!B4)-(SUMIFS(données!$G:$G,données!$A:$A,Récapitulatif!$F$2,données!$E:$E,Récapitulatif!B4))=0,\"\",(SUMIFS(données!$F:$F,données!$A:$A,Récapitulatif!$F$2,données!$E:$E,Récapitulatif!B4)-(SUMIFS(données!$G:$G,données!$A:$A,Récapitulatif!$F$2,données!$E:$E,Récapitulatif!B4))))","v":""},{"$f":"IF(SUMIFS(données!$F:$F,données!$A:$A,Récapitulatif!$G$2,données!$E:$E,Récapitulatif!B4)-(SUMIFS(données!$G:$G,données!$A:$A,Récapitulatif!$G$2,données!$E:$E,Récapitulatif!B4))=0,\"\",(SUMIFS(données!$F:$F,données!$A:$A,Récapitulatif!$G$2,données!$E:$E,Récapitulatif!B4)-(SUMIFS(données!$G:$G,données!$A:$A,Récapitulatif!$G$2,données!$E:$E,Récapitulatif!B4))))","v":""},{"$f":"IF(SUMIFS(données!$F:$F,données!$A:$A,Récapitulatif!$H$2,données!$E:$E,Récapitulatif!B4)-(SUMIFS(données!$G:$G,données!$A:$A,Récapitulatif!$H$2,données!$E:$E,Récapitulatif!B4))=0,\"\",(SUMIFS(données!$F:$F,données!$A:$A,Récapitulatif!$H$2,données!$E:$E,Récapitulatif!B4)-(SUMIFS(données!$G:$G,données!$A:$A,Récapitulatif!$H$2,données!$E:$E,Récapitulatif!B4))))","v":""},{"$f":"IF(SUMIFS(données!$F:$F,données!$A:$A,Récapitulatif!$I$2,données!$E:$E,Récapitulatif!B4)-(SUMIFS(données!$G:$G,données!$A:$A,Récapitulatif!$I$2,données!$E:$E,Récapitulatif!B4))=0,\"\",(SUMIFS(données!$F:$F,données!$A:$A,Récapitulatif!$I$2,données!$E:$E,Récapitulatif!B4)-(SUMIFS(données!$G:$G,données!$A:$A,Récapitulatif!$I$2,données!$E:$E,Récapitulatif!B4))))","v":""},{"$f":"IF(SUMIFS(données!$F:$F,données!$A:$A,Récapitulatif!$J$2,données!$E:$E,Récapitulatif!B4)-(SUMIFS(données!$G:$G,données!$A:$A,Récapitulatif!$J$2,données!$E:$E,Récapitulatif!B4))=0,\"\",(SUMIFS(données!$F:$F,données!$A:$A,Récapitulatif!$J$2,données!$E:$E,Récapitulatif!B4)-(SUMIFS(données!$G:$G,données!$A:$A,Récapitulatif!$J$2,données!$E:$E,Récapitulatif!B4))))","v":""},{"$f":"IF(SUMIFS(données!$F:$F,données!$A:$A,Récapitulatif!$K$2,données!$E:$E,Récapitulatif!B4)-(SUMIFS(données!$G:$G,données!$A:$A,Récapitulatif!$K$2,données!$E:$E,Récapitulatif!B4))=0,\"\",(SUMIFS(données!$F:$F,données!$A:$A,Récapitulatif!$K$2,données!$E:$E,Récapitulatif!B4)-(SUMIFS(données!$G:$G,données!$A:$A,Récapitulatif!$K$2,données!$E:$E,Récapitulatif!B4))))","v":""},{"$f":"IF(SUMIFS(données!$F:$F,données!$A:$A,Récapitulatif!$L$2,données!$E:$E,Récapitulatif!B4)-(SUMIFS(données!$G:$G,données!$A:$A,Récapitulatif!$L$2,données!$E:$E,Récapitulatif!B4))=0,\"\",(SUMIFS(données!$F:$F,données!$A:$A,Récapitulatif!$L$2,données!$E:$E,Récapitulatif!B4)-(SUMIFS(données!$G:$G,données!$A:$A,Récapitulatif!$L$2,données!$E:$E,Récapitulatif!B4))))","v":""},{"$f":"IF(SUMIFS(données!$F:$F,données!$A:$A,Récapitulatif!$M$2,données!$E:$E,Récapitulatif!B4)-(SUMIFS(données!$G:$G,données!$A:$A,Récapitulatif!$M$2,données!$E:$E,Récapitulatif!B4))=0,\"\",(SUMIFS(données!$F:$F,données!$A:$A,Récapitulatif!$M$2,données!$E:$E,Récapitulatif!B4)-(SUMIFS(données!$G:$G,données!$A:$A,Récapitulatif!$M$2,données!$E:$E,Récapitulatif!B4))))","v":""},{"$f":"IF(SUMIFS(données!$F:$F,données!$A:$A,Récapitulatif!$N$2,données!$E:$E,Récapitulatif!B4)-(SUMIFS(données!$G:$G,données!$A:$A,Récapitulatif!$N$2,données!$E:$E,Récapitulatif!B4))=0,\"\",(SUMIFS(données!$F:$F,données!$A:$A,Récapitulatif!$N$2,données!$E:$E,Récapitulatif!B4)-(SUMIFS(données!$G:$G,données!$A:$A,Récapitulatif!$N$2,données!$E:$E,Récapitulatif!B4))))","v":""},{"$f":"IF(SUM(C4:N4)=0,\"\",SUM(C4:N4))","v":""}]
[null,"BELLEVILLE",{"$f":"IF(SUMIFS(données!$F:$F,données!$A:$A,Récapitulatif!$C$2,données!$E:$E,Récapitulatif!B5)-(SUMIFS(données!$G:$G,données!$A:$A,Récapitulatif!$C$2,données!$E:$E,Récapitulatif!B5))=0,\"\",(SUMIFS(données!$F:$F,données!$A:$A,Récapitulatif!$C$2,données!$E:$E,Récapitulatif!B5)-(SUMIFS(données!$G:$G,données!$A:$A,Récapitulatif!$C$2,données!$E:$E,Récapitulatif!B5))))","v":""},{"$f":"IF(SUMIFS(données!$F:$F,données!$A:$A,Récapitulatif!$D$2,données!$E:$E,Récapitulatif!B5)-(SUMIFS(données!$G:$G,données!$A:$A,Récapitulatif!$D$2,données!$E:$E,Récapitulatif!B5))=0,\"\",(SUMIFS(données!$F:$F,données!$A:$A,Récapitulatif!$D$2,données!$E:$E,Récapitulatif!B5)-(SUMIFS(données!$G:$G,données!$A:$A,Récapitulatif!$D$2,données!$E:$E,Récapitulatif!B5))))","v":""},{"$f":"IF(SUMIFS(données!$F:$F,données!$A:$A,Récapitulatif!$E$2,données!$E:$E,Récapitulatif!B5)-(SUMIFS(données!$G:$G,données!$A:$A,Récapitulatif!$E$2,données!$E:$E,Récapitulatif!B5))=0,\"\",(SUMIFS(données!$F:$F,données!$A:$A,Récapitulatif!$E$2,données!$E:$E,Récapitulatif!B5)-(SUMIFS(données!$G:$G,données!$A:$A,Récapitulatif!$E$2,données!$E:$E,Récapitulatif!B5))))","v":""},{"$f":"IF(SUMIFS(données!$F:$F,données!$A:$A,Récapitulatif!$F$2,données!$E:$E,Récapitulatif!B5)-(SUMIFS(données!$G:$G,données!$A:$A,Récapitulatif!$F$2,données!$E:$E,Récapitulatif!B5))=0,\"\",(SUMIFS(données!$F:$F,données!$A:$A,Récapitulatif!$F$2,données!$E:$E,Récapitulatif!B5)-(SUMIFS(données!$G:$G,données!$A:$A,Récapitulatif!$F$2,données!$E:$E,Récapitulatif!B5))))","v":""},{"$f":"IF(SUMIFS(données!$F:$F,données!$A:$A,Récapitulatif!$G$2,données!$E:$E,Récapitulatif!B5)-(SUMIFS(données!$G:$G,données!$A:$A,Récapitulatif!$G$2,données!$E:$E,Récapitulatif!B5))=0,\"\",(SUMIFS(données!$F:$F,données!$A:$A,Récapitulatif!$G$2,données!$E:$E,Récapitulatif!B5)-(SUMIFS(données!$G:$G,données!$A:$A,Récapitulatif!$G$2,données!$E:$E,Récapitulatif!B5))))","v":""},{"$f":"IF(SUMIFS(données!$F:$F,données!$A:$A,Récapitulatif!$H$2,données!$E:$E,Récapitulatif!B5)-(SUMIFS(données!$G:$G,données!$A:$A,Récapitulatif!$H$2,données!$E:$E,Récapitulatif!B5))=0,\"\",(SUMIFS(données!$F:$F,données!$A:$A,Récapitulatif!$H$2,données!$E:$E,Récapitulatif!B5)-(SUMIFS(données!$G:$G,données!$A:$A,Récapitulatif!$H$2,données!$E:$E,Récapitulatif!B5))))","v":""},{"$f":"IF(SUMIFS(données!$F:$F,données!$A:$A,Récapitulatif!$I$2,données!$E:$E,Récapitulatif!B5)-(SUMIFS(données!$G:$G,données!$A:$A,Récapitulatif!$I$2,données!$E:$E,Récapitulatif!B5))=0,\"\",(SUMIFS(données!$F:$F,données!$A:$A,Récapitulatif!$I$2,données!$E:$E,Récapitulatif!B5)-(SUMIFS(données!$G:$G,données!$A:$A,Récapitulatif!$I$2,données!$E:$E,Récapitulatif!B5))))","v":""},{"$f":"IF(SUMIFS(données!$F:$F,données!$A:$A,Récapitulatif!$J$2,données!$E:$E,Récapitulatif!B5)-(SUMIFS(données!$G:$G,données!$A:$A,Récapitulatif!$J$2,données!$E:$E,Récapitulatif!B5))=0,\"\",(SUMIFS(données!$F:$F,données!$A:$A,Récapitulatif!$J$2,données!$E:$E,Récapitulatif!B5)-(SUMIFS(données!$G:$G,données!$A:$A,Récapitulatif!$J$2,données!$E:$E,Récapitulatif!B5))))","v":""},{"$f":"IF(SUMIFS(données!$F:$F,données!$A:$A,Récapitulatif!$K$2,données!$E:$E,Récapitulatif!B5)-(SUMIFS(données!$G:$G,données!$A:$A,Récapitulatif!$K$2,données!$E:$E,Récapitulatif!B5))=0,\"\",(SUMIFS(données!$F:$F,données!$A:$A,Récapitulatif!$K$2,données!$E:$E,Récapitulatif!B5)-(SUMIFS(données!$G:$G,données!$A:$A,Récapitulatif!$K$2,données!$E:$E,Récapitulatif!B5))))","v":""},{"$f":"IF(SUMIFS(données!$F:$F,données!$A:$A,Récapitulatif!$L$2,données!$E:$E,Récapitulatif!B5)-(SUMIFS(données!$G:$G,données!$A:$A,Récapitulatif!$L$2,données!$E:$E,Récapitulatif!B5))=0,\"\",(SUMIFS(données!$F:$F,données!$A:$A,Récapitulatif!$L$2,données!$E:$E,Récapitulatif!B5)-(SUMIFS(données!$G:$G,données!$A:$A,Récapitulatif!$L$2,données!$E:$E,Récapitulatif!B5))))","v":""},{"$f":"IF(SUMIFS(données!$F:$F,données!$A:$A,Récapitulatif!$M$2,données!$E:$E,Récapitulatif!B5)-(SUMIFS(données!$G:$G,données!$A:$A,Récapitulatif!$M$2,données!$E:$E,Récapitulatif!B5))=0,\"\",(SUMIFS(données!$F:$F,données!$A:$A,Récapitulatif!$M$2,données!$E:$E,Récapitulatif!B5)-(SUMIFS(données!$G:$G,données!$A:$A,Récapitulatif!$M$2,données!$E:$E,Récapitulatif!B5))))","v":""},{"$f":"IF(SUMIFS(données!$F:$F,données!$A:$A,Récapitulatif!$N$2,données!$E:$E,Récapitulatif!B5)-(SUMIFS(données!$G:$G,données!$A:$A,Récapitulatif!$N$2,données!$E:$E,Récapitulatif!B5))=0,\"\",(SUMIFS(données!$F:$F,données!$A:$A,Récapitulatif!$N$2,données!$E:$E,Récapitulatif!B5)-(SUMIFS(données!$G:$G,données!$A:$A,Récapitulatif!$N$2,données!$E:$E,Récapitulatif!B5))))","v":""},{"$f":"IF(SUM(C5:N5)=0,\"\",SUM(C5:N5))","v":""}]
[null,"BSL",{"$f":"IF(SUMIFS(données!$F:$F,données!$A:$A,Récapitulatif!$C$2,données!$E:$E,Récapitulatif!B6)-(SUMIFS(données!$G:$G,données!$A:$A,Récapitulatif!$C$2,données!$E:$E,Récapitulatif!B6))=0,\"\",(SUMIFS(données!$F:$F,données!$A:$A,Récapitulatif!$C$2,données!$E:$E,Récapitulatif!B6)-(SUMIFS(données!$G:$G,données!$A:$A,Récapitulatif!$C$2,données!$E:$E,Récapitulatif!B6))))","v":""},{"$f":"IF(SUMIFS(données!$F:$F,données!$A:$A,Récapitulatif!$D$2,données!$E:$E,Récapitulatif!B6)-(SUMIFS(données!$G:$G,données!$A:$A,Récapitulatif!$D$2,données!$E:$E,Récapitulatif!B6))=0,\"\",(SUMIFS(données!$F:$F,données!$A:$A,Récapitulatif!$D$2,données!$E:$E,Récapitulatif!B6)-(SUMIFS(données!$G:$G,données!$A:$A,Récapitulatif!$D$2,données!$E:$E,Récapitulatif!B6))))","v":""},{"$f":"IF(SUMIFS(données!$F:$F,données!$A:$A,Récapitulatif!$E$2,données!$E:$E,Récapitulatif!B6)-(SUMIFS(données!$G:$G,données!$A:$A,Récapitulatif!$E$2,données!$E:$E,Récapitulatif!B6))=0,\"\",(SUMIFS(données!$F:$F,données!$A:$A,Récapitulatif!$E$2,données!$E:$E,Récapitulatif!B6)-(SUMIFS(données!$G:$G,données!$A:$A,Récapitulatif!$E$2,données!$E:$E,Récapitulatif!B6))))","v":""},{"$f":"IF(SUMIFS(données!$F:$F,données!$A:$A,Récapitulatif!$F$2,données!$E:$E,Récapitulatif!B6)-(SUMIFS(données!$G:$G,données!$A:$A,Récapitulatif!$F$2,données!$E:$E,Récapitulatif!B6))=0,\"\",(SUMIFS(données!$F:$F,données!$A:$A,Récapitulatif!$F$2,données!$E:$E,Récapitulatif!B6)-(SUMIFS(données!$G:$G,données!$A:$A,Récapitulatif!$F$2,données!$E:$E,Récapitulatif!B6))))","v":""},{"$f":"IF(SUMIFS(données!$F:$F,données!$A:$A,Récapitulatif!$G$2,données!$E:$E,Récapitulatif!B6)-(SUMIFS(données!$G:$G,données!$A:$A,Récapitulatif!$G$2,données!$E:$E,Récapitulatif!B6))=0,\"\",(SUMIFS(données!$F:$F,données!$A:$A,Récapitulatif!$G$2,données!$E:$E,Récapitulatif!B6)-(SUMIFS(données!$G:$G,données!$A:$A,Récapitulatif!$G$2,données!$E:$E,Récapitulatif!B6))))","v":""},{"$f":"IF(SUMIFS(données!$F:$F,données!$A:$A,Récapitulatif!$H$2,données!$E:$E,Récapitulatif!B6)-(SUMIFS(données!$G:$G,données!$A:$A,Récapitulatif!$H$2,données!$E:$E,Récapitulatif!B6))=0,\"\",(SUMIFS(données!$F:$F,données!$A:$A,Récapitulatif!$H$2,données!$E:$E,Récapitulatif!B6)-(SUMIFS(données!$G:$G,données!$A:$A,Récapitulatif!$H$2,données!$E:$E,Récapitulatif!B6))))","v":""},{"$f":"IF(SUMIFS(données!$F:$F,données!$A:$A,Récapitulatif!$I$2,données!$E:$E,Récapitulatif!B6)-(SUMIFS(données!$G:$G,données!$A:$A,Récapitulatif!$I$2,données!$E:$E,Récapitulatif!B6))=0,\"\",(SUMIFS(données!$F:$F,données!$A:$A,Récapitulatif!$I$2,données!$E:$E,Récapitulatif!B6)-(SUMIFS(données!$G:$G,données!$A:$A,Récapitulatif!$I$2,données!$E:$E,Récapitulatif!B6))))","v":""},{"$f":"IF(SUMIFS(données!$F:$F,données!$A:$A,Récapitulatif!$J$2,données!$E:$E,Récapitulatif!B6)-(SUMIFS(données!$G:$G,données!$A:$A,Récapitulatif!$J$2,données!$E:$E,Récapitulatif!B6))=0,\"\",(SUMIFS(données!$F:$F,données!$A:$A,Récapitulatif!$J$2,données!$E:$E,Récapitulatif!B6)-(SUMIFS(données!$G:$G,données!$A:$A,Récapitulatif!$J$2,données!$E:$E,Récapitulatif!B6))))","v":""},{"$f":"IF(SUMIFS(données!$F:$F,données!$A:$A,Récapitulatif!$K$2,données!$E:$E,Récapitulatif!B6)-(SUMIFS(données!$G:$G,données!$A:$A,Récapitulatif!$K$2,données!$E:$E,Récapitulatif!B6))=0,\"\",(SUMIFS(données!$F:$F,données!$A:$A,Récapitulatif!$K$2,données!$E:$E,Récapitulatif!B6)-(SUMIFS(données!$G:$G,données!$A:$A,Récapitulatif!$K$2,données!$E:$E,Récapitulatif!B6))))","v":""},{"$f":"IF(SUMIFS(données!$F:$F,données!$A:$A,Récapitulatif!$L$2,données!$E:$E,Récapitulatif!B6)-(SUMIFS(données!$G:$G,données!$A:$A,Récapitulatif!$L$2,données!$E:$E,Récapitulatif!B6))=0,\"\",(SUMIFS(données!$F:$F,données!$A:$A,Récapitulatif!$L$2,données!$E:$E,Récapitulatif!B6)-(SUMIFS(données!$G:$G,données!$A:$A,Récapitulatif!$L$2,données!$E:$E,Récapitulatif!B6))))","v":""},{"$f":"IF(SUMIFS(données!$F:$F,données!$A:$A,Récapitulatif!$M$2,données!$E:$E,Récapitulatif!B6)-(SUMIFS(données!$G:$G,données!$A:$A,Récapitulatif!$M$2,données!$E:$E,Récapitulatif!B6))=0,\"\",(SUMIFS(données!$F:$F,données!$A:$A,Récapitulatif!$M$2,données!$E:$E,Récapitulatif!B6)-(SUMIFS(données!$G:$G,données!$A:$A,Récapitulatif!$M$2,données!$E:$E,Récapitulatif!B6))))","v":""},{"$f":"IF(SUMIFS(données!$F:$F,données!$A:$A,Récapitulatif!$N$2,données!$E:$E,Récapitulatif!B6)-(SUMIFS(données!$G:$G,données!$A:$A,Récapitulatif!$N$2,données!$E:$E,Récapitulatif!B6))=0,\"\",(SUMIFS(données!$F:$F,données!$A:$A,Récapitulatif!$N$2,données!$E:$E,Récapitulatif!B6)-(SUMIFS(données!$G:$G,données!$A:$A,Récapitulatif!$N$2,données!$E:$E,Récapitulatif!B6))))","v":""},""]
[null,"CHABAS",{"$f":"IF(SUMIFS(données!$F:$F,données!$A:$A,Récapitulatif!$C$2,données!$E:$E,Récapitulatif!B7)-(SUMIFS(données!$G:$G,données!$A:$A,Récapitulatif!$C$2,données!$E:$E,Récapitulatif!B7))=0,\"\",(SUMIFS(données!$F:$F,données!$A:$A,Récapitulatif!$C$2,données!$E:$E,Récapitulatif!B7)-(SUMIFS(données!$G:$G,données!$A:$A,Récapitulatif!$C$2,données!$E:$E,Récapitulatif!B7))))","v":""},{"$f":"IF(SUMIFS(données!$F:$F,données!$A:$A,Récapitulatif!$D$2,données!$E:$E,Récapitulatif!B7)-(SUMIFS(données!$G:$G,données!$A:$A,Récapitulatif!$D$2,données!$E:$E,Récapitulatif!B7))=0,\"\",(SUMIFS(données!$F:$F,données!$A:$A,Récapitulatif!$D$2,données!$E:$E,Récapitulatif!B7)-(SUMIFS(données!$G:$G,données!$A:$A,Récapitulatif!$D$2,données!$E:$E,Récapitulatif!B7))))","v":""},{"$f":"IF(SUMIFS(données!$F:$F,données!$A:$A,Récapitulatif!$E$2,données!$E:$E,Récapitulatif!B7)-(SUMIFS(données!$G:$G,données!$A:$A,Récapitulatif!$E$2,données!$E:$E,Récapitulatif!B7))=0,\"\",(SUMIFS(données!$F:$F,données!$A:$A,Récapitulatif!$E$2,données!$E:$E,Récapitulatif!B7)-(SUMIFS(données!$G:$G,données!$A:$A,Récapitulatif!$E$2,données!$E:$E,Récapitulatif!B7))))","v":""},{"$f":"IF(SUMIFS(données!$F:$F,données!$A:$A,Récapitulatif!$F$2,données!$E:$E,Récapitulatif!B7)-(SUMIFS(données!$G:$G,données!$A:$A,Récapitulatif!$F$2,données!$E:$E,Récapitulatif!B7))=0,\"\",(SUMIFS(données!$F:$F,données!$A:$A,Récapitulatif!$F$2,données!$E:$E,Récapitulatif!B7)-(SUMIFS(données!$G:$G,données!$A:$A,Récapitulatif!$F$2,données!$E:$E,Récapitulatif!B7))))","v":""},{"$f":"IF(SUMIFS(données!$F:$F,données!$A:$A,Récapitulatif!$G$2,données!$E:$E,Récapitulatif!B7)-(SUMIFS(données!$G:$G,données!$A:$A,Récapitulatif!$G$2,données!$E:$E,Récapitulatif!B7))=0,\"\",(SUMIFS(données!$F:$F,données!$A:$A,Récapitulatif!$G$2,données!$E:$E,Récapitulatif!B7)-(SUMIFS(données!$G:$G,données!$A:$A,Récapitulatif!$G$2,données!$E:$E,Récapitulatif!B7))))","v":""},{"$f":"IF(SUMIFS(données!$F:$F,données!$A:$A,Récapitulatif!$H$2,données!$E:$E,Récapitulatif!B7)-(SUMIFS(données!$G:$G,données!$A:$A,Récapitulatif!$H$2,données!$E:$E,Récapitulatif!B7))=0,\"\",(SUMIFS(données!$F:$F,données!$A:$A,Récapitulatif!$H$2,données!$E:$E,Récapitulatif!B7)-(SUMIFS(données!$G:$G,données!$A:$A,Récapitulatif!$H$2,données!$E:$E,Récapitulatif!B7))))","v":""},{"$f":"IF(SUMIFS(données!$F:$F,données!$A:$A,Récapitulatif!$I$2,données!$E:$E,Récapitulatif!B7)-(SUMIFS(données!$G:$G,données!$A:$A,Récapitulatif!$I$2,données!$E:$E,Récapitulatif!B7))=0,\"\",(SUMIFS(données!$F:$F,données!$A:$A,Récapitulatif!$I$2,données!$E:$E,Récapitulatif!B7)-(SUMIFS(données!$G:$G,données!$A:$A,Récapitulatif!$I$2,données!$E:$E,Récapitulatif!B7))))","v":""},{"$f":"IF(SUMIFS(données!$F:$F,données!$A:$A,Récapitulatif!$J$2,données!$E:$E,Récapitulatif!B7)-(SUMIFS(données!$G:$G,données!$A:$A,Récapitulatif!$J$2,données!$E:$E,Récapitulatif!B7))=0,\"\",(SUMIFS(données!$F:$F,données!$A:$A,Récapitulatif!$J$2,données!$E:$E,Récapitulatif!B7)-(SUMIFS(données!$G:$G,données!$A:$A,Récapitulatif!$J$2,données!$E:$E,Récapitulatif!B7))))","v":""},{"$f":"IF(SUMIFS(données!$F:$F,données!$A:$A,Récapitulatif!$K$2,données!$E:$E,Récapitulatif!B7)-(SUMIFS(données!$G:$G,données!$A:$A,Récapitulatif!$K$2,données!$E:$E,Récapitulatif!B7))=0,\"\",(SUMIFS(données!$F:$F,données!$A:$A,Récapitulatif!$K$2,données!$E:$E,Récapitulatif!B7)-(SUMIFS(données!$G:$G,données!$A:$A,Récapitulatif!$K$2,données!$E:$E,Récapitulatif!B7))))","v":""},{"$f":"IF(SUMIFS(données!$F:$F,données!$A:$A,Récapitulatif!$L$2,données!$E:$E,Récapitulatif!B7)-(SUMIFS(données!$G:$G,données!$A:$A,Récapitulatif!$L$2,données!$E:$E,Récapitulatif!B7))=0,\"\",(SUMIFS(données!$F:$F,données!$A:$A,Récapitulatif!$L$2,données!$E:$E,Récapitulatif!B7)-(SUMIFS(données!$G:$G,données!$A:$A,Récapitulatif!$L$2,données!$E:$E,Récapitulatif!B7))))","v":""},{"$f":"IF(SUMIFS(données!$F:$F,données!$A:$A,Récapitulatif!$M$2,données!$E:$E,Récapitulatif!B7)-(SUMIFS(données!$G:$G,données!$A:$A,Récapitulatif!$M$2,données!$E:$E,Récapitulatif!B7))=0,\"\",(SUMIFS(données!$F:$F,données!$A:$A,Récapitulatif!$M$2,données!$E:$E,Récapitulatif!B7)-(SUMIFS(données!$G:$G,données!$A:$A,Récapitulatif!$M$2,données!$E:$E,Récapitulatif!B7))))","v":""},{"$f":"IF(SUMIFS(données!$F:$F,données!$A:$A,Récapitulatif!$N$2,données!$E:$E,Récapitulatif!B7)-(SUMIFS(données!$G:$G,données!$A:$A,Récapitulatif!$N$2,données!$E:$E,Récapitulatif!B7))=0,\"\",(SUMIFS(données!$F:$F,données!$A:$A,Récapitulatif!$N$2,données!$E:$E,Récapitulatif!B7)-(SUMIFS(données!$G:$G,données!$A:$A,Récapitulatif!$N$2,données!$E:$E,Récapitulatif!B7))))","v":""},""]
[null,"DENJEAN",{"$f":"IF(SUMIFS(données!$F:$F,données!$A:$A,Récapitulatif!$C$2,données!$E:$E,Récapitulatif!B8)-(SUMIFS(données!$G:$G,données!$A:$A,Récapitulatif!$C$2,données!$E:$E,Récapitulatif!B8))=0,\"\",(SUMIFS(données!$F:$F,données!$A:$A,Récapitulatif!$C$2,données!$E:$E,Récapitulatif!B8)-(SUMIFS(données!$G:$G,données!$A:$A,Récapitulatif!$C$2,données!$E:$E,Récapitulatif!B8))))","v":""},{"$f":"IF(SUMIFS(données!$F:$F,données!$A:$A,Récapitulatif!$D$2,données!$E:$E,Récapitulatif!B8)-(SUMIFS(données!$G:$G,données!$A:$A,Récapitulatif!$D$2,données!$E:$E,Récapitulatif!B8))=0,\"\",(SUMIFS(données!$F:$F,données!$A:$A,Récapitulatif!$D$2,données!$E:$E,Récapitulatif!B8)-(SUMIFS(données!$G:$G,données!$A:$A,Récapitulatif!$D$2,données!$E:$E,Récapitulatif!B8))))","v":""},{"$f":"IF(SUMIFS(données!$F:$F,données!$A:$A,Récapitulatif!$E$2,données!$E:$E,Récapitulatif!B8)-(SUMIFS(données!$G:$G,données!$A:$A,Récapitulatif!$E$2,données!$E:$E,Récapitulatif!B8))=0,\"\",(SUMIFS(données!$F:$F,données!$A:$A,Récapitulatif!$E$2,données!$E:$E,Récapitulatif!B8)-(SUMIFS(données!$G:$G,données!$A:$A,Récapitulatif!$E$2,données!$E:$E,Récapitulatif!B8))))","v":""},{"$f":"IF(SUMIFS(données!$F:$F,données!$A:$A,Récapitulatif!$F$2,données!$E:$E,Récapitulatif!B8)-(SUMIFS(données!$G:$G,données!$A:$A,Récapitulatif!$F$2,données!$E:$E,Récapitulatif!B8))=0,\"\",(SUMIFS(données!$F:$F,données!$A:$A,Récapitulatif!$F$2,données!$E:$E,Récapitulatif!B8)-(SUMIFS(données!$G:$G,données!$A:$A,Récapitulatif!$F$2,données!$E:$E,Récapitulatif!B8))))","v":""},{"$f":"IF(SUMIFS(données!$F:$F,données!$A:$A,Récapitulatif!$G$2,données!$E:$E,Récapitulatif!B8)-(SUMIFS(données!$G:$G,données!$A:$A,Récapitulatif!$G$2,données!$E:$E,Récapitulatif!B8))=0,\"\",(SUMIFS(données!$F:$F,données!$A:$A,Récapitulatif!$G$2,données!$E:$E,Récapitulatif!B8)-(SUMIFS(données!$G:$G,données!$A:$A,Récapitulatif!$G$2,données!$E:$E,Récapitulatif!B8))))","v":""},{"$f":"IF(SUMIFS(données!$F:$F,données!$A:$A,Récapitulatif!$H$2,données!$E:$E,Récapitulatif!B8)-(SUMIFS(données!$G:$G,données!$A:$A,Récapitulatif!$H$2,données!$E:$E,Récapitulatif!B8))=0,\"\",(SUMIFS(données!$F:$F,données!$A:$A,Récapitulatif!$H$2,données!$E:$E,Récapitulatif!B8)-(SUMIFS(données!$G:$G,données!$A:$A,Récapitulatif!$H$2,données!$E:$E,Récapitulatif!B8))))","v":""},{"$f":"IF(SUMIFS(données!$F:$F,données!$A:$A,Récapitulatif!$I$2,données!$E:$E,Récapitulatif!B8)-(SUMIFS(données!$G:$G,données!$A:$A,Récapitulatif!$I$2,données!$E:$E,Récapitulatif!B8))=0,\"\",(SUMIFS(données!$F:$F,données!$A:$A,Récapitulatif!$I$2,données!$E:$E,Récapitulatif!B8)-(SUMIFS(données!$G:$G,données!$A:$A,Récapitulatif!$I$2,données!$E:$E,Récapitulatif!B8))))","v":""},{"$f":"IF(SUMIFS(données!$F:$F,données!$A:$A,Récapitulatif!$J$2,données!$E:$E,Récapitulatif!B8)-(SUMIFS(données!$G:$G,données!$A:$A,Récapitulatif!$J$2,données!$E:$E,Récapitulatif!B8))=0,\"\",(SUMIFS(données!$F:$F,données!$A:$A,Récapitulatif!$J$2,données!$E:$E,Récapitulatif!B8)-(SUMIFS(données!$G:$G,données!$A:$A,Récapitulatif!$J$2,données!$E:$E,Récapitulatif!B8))))","v":""},{"$f":"IF(SUMIFS(données!$F:$F,données!$A:$A,Récapitulatif!$K$2,données!$E:$E,Récapitulatif!B8)-(SUMIFS(données!$G:$G,données!$A:$A,Récapitulatif!$K$2,données!$E:$E,Récapitulatif!B8))=0,\"\",(SUMIFS(données!$F:$F,données!$A:$A,Récapitulatif!$K$2,données!$E:$E,Récapitulatif!B8)-(SUMIFS(données!$G:$G,données!$A:$A,Récapitulatif!$K$2,données!$E:$E,Récapitulatif!B8))))","v":""},{"$f":"IF(SUMIFS(données!$F:$F,données!$A:$A,Récapitulatif!$L$2,données!$E:$E,Récapitulatif!B8)-(SUMIFS(données!$G:$G,données!$A:$A,Récapitulatif!$L$2,données!$E:$E,Récapitulatif!B8))=0,\"\",(SUMIFS(données!$F:$F,données!$A:$A,Récapitulatif!$L$2,données!$E:$E,Récapitulatif!B8)-(SUMIFS(données!$G:$G,données!$A:$A,Récapitulatif!$L$2,données!$E:$E,Récapitulatif!B8))))","v":""},{"$f":"IF(SUMIFS(données!$F:$F,données!$A:$A,Récapitulatif!$M$2,données!$E:$E,Récapitulatif!B8)-(SUMIFS(données!$G:$G,données!$A:$A,Récapitulatif!$M$2,données!$E:$E,Récapitulatif!B8))=0,\"\",(SUMIFS(données!$F:$F,données!$A:$A,Récapitulatif!$M$2,données!$E:$E,Récapitulatif!B8)-(SUMIFS(données!$G:$G,données!$A:$A,Récapitulatif!$M$2,données!$E:$E,Récapitulatif!B8))))","v":""},{"$f":"IF(SUMIFS(données!$F:$F,données!$A:$A,Récapitulatif!$N$2,données!$E:$E,Récapitulatif!B8)-(SUMIFS(données!$G:$G,données!$A:$A,Récapitulatif!$N$2,données!$E:$E,Récapitulatif!B8))=0,\"\",(SUMIFS(données!$F:$F,données!$A:$A,Récapitulatif!$N$2,données!$E:$E,Récapitulatif!B8)-(SUMIFS(données!$G:$G,données!$A:$A,Récapitulatif!$N$2,données!$E:$E,Récapitulatif!B8))))","v":""},""]
[null,"DW TRANS",{"$f":"IF(SUMIFS(données!$F:$F,données!$A:$A,Récapitulatif!$C$2,données!$E:$E,Récapitulatif!B9)-(SUMIFS(données!$G:$G,données!$A:$A,Récapitulatif!$C$2,données!$E:$E,Récapitulatif!B9))=0,\"\",(SUMIFS(données!$F:$F,données!$A:$A,Récapitulatif!$C$2,données!$E:$E,Récapitulatif!B9)-(SUMIFS(données!$G:$G,données!$A:$A,Récapitulatif!$C$2,données!$E:$E,Récapitulatif!B9))))","v":""},{"$f":"IF(SUMIFS(données!$F:$F,données!$A:$A,Récapitulatif!$D$2,données!$E:$E,Récapitulatif!B9)-(SUMIFS(données!$G:$G,données!$A:$A,Récapitulatif!$D$2,données!$E:$E,Récapitulatif!B9))=0,\"\",(SUMIFS(données!$F:$F,données!$A:$A,Récapitulatif!$D$2,données!$E:$E,Récapitulatif!B9)-(SUMIFS(données!$G:$G,données!$A:$A,Récapitulatif!$D$2,données!$E:$E,Récapitulatif!B9))))","v":""},{"$f":"IF(SUMIFS(données!$F:$F,données!$A:$A,Récapitulatif!$E$2,données!$E:$E,Récapitulatif!B9)-(SUMIFS(données!$G:$G,données!$A:$A,Récapitulatif!$E$2,données!$E:$E,Récapitulatif!B9))=0,\"\",(SUMIFS(données!$F:$F,données!$A:$A,Récapitulatif!$E$2,données!$E:$E,Récapitulatif!B9)-(SUMIFS(données!$G:$G,données!$A:$A,Récapitulatif!$E$2,données!$E:$E,Récapitulatif!B9))))","v":""},{"$f":"IF(SUMIFS(données!$F:$F,données!$A:$A,Récapitulatif!$F$2,données!$E:$E,Récapitulatif!B9)-(SUMIFS(données!$G:$G,données!$A:$A,Récapitulatif!$F$2,données!$E:$E,Récapitulatif!B9))=0,\"\",(SUMIFS(données!$F:$F,données!$A:$A,Récapitulatif!$F$2,données!$E:$E,Récapitulatif!B9)-(SUMIFS(données!$G:$G,données!$A:$A,Récapitulatif!$F$2,données!$E:$E,Récapitulatif!B9))))","v":""},{"$f":"IF(SUMIFS(données!$F:$F,données!$A:$A,Récapitulatif!$G$2,données!$E:$E,Récapitulatif!B9)-(SUMIFS(données!$G:$G,données!$A:$A,Récapitulatif!$G$2,données!$E:$E,Récapitulatif!B9))=0,\"\",(SUMIFS(données!$F:$F,données!$A:$A,Récapitulatif!$G$2,données!$E:$E,Récapitulatif!B9)-(SUMIFS(données!$G:$G,données!$A:$A,Récapitulatif!$G$2,données!$E:$E,Récapitulatif!B9))))","v":""},{"$f":"IF(SUMIFS(données!$F:$F,données!$A:$A,Récapitulatif!$H$2,données!$E:$E,Récapitulatif!B9)-(SUMIFS(données!$G:$G,données!$A:$A,Récapitulatif!$H$2,données!$E:$E,Récapitulatif!B9))=0,\"\",(SUMIFS(données!$F:$F,données!$A:$A,Récapitulatif!$H$2,données!$E:$E,Récapitulatif!B9)-(SUMIFS(données!$G:$G,données!$A:$A,Récapitulatif!$H$2,données!$E:$E,Récapitulatif!B9))))","v":""},{"$f":"IF(SUMIFS(données!$F:$F,données!$A:$A,Récapitulatif!$I$2,données!$E:$E,Récapitulatif!B9)-(SUMIFS(données!$G:$G,données!$A:$A,Récapitulatif!$I$2,données!$E:$E,Récapitulatif!B9))=0,\"\",(SUMIFS(données!$F:$F,données!$A:$A,Récapitulatif!$I$2,données!$E:$E,Récapitulatif!B9)-(SUMIFS(données!$G:$G,données!$A:$A,Récapitulatif!$I$2,données!$E:$E,Récapitulatif!B9))))","v":""},{"$f":"IF(SUMIFS(données!$F:$F,données!$A:$A,Récapitulatif!$J$2,données!$E:$E,Récapitulatif!B9)-(SUMIFS(données!$G:$G,données!$A:$A,Récapitulatif!$J$2,données!$E:$E,Récapitulatif!B9))=0,\"\",(SUMIFS(données!$F:$F,données!$A:$A,Récapitulatif!$J$2,données!$E:$E,Récapitulatif!B9)-(SUMIFS(données!$G:$G,données!$A:$A,Récapitulatif!$J$2,données!$E:$E,Récapitulatif!B9))))","v":""},{"$f":"IF(SUMIFS(données!$F:$F,données!$A:$A,Récapitulatif!$K$2,données!$E:$E,Récapitulatif!B9)-(SUMIFS(données!$G:$G,données!$A:$A,Récapitulatif!$K$2,données!$E:$E,Récapitulatif!B9))=0,\"\",(SUMIFS(données!$F:$F,données!$A:$A,Récapitulatif!$K$2,données!$E:$E,Récapitulatif!B9)-(SUMIFS(données!$G:$G,données!$A:$A,Récapitulatif!$K$2,données!$E:$E,Récapitulatif!B9))))","v":""},{"$f":"IF(SUMIFS(données!$F:$F,données!$A:$A,Récapitulatif!$L$2,données!$E:$E,Récapitulatif!B9)-(SUMIFS(données!$G:$G,données!$A:$A,Récapitulatif!$L$2,données!$E:$E,Récapitulatif!B9))=0,\"\",(SUMIFS(données!$F:$F,données!$A:$A,Récapitulatif!$L$2,données!$E:$E,Récapitulatif!B9)-(SUMIFS(données!$G:$G,données!$A:$A,Récapitulatif!$L$2,données!$E:$E,Récapitulatif!B9))))","v":""},{"$f":"IF(SUMIFS(données!$F:$F,données!$A:$A,Récapitulatif!$M$2,données!$E:$E,Récapitulatif!B9)-(SUMIFS(données!$G:$G,données!$A:$A,Récapitulatif!$M$2,données!$E:$E,Récapitulatif!B9))=0,\"\",(SUMIFS(données!$F:$F,données!$A:$A,Récapitulatif!$M$2,données!$E:$E,Récapitulatif!B9)-(SUMIFS(données!$G:$G,données!$A:$A,Récapitulatif!$M$2,données!$E:$E,Récapitulatif!B9))))","v":""},{"$f":"IF(SUMIFS(données!$F:$F,données!$A:$A,Récapitulatif!$N$2,données!$E:$E,Récapitulatif!B9)-(SUMIFS(données!$G:$G,données!$A:$A,Récapitulatif!$N$2,données!$E:$E,Récapitulatif!B9))=0,\"\",(SUMIFS(données!$F:$F,données!$A:$A,Récapitulatif!$N$2,données!$E:$E,Récapitulatif!B9)-(SUMIFS(données!$G:$G,données!$A:$A,Récapitulatif!$N$2,données!$E:$E,Récapitulatif!B9))))","v":""},""]
[null,"EYCHANNE",{"$f":"IF(SUMIFS(données!$F:$F,données!$A:$A,Récapitulatif!$C$2,données!$E:$E,Récapitulatif!B10)-(SUMIFS(données!$G:$G,données!$A:$A,Récapitulatif!$C$2,données!$E:$E,Récapitulatif!B10))=0,\"\",(SUMIFS(données!$F:$F,données!$A:$A,Récapitulatif!$C$2,données!$E:$E,Récapitulatif!B10)-(SUMIFS(données!$G:$G,données!$A:$A,Récapitulatif!$C$2,données!$E:$E,Récapitulatif!B10))))","v":""},{"$f":"IF(SUMIFS(données!$F:$F,données!$A:$A,Récapitulatif!$D$2,données!$E:$E,Récapitulatif!B10)-(SUMIFS(données!$G:$G,données!$A:$A,Récapitulatif!$D$2,données!$E:$E,Récapitulatif!B10))=0,\"\",(SUMIFS(données!$F:$F,données!$A:$A,Récapitulatif!$D$2,données!$E:$E,Récapitulatif!B10)-(SUMIFS(données!$G:$G,données!$A:$A,Récapitulatif!$D$2,données!$E:$E,Récapitulatif!B10))))","v":""},{"$f":"IF(SUMIFS(données!$F:$F,données!$A:$A,Récapitulatif!$E$2,données!$E:$E,Récapitulatif!B10)-(SUMIFS(données!$G:$G,données!$A:$A,Récapitulatif!$E$2,données!$E:$E,Récapitulatif!B10))=0,\"\",(SUMIFS(données!$F:$F,données!$A:$A,Récapitulatif!$E$2,données!$E:$E,Récapitulatif!B10)-(SUMIFS(données!$G:$G,données!$A:$A,Récapitulatif!$E$2,données!$E:$E,Récapitulatif!B10))))","v":""},{"$f":"IF(SUMIFS(données!$F:$F,données!$A:$A,Récapitulatif!$F$2,données!$E:$E,Récapitulatif!B10)-(SUMIFS(données!$G:$G,données!$A:$A,Récapitulatif!$F$2,données!$E:$E,Récapitulatif!B10))=0,\"\",(SUMIFS(données!$F:$F,données!$A:$A,Récapitulatif!$F$2,données!$E:$E,Récapitulatif!B10)-(SUMIFS(données!$G:$G,données!$A:$A,Récapitulatif!$F$2,données!$E:$E,Récapitulatif!B10))))","v":""},{"$f":"IF(SUMIFS(données!$F:$F,données!$A:$A,Récapitulatif!$G$2,données!$E:$E,Récapitulatif!B10)-(SUMIFS(données!$G:$G,données!$A:$A,Récapitulatif!$G$2,données!$E:$E,Récapitulatif!B10))=0,\"\",(SUMIFS(données!$F:$F,données!$A:$A,Récapitulatif!$G$2,données!$E:$E,Récapitulatif!B10)-(SUMIFS(données!$G:$G,données!$A:$A,Récapitulatif!$G$2,données!$E:$E,Récapitulatif!B10))))","v":""},{"$f":"IF(SUMIFS(données!$F:$F,données!$A:$A,Récapitulatif!$H$2,données!$E:$E,Récapitulatif!B10)-(SUMIFS(données!$G:$G,données!$A:$A,Récapitulatif!$H$2,données!$E:$E,Récapitulatif!B10))=0,\"\",(SUMIFS(données!$F:$F,données!$A:$A,Récapitulatif!$H$2,données!$E:$E,Récapitulatif!B10)-(SUMIFS(données!$G:$G,données!$A:$A,Récapitulatif!$H$2,données!$E:$E,Récapitulatif!B10))))","v":""},{"$f":"IF(SUMIFS(données!$F:$F,données!$A:$A,Récapitulatif!$I$2,données!$E:$E,Récapitulatif!B10)-(SUMIFS(données!$G:$G,données!$A:$A,Récapitulatif!$I$2,données!$E:$E,Récapitulatif!B10))=0,\"\",(SUMIFS(données!$F:$F,données!$A:$A,Récapitulatif!$I$2,données!$E:$E,Récapitulatif!B10)-(SUMIFS(données!$G:$G,données!$A:$A,Récapitulatif!$I$2,données!$E:$E,Récapitulatif!B10))))","v":""},{"$f":"IF(SUMIFS(données!$F:$F,données!$A:$A,Récapitulatif!$J$2,données!$E:$E,Récapitulatif!B10)-(SUMIFS(données!$G:$G,données!$A:$A,Récapitulatif!$J$2,données!$E:$E,Récapitulatif!B10))=0,\"\",(SUMIFS(données!$F:$F,données!$A:$A,Récapitulatif!$J$2,données!$E:$E,Récapitulatif!B10)-(SUMIFS(données!$G:$G,données!$A:$A,Récapitulatif!$J$2,données!$E:$E,Récapitulatif!B10))))","v":""},{"$f":"IF(SUMIFS(données!$F:$F,données!$A:$A,Récapitulatif!$K$2,données!$E:$E,Récapitulatif!B10)-(SUMIFS(données!$G:$G,données!$A:$A,Récapitulatif!$K$2,données!$E:$E,Récapitulatif!B10))=0,\"\",(SUMIFS(données!$F:$F,données!$A:$A,Récapitulatif!$K$2,données!$E:$E,Récapitulatif!B10)-(SUMIFS(données!$G:$G,données!$A:$A,Récapitulatif!$K$2,données!$E:$E,Récapitulatif!B10))))","v":""},{"$f":"IF(SUMIFS(données!$F:$F,données!$A:$A,Récapitulatif!$L$2,données!$E:$E,Récapitulatif!B10)-(SUMIFS(données!$G:$G,données!$A:$A,Récapitulatif!$L$2,données!$E:$E,Récapitulatif!B10))=0,\"\",(SUMIFS(données!$F:$F,données!$A:$A,Récapitulatif!$L$2,données!$E:$E,Récapitulatif!B10)-(SUMIFS(données!$G:$G,données!$A:$A,Récapitulatif!$L$2,données!$E:$E,Récapitulatif!B10))))","v":""},{"$f":"IF(SUMIFS(données!$F:$F,données!$A:$A,Récapitulatif!$M$2,données!$E:$E,Récapitulatif!B10)-(SUMIFS(données!$G:$G,données!$A:$A,Récapitulatif!$M$2,données!$E:$E,Récapitulatif!B10))=0,\"\",(SUMIFS(données!$F:$F,données!$A:$A,Récapitulatif!$M$2,données!$E:$E,Récapitulatif!B10)-(SUMIFS(données!$G:$G,données!$A:$A,Récapitulatif!$M$2,données!$E:$E,Récapitulatif!B10))))","v":""},{"$f":"IF(SUMIFS(données!$F:$F,données!$A:$A,Récapitulatif!$N$2,données!$E:$E,Récapitulatif!B10)-(SUMIFS(données!$G:$G,données!$A:$A,Récapitulatif!$N$2,données!$E:$E,Récapitulatif!B10))=0,\"\",(SUMIFS(données!$F:$F,données!$A:$A,Récapitulatif!$N$2,données!$E:$E,Récapitulatif!B10)-(SUMIFS(données!$G:$G,données!$A:$A,Récapitulatif!$N$2,données!$E:$E,Récapitulatif!B10))))","v":""},""]
[null,"FAU",{"$f":"IF(SUMIFS(données!$F:$F,données!$A:$A,Récapitulatif!$C$2,données!$E:$E,Récapitulatif!B11)-(SUMIFS(données!$G:$G,données!$A:$A,Récapitulatif!$C$2,données!$E:$E,Récapitulatif!B11))=0,\"\",(SUMIFS(données!$F:$F,données!$A:$A,Récapitulatif!$C$2,données!$E:$E,Récapitulatif!B11)-(SUMIFS(données!$G:$G,données!$A:$A,Récapitulatif!$C$2,données!$E:$E,Récapitulatif!B11))))","v":""},{"$f":"IF(SUMIFS(données!$F:$F,données!$A:$A,Récapitulatif!$D$2,données!$E:$E,Récapitulatif!B11)-(SUMIFS(données!$G:$G,données!$A:$A,Récapitulatif!$D$2,données!$E:$E,Récapitulatif!B11))=0,\"\",(SUMIFS(données!$F:$F,données!$A:$A,Récapitulatif!$D$2,données!$E:$E,Récapitulatif!B11)-(SUMIFS(données!$G:$G,données!$A:$A,Récapitulatif!$D$2,données!$E:$E,Récapitulatif!B11))))","v":""},{"$f":"IF(SUMIFS(données!$F:$F,données!$A:$A,Récapitulatif!$E$2,données!$E:$E,Récapitulatif!B11)-(SUMIFS(données!$G:$G,données!$A:$A,Récapitulatif!$E$2,données!$E:$E,Récapitulatif!B11))=0,\"\",(SUMIFS(données!$F:$F,données!$A:$A,Récapitulatif!$E$2,données!$E:$E,Récapitulatif!B11)-(SUMIFS(données!$G:$G,données!$A:$A,Récapitulatif!$E$2,données!$E:$E,Récapitulatif!B11))))","v":""},{"$f":"IF(SUMIFS(données!$F:$F,données!$A:$A,Récapitulatif!$F$2,données!$E:$E,Récapitulatif!B11)-(SUMIFS(données!$G:$G,données!$A:$A,Récapitulatif!$F$2,données!$E:$E,Récapitulatif!B11))=0,\"\",(SUMIFS(données!$F:$F,données!$A:$A,Récapitulatif!$F$2,données!$E:$E,Récapitulatif!B11)-(SUMIFS(données!$G:$G,données!$A:$A,Récapitulatif!$F$2,données!$E:$E,Récapitulatif!B11))))","v":""},{"$f":"IF(SUMIFS(données!$F:$F,données!$A:$A,Récapitulatif!$G$2,données!$E:$E,Récapitulatif!B11)-(SUMIFS(données!$G:$G,données!$A:$A,Récapitulatif!$G$2,données!$E:$E,Récapitulatif!B11))=0,\"\",(SUMIFS(données!$F:$F,données!$A:$A,Récapitulatif!$G$2,données!$E:$E,Récapitulatif!B11)-(SUMIFS(données!$G:$G,données!$A:$A,Récapitulatif!$G$2,données!$E:$E,Récapitulatif!B11))))","v":""},{"$f":"IF(SUMIFS(données!$F:$F,données!$A:$A,Récapitulatif!$H$2,données!$E:$E,Récapitulatif!B11)-(SUMIFS(données!$G:$G,données!$A:$A,Récapitulatif!$H$2,données!$E:$E,Récapitulatif!B11))=0,\"\",(SUMIFS(données!$F:$F,données!$A:$A,Récapitulatif!$H$2,données!$E:$E,Récapitulatif!B11)-(SUMIFS(données!$G:$G,données!$A:$A,Récapitulatif!$H$2,données!$E:$E,Récapitulatif!B11))))","v":""},{"$f":"IF(SUMIFS(données!$F:$F,données!$A:$A,Récapitulatif!$I$2,données!$E:$E,Récapitulatif!B11)-(SUMIFS(données!$G:$G,données!$A:$A,Récapitulatif!$I$2,données!$E:$E,Récapitulatif!B11))=0,\"\",(SUMIFS(données!$F:$F,données!$A:$A,Récapitulatif!$I$2,données!$E:$E,Récapitulatif!B11)-(SUMIFS(données!$G:$G,données!$A:$A,Récapitulatif!$I$2,données!$E:$E,Récapitulatif!B11))))","v":""},{"$f":"IF(SUMIFS(données!$F:$F,données!$A:$A,Récapitulatif!$J$2,données!$E:$E,Récapitulatif!B11)-(SUMIFS(données!$G:$G,données!$A:$A,Récapitulatif!$J$2,données!$E:$E,Récapitulatif!B11))=0,\"\",(SUMIFS(données!$F:$F,données!$A:$A,Récapitulatif!$J$2,données!$E:$E,Récapitulatif!B11)-(SUMIFS(données!$G:$G,données!$A:$A,Récapitulatif!$J$2,données!$E:$E,Récapitulatif!B11))))","v":""},{"$f":"IF(SUMIFS(données!$F:$F,données!$A:$A,Récapitulatif!$K$2,données!$E:$E,Récapitulatif!B11)-(SUMIFS(données!$G:$G,données!$A:$A,Récapitulatif!$K$2,données!$E:$E,Récapitulatif!B11))=0,\"\",(SUMIFS(données!$F:$F,données!$A:$A,Récapitulatif!$K$2,données!$E:$E,Récapitulatif!B11)-(SUMIFS(données!$G:$G,données!$A:$A,Récapitulatif!$K$2,données!$E:$E,Récapitulatif!B11))))","v":""},{"$f":"IF(SUMIFS(données!$F:$F,données!$A:$A,Récapitulatif!$L$2,données!$E:$E,Récapitulatif!B11)-(SUMIFS(données!$G:$G,données!$A:$A,Récapitulatif!$L$2,données!$E:$E,Récapitulatif!B11))=0,\"\",(SUMIFS(données!$F:$F,données!$A:$A,Récapitulatif!$L$2,données!$E:$E,Récapitulatif!B11)-(SUMIFS(données!$G:$G,données!$A:$A,Récapitulatif!$L$2,données!$E:$E,Récapitulatif!B11))))","v":""},{"$f":"IF(SUMIFS(données!$F:$F,données!$A:$A,Récapitulatif!$M$2,données!$E:$E,Récapitulatif!B11)-(SUMIFS(données!$G:$G,données!$A:$A,Récapitulatif!$M$2,données!$E:$E,Récapitulatif!B11))=0,\"\",(SUMIFS(données!$F:$F,données!$A:$A,Récapitulatif!$M$2,données!$E:$E,Récapitulatif!B11)-(SUMIFS(données!$G:$G,données!$A:$A,Récapitulatif!$M$2,données!$E:$E,Récapitulatif!B11))))","v":""},{"$f":"IF(SUMIFS(données!$F:$F,données!$A:$A,Récapitulatif!$N$2,données!$E:$E,Récapitulatif!B11)-(SUMIFS(données!$G:$G,données!$A:$A,Récapitulatif!$N$2,données!$E:$E,Récapitulatif!B11))=0,\"\",(SUMIFS(données!$F:$F,données!$A:$A,Récapitulatif!$N$2,données!$E:$E,Récapitulatif!B11)-(SUMIFS(données!$G:$G,données!$A:$A,Récapitulatif!$N$2,données!$E:$E,Récapitulatif!B11))))","v":""},""]
[null,"FORMEL",{"$f":"IF(SUMIFS(données!$F:$F,données!$A:$A,Récapitulatif!$C$2,données!$E:$E,Récapitulatif!B12)-(SUMIFS(données!$G:$G,données!$A:$A,Récapitulatif!$C$2,données!$E:$E,Récapitulatif!B12))=0,\"\",(SUMIFS(données!$F:$F,données!$A:$A,Récapitulatif!$C$2,données!$E:$E,Récapitulatif!B12)-(SUMIFS(données!$G:$G,données!$A:$A,Récapitulatif!$C$2,données!$E:$E,Récapitulatif!B12))))","v":""},{"$f":"IF(SUMIFS(données!$F:$F,données!$A:$A,Récapitulatif!$D$2,données!$E:$E,Récapitulatif!B12)-(SUMIFS(données!$G:$G,données!$A:$A,Récapitulatif!$D$2,données!$E:$E,Récapitulatif!B12))=0,\"\",(SUMIFS(données!$F:$F,données!$A:$A,Récapitulatif!$D$2,données!$E:$E,Récapitulatif!B12)-(SUMIFS(données!$G:$G,données!$A:$A,Récapitulatif!$D$2,données!$E:$E,Récapitulatif!B12))))","v":""},{"$f":"IF(SUMIFS(données!$F:$F,données!$A:$A,Récapitulatif!$E$2,données!$E:$E,Récapitulatif!B12)-(SUMIFS(données!$G:$G,données!$A:$A,Récapitulatif!$E$2,données!$E:$E,Récapitulatif!B12))=0,\"\",(SUMIFS(données!$F:$F,données!$A:$A,Récapitulatif!$E$2,données!$E:$E,Récapitulatif!B12)-(SUMIFS(données!$G:$G,données!$A:$A,Récapitulatif!$E$2,données!$E:$E,Récapitulatif!B12))))","v":""},{"$f":"IF(SUMIFS(données!$F:$F,données!$A:$A,Récapitulatif!$F$2,données!$E:$E,Récapitulatif!B12)-(SUMIFS(données!$G:$G,données!$A:$A,Récapitulatif!$F$2,données!$E:$E,Récapitulatif!B12))=0,\"\",(SUMIFS(données!$F:$F,données!$A:$A,Récapitulatif!$F$2,données!$E:$E,Récapitulatif!B12)-(SUMIFS(données!$G:$G,données!$A:$A,Récapitulatif!$F$2,données!$E:$E,Récapitulatif!B12))))","v":""},{"$f":"IF(SUMIFS(données!$F:$F,données!$A:$A,Récapitulatif!$G$2,données!$E:$E,Récapitulatif!B12)-(SUMIFS(données!$G:$G,données!$A:$A,Récapitulatif!$G$2,données!$E:$E,Récapitulatif!B12))=0,\"\",(SUMIFS(données!$F:$F,données!$A:$A,Récapitulatif!$G$2,données!$E:$E,Récapitulatif!B12)-(SUMIFS(données!$G:$G,données!$A:$A,Récapitulatif!$G$2,données!$E:$E,Récapitulatif!B12))))","v":""},{"$f":"IF(SUMIFS(données!$F:$F,données!$A:$A,Récapitulatif!$H$2,données!$E:$E,Récapitulatif!B12)-(SUMIFS(données!$G:$G,données!$A:$A,Récapitulatif!$H$2,données!$E:$E,Récapitulatif!B12))=0,\"\",(SUMIFS(données!$F:$F,données!$A:$A,Récapitulatif!$H$2,données!$E:$E,Récapitulatif!B12)-(SUMIFS(données!$G:$G,données!$A:$A,Récapitulatif!$H$2,données!$E:$E,Récapitulatif!B12))))","v":""},{"$f":"IF(SUMIFS(données!$F:$F,données!$A:$A,Récapitulatif!$I$2,données!$E:$E,Récapitulatif!B12)-(SUMIFS(données!$G:$G,données!$A:$A,Récapitulatif!$I$2,données!$E:$E,Récapitulatif!B12))=0,\"\",(SUMIFS(données!$F:$F,données!$A:$A,Récapitulatif!$I$2,données!$E:$E,Récapitulatif!B12)-(SUMIFS(données!$G:$G,données!$A:$A,Récapitulatif!$I$2,données!$E:$E,Récapitulatif!B12))))","v":""},{"$f":"IF(SUMIFS(données!$F:$F,données!$A:$A,Récapitulatif!$J$2,données!$E:$E,Récapitulatif!B12)-(SUMIFS(données!$G:$G,données!$A:$A,Récapitulatif!$J$2,données!$E:$E,Récapitulatif!B12))=0,\"\",(SUMIFS(données!$F:$F,données!$A:$A,Récapitulatif!$J$2,données!$E:$E,Récapitulatif!B12)-(SUMIFS(données!$G:$G,données!$A:$A,Récapitulatif!$J$2,données!$E:$E,Récapitulatif!B12))))","v":""},{"$f":"IF(SUMIFS(données!$F:$F,données!$A:$A,Récapitulatif!$K$2,données!$E:$E,Récapitulatif!B12)-(SUMIFS(données!$G:$G,données!$A:$A,Récapitulatif!$K$2,données!$E:$E,Récapitulatif!B12))=0,\"\",(SUMIFS(données!$F:$F,données!$A:$A,Récapitulatif!$K$2,données!$E:$E,Récapitulatif!B12)-(SUMIFS(données!$G:$G,données!$A:$A,Récapitulatif!$K$2,données!$E:$E,Récapitulatif!B12))))","v":""},{"$f":"IF(SUMIFS(données!$F:$F,données!$A:$A,Récapitulatif!$L$2,données!$E:$E,Récapitulatif!B12)-(SUMIFS(données!$G:$G,données!$A:$A,Récapitulatif!$L$2,données!$E:$E,Récapitulatif!B12))=0,\"\",(SUMIFS(données!$F:$F,données!$A:$A,Récapitulatif!$L$2,données!$E:$E,Récapitulatif!B12)-(SUMIFS(données!$G:$G,données!$A:$A,Récapitulatif!$L$2,données!$E:$E,Récapitulatif!B12))))","v":""},{"$f":"IF(SUMIFS(données!$F:$F,données!$A:$A,Récapitulatif!$M$2,données!$E:$E,Récapitulatif!B12)-(SUMIFS(données!$G:$G,données!$A:$A,Récapitulatif!$M$2,données!$E:$E,Récapitulatif!B12))=0,\"\",(SUMIFS(données!$F:$F,données!$A:$A,Récapitulatif!$M$2,données!$E:$E,Récapitulatif!B12)-(SUMIFS(données!$G:$G,données!$A:$A,Récapitulatif!$M$2,données!$E:$E,Récapitulatif!B12))))","v":""},{"$f":"IF(SUMIFS(données!$F:$F,données!$A:$A,Récapitulatif!$N$2,données!$E:$E,Récapitulatif!B12)-(SUMIFS(données!$G:$G,données!$A:$A,Récapitulatif!$N$2,données!$E:$E,Récapitulatif!B12))=0,\"\",(SUMIFS(données!$F:$F,données!$A:$A,Récapitulatif!$N$2,données!$E:$E,Récapitulatif!B12)-(SUMIFS(données!$G:$G,données!$A:$A,Récapitulatif!$N$2,données!$E:$E,Récapitulatif!B12))))","v":""},""]
[null,"GALTIER",{"$f":"IF(SUMIFS(données!$F:$F,données!$A:$A,Récapitulatif!$C$2,données!$E:$E,Récapitulatif!B13)-(SUMIFS(données!$G:$G,données!$A:$A,Récapitulatif!$C$2,données!$E:$E,Récapitulatif!B13))=0,\"\",(SUMIFS(données!$F:$F,données!$A:$A,Récapitulatif!$C$2,données!$E:$E,Récapitulatif!B13)-(SUMIFS(données!$G:$G,données!$A:$A,Récapitulatif!$C$2,données!$E:$E,Récapitulatif!B13))))","v":""},{"$f":"IF(SUMIFS(données!$F:$F,données!$A:$A,Récapitulatif!$D$2,données!$E:$E,Récapitulatif!B13)-(SUMIFS(données!$G:$G,données!$A:$A,Récapitulatif!$D$2,données!$E:$E,Récapitulatif!B13))=0,\"\",(SUMIFS(données!$F:$F,données!$A:$A,Récapitulatif!$D$2,données!$E:$E,Récapitulatif!B13)-(SUMIFS(données!$G:$G,données!$A:$A,Récapitulatif!$D$2,données!$E:$E,Récapitulatif!B13))))","v":""},{"$f":"IF(SUMIFS(données!$F:$F,données!$A:$A,Récapitulatif!$E$2,données!$E:$E,Récapitulatif!B13)-(SUMIFS(données!$G:$G,données!$A:$A,Récapitulatif!$E$2,données!$E:$E,Récapitulatif!B13))=0,\"\",(SUMIFS(données!$F:$F,données!$A:$A,Récapitulatif!$E$2,données!$E:$E,Récapitulatif!B13)-(SUMIFS(données!$G:$G,données!$A:$A,Récapitulatif!$E$2,données!$E:$E,Récapitulatif!B13))))","v":""},{"$f":"IF(SUMIFS(données!$F:$F,données!$A:$A,Récapitulatif!$F$2,données!$E:$E,Récapitulatif!B13)-(SUMIFS(données!$G:$G,données!$A:$A,Récapitulatif!$F$2,données!$E:$E,Récapitulatif!B13))=0,\"\",(SUMIFS(données!$F:$F,données!$A:$A,Récapitulatif!$F$2,données!$E:$E,Récapitulatif!B13)-(SUMIFS(données!$G:$G,données!$A:$A,Récapitulatif!$F$2,données!$E:$E,Récapitulatif!B13))))","v":""},{"$f":"IF(SUMIFS(données!$F:$F,données!$A:$A,Récapitulatif!$G$2,données!$E:$E,Récapitulatif!B13)-(SUMIFS(données!$G:$G,données!$A:$A,Récapitulatif!$G$2,données!$E:$E,Récapitulatif!B13))=0,\"\",(SUMIFS(données!$F:$F,données!$A:$A,Récapitulatif!$G$2,données!$E:$E,Récapitulatif!B13)-(SUMIFS(données!$G:$G,données!$A:$A,Récapitulatif!$G$2,données!$E:$E,Récapitulatif!B13))))","v":""},{"$f":"IF(SUMIFS(données!$F:$F,données!$A:$A,Récapitulatif!$H$2,données!$E:$E,Récapitulatif!B13)-(SUMIFS(données!$G:$G,données!$A:$A,Récapitulatif!$H$2,données!$E:$E,Récapitulatif!B13))=0,\"\",(SUMIFS(données!$F:$F,données!$A:$A,Récapitulatif!$H$2,données!$E:$E,Récapitulatif!B13)-(SUMIFS(données!$G:$G,données!$A:$A,Récapitulatif!$H$2,données!$E:$E,Récapitulatif!B13))))","v":""},{"$f":"IF(SUMIFS(données!$F:$F,données!$A:$A,Récapitulatif!$I$2,données!$E:$E,Récapitulatif!B13)-(SUMIFS(données!$G:$G,données!$A:$A,Récapitulatif!$I$2,données!$E:$E,Récapitulatif!B13))=0,\"\",(SUMIFS(données!$F:$F,données!$A:$A,Récapitulatif!$I$2,données!$E:$E,Récapitulatif!B13)-(SUMIFS(données!$G:$G,données!$A:$A,Récapitulatif!$I$2,données!$E:$E,Récapitulatif!B13))))","v":""},{"$f":"IF(SUMIFS(données!$F:$F,données!$A:$A,Récapitulatif!$J$2,données!$E:$E,Récapitulatif!B13)-(SUMIFS(données!$G:$G,données!$A:$A,Récapitulatif!$J$2,données!$E:$E,Récapitulatif!B13))=0,\"\",(SUMIFS(données!$F:$F,données!$A:$A,Récapitulatif!$J$2,données!$E:$E,Récapitulatif!B13)-(SUMIFS(données!$G:$G,données!$A:$A,Récapitulatif!$J$2,données!$E:$E,Récapitulatif!B13))))","v":""},{"$f":"IF(SUMIFS(données!$F:$F,données!$A:$A,Récapitulatif!$K$2,données!$E:$E,Récapitulatif!B13)-(SUMIFS(données!$G:$G,données!$A:$A,Récapitulatif!$K$2,données!$E:$E,Récapitulatif!B13))=0,\"\",(SUMIFS(données!$F:$F,données!$A:$A,Récapitulatif!$K$2,données!$E:$E,Récapitulatif!B13)-(SUMIFS(données!$G:$G,données!$A:$A,Récapitulatif!$K$2,données!$E:$E,Récapitulatif!B13))))","v":""},{"$f":"IF(SUMIFS(données!$F:$F,données!$A:$A,Récapitulatif!$L$2,données!$E:$E,Récapitulatif!B13)-(SUMIFS(données!$G:$G,données!$A:$A,Récapitulatif!$L$2,données!$E:$E,Récapitulatif!B13))=0,\"\",(SUMIFS(données!$F:$F,données!$A:$A,Récapitulatif!$L$2,données!$E:$E,Récapitulatif!B13)-(SUMIFS(données!$G:$G,données!$A:$A,Récapitulatif!$L$2,données!$E:$E,Récapitulatif!B13))))","v":""},{"$f":"IF(SUMIFS(données!$F:$F,données!$A:$A,Récapitulatif!$M$2,données!$E:$E,Récapitulatif!B13)-(SUMIFS(données!$G:$G,données!$A:$A,Récapitulatif!$M$2,données!$E:$E,Récapitulatif!B13))=0,\"\",(SUMIFS(données!$F:$F,données!$A:$A,Récapitulatif!$M$2,données!$E:$E,Récapitulatif!B13)-(SUMIFS(données!$G:$G,données!$A:$A,Récapitulatif!$M$2,données!$E:$E,Récapitulatif!B13))))","v":""},{"$f":"IF(SUMIFS(données!$F:$F,données!$A:$A,Récapitulatif!$N$2,données!$E:$E,Récapitulatif!B13)-(SUMIFS(données!$G:$G,données!$A:$A,Récapitulatif!$N$2,données!$E:$E,Récapitulatif!B13))=0,\"\",(SUMIFS(données!$F:$F,données!$A:$A,Récapitulatif!$N$2,données!$E:$E,Récapitulatif!B13)-(SUMIFS(données!$G:$G,données!$A:$A,Récapitulatif!$N$2,données!$E:$E,Récapitulatif!B13))))","v":""},""]
[null,"JAMMET",{"$f":"IF(SUMIFS(données!$F:$F,données!$A:$A,Récapitulatif!$C$2,données!$E:$E,Récapitulatif!B14)-(SUMIFS(données!$G:$G,données!$A:$A,Récapitulatif!$C$2,données!$E:$E,Récapitulatif!B14))=0,\"\",(SUMIFS(données!$F:$F,données!$A:$A,Récapitulatif!$C$2,données!$E:$E,Récapitulatif!B14)-(SUMIFS(données!$G:$G,données!$A:$A,Récapitulatif!$C$2,données!$E:$E,Récapitulatif!B14))))","v":""},{"$f":"IF(SUMIFS(données!$F:$F,données!$A:$A,Récapitulatif!$D$2,données!$E:$E,Récapitulatif!B14)-(SUMIFS(données!$G:$G,données!$A:$A,Récapitulatif!$D$2,données!$E:$E,Récapitulatif!B14))=0,\"\",(SUMIFS(données!$F:$F,données!$A:$A,Récapitulatif!$D$2,données!$E:$E,Récapitulatif!B14)-(SUMIFS(données!$G:$G,données!$A:$A,Récapitulatif!$D$2,données!$E:$E,Récapitulatif!B14))))","v":""},{"$f":"IF(SUMIFS(données!$F:$F,données!$A:$A,Récapitulatif!$E$2,données!$E:$E,Récapitulatif!B14)-(SUMIFS(données!$G:$G,données!$A:$A,Récapitulatif!$E$2,données!$E:$E,Récapitulatif!B14))=0,\"\",(SUMIFS(données!$F:$F,données!$A:$A,Récapitulatif!$E$2,données!$E:$E,Récapitulatif!B14)-(SUMIFS(données!$G:$G,données!$A:$A,Récapitulatif!$E$2,données!$E:$E,Récapitulatif!B14))))","v":""},{"$f":"IF(SUMIFS(données!$F:$F,données!$A:$A,Récapitulatif!$F$2,données!$E:$E,Récapitulatif!B14)-(SUMIFS(données!$G:$G,données!$A:$A,Récapitulatif!$F$2,données!$E:$E,Récapitulatif!B14))=0,\"\",(SUMIFS(données!$F:$F,données!$A:$A,Récapitulatif!$F$2,données!$E:$E,Récapitulatif!B14)-(SUMIFS(données!$G:$G,données!$A:$A,Récapitulatif!$F$2,données!$E:$E,Récapitulatif!B14))))","v":""},{"$f":"IF(SUMIFS(données!$F:$F,données!$A:$A,Récapitulatif!$G$2,données!$E:$E,Récapitulatif!B14)-(SUMIFS(données!$G:$G,données!$A:$A,Récapitulatif!$G$2,données!$E:$E,Récapitulatif!B14))=0,\"\",(SUMIFS(données!$F:$F,données!$A:$A,Récapitulatif!$G$2,données!$E:$E,Récapitulatif!B14)-(SUMIFS(données!$G:$G,données!$A:$A,Récapitulatif!$G$2,données!$E:$E,Récapitulatif!B14))))","v":""},{"$f":"IF(SUMIFS(données!$F:$F,données!$A:$A,Récapitulatif!$H$2,données!$E:$E,Récapitulatif!B14)-(SUMIFS(données!$G:$G,données!$A:$A,Récapitulatif!$H$2,données!$E:$E,Récapitulatif!B14))=0,\"\",(SUMIFS(données!$F:$F,données!$A:$A,Récapitulatif!$H$2,données!$E:$E,Récapitulatif!B14)-(SUMIFS(données!$G:$G,données!$A:$A,Récapitulatif!$H$2,données!$E:$E,Récapitulatif!B14))))","v":""},{"$f":"IF(SUMIFS(données!$F:$F,données!$A:$A,Récapitulatif!$I$2,données!$E:$E,Récapitulatif!B14)-(SUMIFS(données!$G:$G,données!$A:$A,Récapitulatif!$I$2,données!$E:$E,Récapitulatif!B14))=0,\"\",(SUMIFS(données!$F:$F,données!$A:$A,Récapitulatif!$I$2,données!$E:$E,Récapitulatif!B14)-(SUMIFS(données!$G:$G,données!$A:$A,Récapitulatif!$I$2,données!$E:$E,Récapitulatif!B14))))","v":""},{"$f":"IF(SUMIFS(données!$F:$F,données!$A:$A,Récapitulatif!$J$2,données!$E:$E,Récapitulatif!B14)-(SUMIFS(données!$G:$G,données!$A:$A,Récapitulatif!$J$2,données!$E:$E,Récapitulatif!B14))=0,\"\",(SUMIFS(données!$F:$F,données!$A:$A,Récapitulatif!$J$2,données!$E:$E,Récapitulatif!B14)-(SUMIFS(données!$G:$G,données!$A:$A,Récapitulatif!$J$2,données!$E:$E,Récapitulatif!B14))))","v":""},{"$f":"IF(SUMIFS(données!$F:$F,données!$A:$A,Récapitulatif!$K$2,données!$E:$E,Récapitulatif!B14)-(SUMIFS(données!$G:$G,données!$A:$A,Récapitulatif!$K$2,données!$E:$E,Récapitulatif!B14))=0,\"\",(SUMIFS(données!$F:$F,données!$A:$A,Récapitulatif!$K$2,données!$E:$E,Récapitulatif!B14)-(SUMIFS(données!$G:$G,données!$A:$A,Récapitulatif!$K$2,données!$E:$E,Récapitulatif!B14))))","v":""},{"$f":"IF(SUMIFS(données!$F:$F,données!$A:$A,Récapitulatif!$L$2,données!$E:$E,Récapitulatif!B14)-(SUMIFS(données!$G:$G,données!$A:$A,Récapitulatif!$L$2,données!$E:$E,Récapitulatif!B14))=0,\"\",(SUMIFS(données!$F:$F,données!$A:$A,Récapitulatif!$L$2,données!$E:$E,Récapitulatif!B14)-(SUMIFS(données!$G:$G,données!$A:$A,Récapitulatif!$L$2,données!$E:$E,Récapitulatif!B14))))","v":""},{"$f":"IF(SUMIFS(données!$F:$F,données!$A:$A,Récapitulatif!$M$2,données!$E:$E,Récapitulatif!B14)-(SUMIFS(données!$G:$G,données!$A:$A,Récapitulatif!$M$2,données!$E:$E,Récapitulatif!B14))=0,\"\",(SUMIFS(données!$F:$F,données!$A:$A,Récapitulatif!$M$2,données!$E:$E,Récapitulatif!B14)-(SUMIFS(données!$G:$G,données!$A:$A,Récapitulatif!$M$2,données!$E:$E,Récapitulatif!B14))))","v":""},{"$f":"IF(SUMIFS(données!$F:$F,données!$A:$A,Récapitulatif!$N$2,données!$E:$E,Récapitulatif!B14)-(SUMIFS(données!$G:$G,données!$A:$A,Récapitulatif!$N$2,données!$E:$E,Récapitulatif!B14))=0,\"\",(SUMIFS(données!$F:$F,données!$A:$A,Récapitulatif!$N$2,données!$E:$E,Récapitulatif!B14)-(SUMIFS(données!$G:$G,données!$A:$A,Récapitulatif!$N$2,données!$E:$E,Récapitulatif!B14))))","v":""},""]
[null,"KN33",{"$f":"IF(SUMIFS(données!$F:$F,données!$A:$A,Récapitulatif!$C$2,données!$E:$E,Récapitulatif!B15)-(SUMIFS(données!$G:$G,données!$A:$A,Récapitulatif!$C$2,données!$E:$E,Récapitulatif!B15))=0,\"\",(SUMIFS(données!$F:$F,données!$A:$A,Récapitulatif!$C$2,données!$E:$E,Récapitulatif!B15)-(SUMIFS(données!$G:$G,données!$A:$A,Récapitulatif!$C$2,données!$E:$E,Récapitulatif!B15))))","v":""},{"$f":"IF(SUMIFS(données!$F:$F,données!$A:$A,Récapitulatif!$D$2,données!$E:$E,Récapitulatif!B15)-(SUMIFS(données!$G:$G,données!$A:$A,Récapitulatif!$D$2,données!$E:$E,Récapitulatif!B15))=0,\"\",(SUMIFS(données!$F:$F,données!$A:$A,Récapitulatif!$D$2,données!$E:$E,Récapitulatif!B15)-(SUMIFS(données!$G:$G,données!$A:$A,Récapitulatif!$D$2,données!$E:$E,Récapitulatif!B15))))","v":""},{"$f":"IF(SUMIFS(données!$F:$F,données!$A:$A,Récapitulatif!$E$2,données!$E:$E,Récapitulatif!B15)-(SUMIFS(données!$G:$G,données!$A:$A,Récapitulatif!$E$2,données!$E:$E,Récapitulatif!B15))=0,\"\",(SUMIFS(données!$F:$F,données!$A:$A,Récapitulatif!$E$2,données!$E:$E,Récapitulatif!B15)-(SUMIFS(données!$G:$G,données!$A:$A,Récapitulatif!$E$2,données!$E:$E,Récapitulatif!B15))))","v":""},{"$f":"IF(SUMIFS(données!$F:$F,données!$A:$A,Récapitulatif!$F$2,données!$E:$E,Récapitulatif!B15)-(SUMIFS(données!$G:$G,données!$A:$A,Récapitulatif!$F$2,données!$E:$E,Récapitulatif!B15))=0,\"\",(SUMIFS(données!$F:$F,données!$A:$A,Récapitulatif!$F$2,données!$E:$E,Récapitulatif!B15)-(SUMIFS(données!$G:$G,données!$A:$A,Récapitulatif!$F$2,données!$E:$E,Récapitulatif!B15))))","v":""},{"$f":"IF(SUMIFS(données!$F:$F,données!$A:$A,Récapitulatif!$G$2,données!$E:$E,Récapitulatif!B15)-(SUMIFS(données!$G:$G,données!$A:$A,Récapitulatif!$G$2,données!$E:$E,Récapitulatif!B15))=0,\"\",(SUMIFS(données!$F:$F,données!$A:$A,Récapitulatif!$G$2,données!$E:$E,Récapitulatif!B15)-(SUMIFS(données!$G:$G,données!$A:$A,Récapitulatif!$G$2,données!$E:$E,Récapitulatif!B15))))","v":""},{"$f":"IF(SUMIFS(données!$F:$F,données!$A:$A,Récapitulatif!$H$2,données!$E:$E,Récapitulatif!B15)-(SUMIFS(données!$G:$G,données!$A:$A,Récapitulatif!$H$2,données!$E:$E,Récapitulatif!B15))=0,\"\",(SUMIFS(données!$F:$F,données!$A:$A,Récapitulatif!$H$2,données!$E:$E,Récapitulatif!B15)-(SUMIFS(données!$G:$G,données!$A:$A,Récapitulatif!$H$2,données!$E:$E,Récapitulatif!B15))))","v":""},{"$f":"IF(SUMIFS(données!$F:$F,données!$A:$A,Récapitulatif!$I$2,données!$E:$E,Récapitulatif!B15)-(SUMIFS(données!$G:$G,données!$A:$A,Récapitulatif!$I$2,données!$E:$E,Récapitulatif!B15))=0,\"\",(SUMIFS(données!$F:$F,données!$A:$A,Récapitulatif!$I$2,données!$E:$E,Récapitulatif!B15)-(SUMIFS(données!$G:$G,données!$A:$A,Récapitulatif!$I$2,données!$E:$E,Récapitulatif!B15))))","v":""},{"$f":"IF(SUMIFS(données!$F:$F,données!$A:$A,Récapitulatif!$J$2,données!$E:$E,Récapitulatif!B15)-(SUMIFS(données!$G:$G,données!$A:$A,Récapitulatif!$J$2,données!$E:$E,Récapitulatif!B15))=0,\"\",(SUMIFS(données!$F:$F,données!$A:$A,Récapitulatif!$J$2,données!$E:$E,Récapitulatif!B15)-(SUMIFS(données!$G:$G,données!$A:$A,Récapitulatif!$J$2,données!$E:$E,Récapitulatif!B15))))","v":""},{"$f":"IF(SUMIFS(données!$F:$F,données!$A:$A,Récapitulatif!$K$2,données!$E:$E,Récapitulatif!B15)-(SUMIFS(données!$G:$G,données!$A:$A,Récapitulatif!$K$2,données!$E:$E,Récapitulatif!B15))=0,\"\",(SUMIFS(données!$F:$F,données!$A:$A,Récapitulatif!$K$2,données!$E:$E,Récapitulatif!B15)-(SUMIFS(données!$G:$G,données!$A:$A,Récapitulatif!$K$2,données!$E:$E,Récapitulatif!B15))))","v":""},{"$f":"IF(SUMIFS(données!$F:$F,données!$A:$A,Récapitulatif!$L$2,données!$E:$E,Récapitulatif!B15)-(SUMIFS(données!$G:$G,données!$A:$A,Récapitulatif!$L$2,données!$E:$E,Récapitulatif!B15))=0,\"\",(SUMIFS(données!$F:$F,données!$A:$A,Récapitulatif!$L$2,données!$E:$E,Récapitulatif!B15)-(SUMIFS(données!$G:$G,données!$A:$A,Récapitulatif!$L$2,données!$E:$E,Récapitulatif!B15))))","v":""},{"$f":"IF(SUMIFS(données!$F:$F,données!$A:$A,Récapitulatif!$M$2,données!$E:$E,Récapitulatif!B15)-(SUMIFS(données!$G:$G,données!$A:$A,Récapitulatif!$M$2,données!$E:$E,Récapitulatif!B15))=0,\"\",(SUMIFS(données!$F:$F,données!$A:$A,Récapitulatif!$M$2,données!$E:$E,Récapitulatif!B15)-(SUMIFS(données!$G:$G,données!$A:$A,Récapitulatif!$M$2,données!$E:$E,Récapitulatif!B15))))","v":""},{"$f":"IF(SUMIFS(données!$F:$F,données!$A:$A,Récapitulatif!$N$2,données!$E:$E,Récapitulatif!B15)-(SUMIFS(données!$G:$G,données!$A:$A,Récapitulatif!$N$2,données!$E:$E,Récapitulatif!B15))=0,\"\",(SUMIFS(données!$F:$F,données!$A:$A,Récapitulatif!$N$2,données!$E:$E,Récapitulatif!B15)-(SUMIFS(données!$G:$G,données!$A:$A,Récapitulatif!$N$2,données!$E:$E,Récapitulatif!B15))))","v":""},""]
[null,"KN44",{"$f":"IF(SUMIFS(données!$F:$F,données!$A:$A,Récapitulatif!$C$2,données!$E:$E,Récapitulatif!B16)-(SUMIFS(données!$G:$G,données!$A:$A,Récapitulatif!$C$2,données!$E:$E,Récapitulatif!B16))=0,\"\",(SUMIFS(données!$F:$F,données!$A:$A,Récapitulatif!$C$2,données!$E:$E,Récapitulatif!B16)-(SUMIFS(données!$G:$G,données!$A:$A,Récapitulatif!$C$2,données!$E:$E,Récapitulatif!B16))))","v":""},{"$f":"IF(SUMIFS(données!$F:$F,données!$A:$A,Récapitulatif!$D$2,données!$E:$E,Récapitulatif!B16)-(SUMIFS(données!$G:$G,données!$A:$A,Récapitulatif!$D$2,données!$E:$E,Récapitulatif!B16))=0,\"\",(SUMIFS(données!$F:$F,données!$A:$A,Récapitulatif!$D$2,données!$E:$E,Récapitulatif!B16)-(SUMIFS(données!$G:$G,données!$A:$A,Récapitulatif!$D$2,données!$E:$E,Récapitulatif!B16))))","v":""},{"$f":"IF(SUMIFS(données!$F:$F,données!$A:$A,Récapitulatif!$E$2,données!$E:$E,Récapitulatif!B16)-(SUMIFS(données!$G:$G,données!$A:$A,Récapitulatif!$E$2,données!$E:$E,Récapitulatif!B16))=0,\"\",(SUMIFS(données!$F:$F,données!$A:$A,Récapitulatif!$E$2,données!$E:$E,Récapitulatif!B16)-(SUMIFS(données!$G:$G,données!$A:$A,Récapitulatif!$E$2,données!$E:$E,Récapitulatif!B16))))","v":""},{"$f":"IF(SUMIFS(données!$F:$F,données!$A:$A,Récapitulatif!$F$2,données!$E:$E,Récapitulatif!B16)-(SUMIFS(données!$G:$G,données!$A:$A,Récapitulatif!$F$2,données!$E:$E,Récapitulatif!B16))=0,\"\",(SUMIFS(données!$F:$F,données!$A:$A,Récapitulatif!$F$2,données!$E:$E,Récapitulatif!B16)-(SUMIFS(données!$G:$G,données!$A:$A,Récapitulatif!$F$2,données!$E:$E,Récapitulatif!B16))))","v":""},{"$f":"IF(SUMIFS(données!$F:$F,données!$A:$A,Récapitulatif!$G$2,données!$E:$E,Récapitulatif!B16)-(SUMIFS(données!$G:$G,données!$A:$A,Récapitulatif!$G$2,données!$E:$E,Récapitulatif!B16))=0,\"\",(SUMIFS(données!$F:$F,données!$A:$A,Récapitulatif!$G$2,données!$E:$E,Récapitulatif!B16)-(SUMIFS(données!$G:$G,données!$A:$A,Récapitulatif!$G$2,données!$E:$E,Récapitulatif!B16))))","v":""},{"$f":"IF(SUMIFS(données!$F:$F,données!$A:$A,Récapitulatif!$H$2,données!$E:$E,Récapitulatif!B16)-(SUMIFS(données!$G:$G,données!$A:$A,Récapitulatif!$H$2,données!$E:$E,Récapitulatif!B16))=0,\"\",(SUMIFS(données!$F:$F,données!$A:$A,Récapitulatif!$H$2,données!$E:$E,Récapitulatif!B16)-(SUMIFS(données!$G:$G,données!$A:$A,Récapitulatif!$H$2,données!$E:$E,Récapitulatif!B16))))","v":""},{"$f":"IF(SUMIFS(données!$F:$F,données!$A:$A,Récapitulatif!$I$2,données!$E:$E,Récapitulatif!B16)-(SUMIFS(données!$G:$G,données!$A:$A,Récapitulatif!$I$2,données!$E:$E,Récapitulatif!B16))=0,\"\",(SUMIFS(données!$F:$F,données!$A:$A,Récapitulatif!$I$2,données!$E:$E,Récapitulatif!B16)-(SUMIFS(données!$G:$G,données!$A:$A,Récapitulatif!$I$2,données!$E:$E,Récapitulatif!B16))))","v":""},{"$f":"IF(SUMIFS(données!$F:$F,données!$A:$A,Récapitulatif!$J$2,données!$E:$E,Récapitulatif!B16)-(SUMIFS(données!$G:$G,données!$A:$A,Récapitulatif!$J$2,données!$E:$E,Récapitulatif!B16))=0,\"\",(SUMIFS(données!$F:$F,données!$A:$A,Récapitulatif!$J$2,données!$E:$E,Récapitulatif!B16)-(SUMIFS(données!$G:$G,données!$A:$A,Récapitulatif!$J$2,données!$E:$E,Récapitulatif!B16))))","v":""},{"$f":"IF(SUMIFS(données!$F:$F,données!$A:$A,Récapitulatif!$K$2,données!$E:$E,Récapitulatif!B16)-(SUMIFS(données!$G:$G,données!$A:$A,Récapitulatif!$K$2,données!$E:$E,Récapitulatif!B16))=0,\"\",(SUMIFS(données!$F:$F,données!$A:$A,Récapitulatif!$K$2,données!$E:$E,Récapitulatif!B16)-(SUMIFS(données!$G:$G,données!$A:$A,Récapitulatif!$K$2,données!$E:$E,Récapitulatif!B16))))","v":""},{"$f":"IF(SUMIFS(données!$F:$F,données!$A:$A,Récapitulatif!$L$2,données!$E:$E,Récapitulatif!B16)-(SUMIFS(données!$G:$G,données!$A:$A,Récapitulatif!$L$2,données!$E:$E,Récapitulatif!B16))=0,\"\",(SUMIFS(données!$F:$F,données!$A:$A,Récapitulatif!$L$2,données!$E:$E,Récapitulatif!B16)-(SUMIFS(données!$G:$G,données!$A:$A,Récapitulatif!$L$2,données!$E:$E,Récapitulatif!B16))))","v":""},{"$f":"IF(SUMIFS(données!$F:$F,données!$A:$A,Récapitulatif!$M$2,données!$E:$E,Récapitulatif!B16)-(SUMIFS(données!$G:$G,données!$A:$A,Récapitulatif!$M$2,données!$E:$E,Récapitulatif!B16))=0,\"\",(SUMIFS(données!$F:$F,données!$A:$A,Récapitulatif!$M$2,données!$E:$E,Récapitulatif!B16)-(SUMIFS(données!$G:$G,données!$A:$A,Récapitulatif!$M$2,données!$E:$E,Récapitulatif!B16))))","v":""},{"$f":"IF(SUMIFS(données!$F:$F,données!$A:$A,Récapitulatif!$N$2,données!$E:$E,Récapitulatif!B16)-(SUMIFS(données!$G:$G,données!$A:$A,Récapitulatif!$N$2,données!$E:$E,Récapitulatif!B16))=0,\"\",(SUMIFS(données!$F:$F,données!$A:$A,Récapitulatif!$N$2,données!$E:$E,Récapitulatif!B16)-(SUMIFS(données!$G:$G,données!$A:$A,Récapitulatif!$N$2,données!$E:$E,Récapitulatif!B16))))","v":""},""]
[null,"LA LAURAGAISE",{"$f":"IF(SUMIFS(données!$F:$F,données!$A:$A,Récapitulatif!$C$2,données!$E:$E,Récapitulatif!B17)-(SUMIFS(données!$G:$G,données!$A:$A,Récapitulatif!$C$2,données!$E:$E,Récapitulatif!B17))=0,\"\",(SUMIFS(données!$F:$F,données!$A:$A,Récapitulatif!$C$2,données!$E:$E,Récapitulatif!B17)-(SUMIFS(données!$G:$G,données!$A:$A,Récapitulatif!$C$2,données!$E:$E,Récapitulatif!B17))))","v":""},{"$f":"IF(SUMIFS(données!$F:$F,données!$A:$A,Récapitulatif!$D$2,données!$E:$E,Récapitulatif!B17)-(SUMIFS(données!$G:$G,données!$A:$A,Récapitulatif!$D$2,données!$E:$E,Récapitulatif!B17))=0,\"\",(SUMIFS(données!$F:$F,données!$A:$A,Récapitulatif!$D$2,données!$E:$E,Récapitulatif!B17)-(SUMIFS(données!$G:$G,données!$A:$A,Récapitulatif!$D$2,données!$E:$E,Récapitulatif!B17))))","v":""},{"$f":"IF(SUMIFS(données!$F:$F,données!$A:$A,Récapitulatif!$E$2,données!$E:$E,Récapitulatif!B17)-(SUMIFS(données!$G:$G,données!$A:$A,Récapitulatif!$E$2,données!$E:$E,Récapitulatif!B17))=0,\"\",(SUMIFS(données!$F:$F,données!$A:$A,Récapitulatif!$E$2,données!$E:$E,Récapitulatif!B17)-(SUMIFS(données!$G:$G,données!$A:$A,Récapitulatif!$E$2,données!$E:$E,Récapitulatif!B17))))","v":""},{"$f":"IF(SUMIFS(données!$F:$F,données!$A:$A,Récapitulatif!$F$2,données!$E:$E,Récapitulatif!B17)-(SUMIFS(données!$G:$G,données!$A:$A,Récapitulatif!$F$2,données!$E:$E,Récapitulatif!B17))=0,\"\",(SUMIFS(données!$F:$F,données!$A:$A,Récapitulatif!$F$2,données!$E:$E,Récapitulatif!B17)-(SUMIFS(données!$G:$G,données!$A:$A,Récapitulatif!$F$2,données!$E:$E,Récapitulatif!B17))))","v":""},{"$f":"IF(SUMIFS(données!$F:$F,données!$A:$A,Récapitulatif!$G$2,données!$E:$E,Récapitulatif!B17)-(SUMIFS(données!$G:$G,données!$A:$A,Récapitulatif!$G$2,données!$E:$E,Récapitulatif!B17))=0,\"\",(SUMIFS(données!$F:$F,données!$A:$A,Récapitulatif!$G$2,données!$E:$E,Récapitulatif!B17)-(SUMIFS(données!$G:$G,données!$A:$A,Récapitulatif!$G$2,données!$E:$E,Récapitulatif!B17))))","v":""},{"$f":"IF(SUMIFS(données!$F:$F,données!$A:$A,Récapitulatif!$H$2,données!$E:$E,Récapitulatif!B17)-(SUMIFS(données!$G:$G,données!$A:$A,Récapitulatif!$H$2,données!$E:$E,Récapitulatif!B17))=0,\"\",(SUMIFS(données!$F:$F,données!$A:$A,Récapitulatif!$H$2,données!$E:$E,Récapitulatif!B17)-(SUMIFS(données!$G:$G,données!$A:$A,Récapitulatif!$H$2,données!$E:$E,Récapitulatif!B17))))","v":""},{"$f":"IF(SUMIFS(données!$F:$F,données!$A:$A,Récapitulatif!$I$2,données!$E:$E,Récapitulatif!B17)-(SUMIFS(données!$G:$G,données!$A:$A,Récapitulatif!$I$2,données!$E:$E,Récapitulatif!B17))=0,\"\",(SUMIFS(données!$F:$F,données!$A:$A,Récapitulatif!$I$2,données!$E:$E,Récapitulatif!B17)-(SUMIFS(données!$G:$G,données!$A:$A,Récapitulatif!$I$2,données!$E:$E,Récapitulatif!B17))))","v":""},{"$f":"IF(SUMIFS(données!$F:$F,données!$A:$A,Récapitulatif!$J$2,données!$E:$E,Récapitulatif!B17)-(SUMIFS(données!$G:$G,données!$A:$A,Récapitulatif!$J$2,données!$E:$E,Récapitulatif!B17))=0,\"\",(SUMIFS(données!$F:$F,données!$A:$A,Récapitulatif!$J$2,données!$E:$E,Récapitulatif!B17)-(SUMIFS(données!$G:$G,données!$A:$A,Récapitulatif!$J$2,données!$E:$E,Récapitulatif!B17))))","v":""},{"$f":"IF(SUMIFS(données!$F:$F,données!$A:$A,Récapitulatif!$K$2,données!$E:$E,Récapitulatif!B17)-(SUMIFS(données!$G:$G,données!$A:$A,Récapitulatif!$K$2,données!$E:$E,Récapitulatif!B17))=0,\"\",(SUMIFS(données!$F:$F,données!$A:$A,Récapitulatif!$K$2,données!$E:$E,Récapitulatif!B17)-(SUMIFS(données!$G:$G,données!$A:$A,Récapitulatif!$K$2,données!$E:$E,Récapitulatif!B17))))","v":""},{"$f":"IF(SUMIFS(données!$F:$F,données!$A:$A,Récapitulatif!$L$2,données!$E:$E,Récapitulatif!B17)-(SUMIFS(données!$G:$G,données!$A:$A,Récapitulatif!$L$2,données!$E:$E,Récapitulatif!B17))=0,\"\",(SUMIFS(données!$F:$F,données!$A:$A,Récapitulatif!$L$2,données!$E:$E,Récapitulatif!B17)-(SUMIFS(données!$G:$G,données!$A:$A,Récapitulatif!$L$2,données!$E:$E,Récapitulatif!B17))))","v":""},{"$f":"IF(SUMIFS(données!$F:$F,données!$A:$A,Récapitulatif!$M$2,données!$E:$E,Récapitulatif!B17)-(SUMIFS(données!$G:$G,données!$A:$A,Récapitulatif!$M$2,données!$E:$E,Récapitulatif!B17))=0,\"\",(SUMIFS(données!$F:$F,données!$A:$A,Récapitulatif!$M$2,données!$E:$E,Récapitulatif!B17)-(SUMIFS(données!$G:$G,données!$A:$A,Récapitulatif!$M$2,données!$E:$E,Récapitulatif!B17))))","v":""},{"$f":"IF(SUMIFS(données!$F:$F,données!$A:$A,Récapitulatif!$N$2,données!$E:$E,Récapitulatif!B17)-(SUMIFS(données!$G:$G,données!$A:$A,Récapitulatif!$N$2,données!$E:$E,Récapitulatif!B17))=0,\"\",(SUMIFS(données!$F:$F,données!$A:$A,Récapitulatif!$N$2,données!$E:$E,Récapitulatif!B17)-(SUMIFS(données!$G:$G,données!$A:$A,Récapitulatif!$N$2,données!$E:$E,Récapitulatif!B17))))","v":""},""]
[null,"LADOUX",{"$f":"IF(SUMIFS(données!$F:$F,données!$A:$A,Récapitulatif!$C$2,données!$E:$E,Récapitulatif!B18)-(SUMIFS(données!$G:$G,données!$A:$A,Récapitulatif!$C$2,données!$E:$E,Récapitulatif!B18))=0,\"\",(SUMIFS(données!$F:$F,données!$A:$A,Récapitulatif!$C$2,données!$E:$E,Récapitulatif!B18)-(SUMIFS(données!$G:$G,données!$A:$A,Récapitulatif!$C$2,données!$E:$E,Récapitulatif!B18))))","v":""},{"$f":"IF(SUMIFS(données!$F:$F,données!$A:$A,Récapitulatif!$D$2,données!$E:$E,Récapitulatif!B18)-(SUMIFS(données!$G:$G,données!$A:$A,Récapitulatif!$D$2,données!$E:$E,Récapitulatif!B18))=0,\"\",(SUMIFS(données!$F:$F,données!$A:$A,Récapitulatif!$D$2,données!$E:$E,Récapitulatif!B18)-(SUMIFS(données!$G:$G,données!$A:$A,Récapitulatif!$D$2,données!$E:$E,Récapitulatif!B18))))","v":""},{"$f":"IF(SUMIFS(données!$F:$F,données!$A:$A,Récapitulatif!$E$2,données!$E:$E,Récapitulatif!B18)-(SUMIFS(données!$G:$G,données!$A:$A,Récapitulatif!$E$2,données!$E:$E,Récapitulatif!B18))=0,\"\",(SUMIFS(données!$F:$F,données!$A:$A,Récapitulatif!$E$2,données!$E:$E,Récapitulatif!B18)-(SUMIFS(données!$G:$G,données!$A:$A,Récapitulatif!$E$2,données!$E:$E,Récapitulatif!B18))))","v":""},{"$f":"IF(SUMIFS(données!$F:$F,données!$A:$A,Récapitulatif!$F$2,données!$E:$E,Récapitulatif!B18)-(SUMIFS(données!$G:$G,données!$A:$A,Récapitulatif!$F$2,données!$E:$E,Récapitulatif!B18))=0,\"\",(SUMIFS(données!$F:$F,données!$A:$A,Récapitulatif!$F$2,données!$E:$E,Récapitulatif!B18)-(SUMIFS(données!$G:$G,données!$A:$A,Récapitulatif!$F$2,données!$E:$E,Récapitulatif!B18))))","v":""},{"$f":"IF(SUMIFS(données!$F:$F,données!$A:$A,Récapitulatif!$G$2,données!$E:$E,Récapitulatif!B18)-(SUMIFS(données!$G:$G,données!$A:$A,Récapitulatif!$G$2,données!$E:$E,Récapitulatif!B18))=0,\"\",(SUMIFS(données!$F:$F,données!$A:$A,Récapitulatif!$G$2,données!$E:$E,Récapitulatif!B18)-(SUMIFS(données!$G:$G,données!$A:$A,Récapitulatif!$G$2,données!$E:$E,Récapitulatif!B18))))","v":""},{"$f":"IF(SUMIFS(données!$F:$F,données!$A:$A,Récapitulatif!$H$2,données!$E:$E,Récapitulatif!B18)-(SUMIFS(données!$G:$G,données!$A:$A,Récapitulatif!$H$2,données!$E:$E,Récapitulatif!B18))=0,\"\",(SUMIFS(données!$F:$F,données!$A:$A,Récapitulatif!$H$2,données!$E:$E,Récapitulatif!B18)-(SUMIFS(données!$G:$G,données!$A:$A,Récapitulatif!$H$2,données!$E:$E,Récapitulatif!B18))))","v":""},{"$f":"IF(SUMIFS(données!$F:$F,données!$A:$A,Récapitulatif!$I$2,données!$E:$E,Récapitulatif!B18)-(SUMIFS(données!$G:$G,données!$A:$A,Récapitulatif!$I$2,données!$E:$E,Récapitulatif!B18))=0,\"\",(SUMIFS(données!$F:$F,données!$A:$A,Récapitulatif!$I$2,données!$E:$E,Récapitulatif!B18)-(SUMIFS(données!$G:$G,données!$A:$A,Récapitulatif!$I$2,données!$E:$E,Récapitulatif!B18))))","v":""},{"$f":"IF(SUMIFS(données!$F:$F,données!$A:$A,Récapitulatif!$J$2,données!$E:$E,Récapitulatif!B18)-(SUMIFS(données!$G:$G,données!$A:$A,Récapitulatif!$J$2,données!$E:$E,Récapitulatif!B18))=0,\"\",(SUMIFS(données!$F:$F,données!$A:$A,Récapitulatif!$J$2,données!$E:$E,Récapitulatif!B18)-(SUMIFS(données!$G:$G,données!$A:$A,Récapitulatif!$J$2,données!$E:$E,Récapitulatif!B18))))","v":""},{"$f":"IF(SUMIFS(données!$F:$F,données!$A:$A,Récapitulatif!$K$2,données!$E:$E,Récapitulatif!B18)-(SUMIFS(données!$G:$G,données!$A:$A,Récapitulatif!$K$2,données!$E:$E,Récapitulatif!B18))=0,\"\",(SUMIFS(données!$F:$F,données!$A:$A,Récapitulatif!$K$2,données!$E:$E,Récapitulatif!B18)-(SUMIFS(données!$G:$G,données!$A:$A,Récapitulatif!$K$2,données!$E:$E,Récapitulatif!B18))))","v":""},{"$f":"IF(SUMIFS(données!$F:$F,données!$A:$A,Récapitulatif!$L$2,données!$E:$E,Récapitulatif!B18)-(SUMIFS(données!$G:$G,données!$A:$A,Récapitulatif!$L$2,données!$E:$E,Récapitulatif!B18))=0,\"\",(SUMIFS(données!$F:$F,données!$A:$A,Récapitulatif!$L$2,données!$E:$E,Récapitulatif!B18)-(SUMIFS(données!$G:$G,données!$A:$A,Récapitulatif!$L$2,données!$E:$E,Récapitulatif!B18))))","v":""},{"$f":"IF(SUMIFS(données!$F:$F,données!$A:$A,Récapitulatif!$M$2,données!$E:$E,Récapitulatif!B18)-(SUMIFS(données!$G:$G,données!$A:$A,Récapitulatif!$M$2,données!$E:$E,Récapitulatif!B18))=0,\"\",(SUMIFS(données!$F:$F,données!$A:$A,Récapitulatif!$M$2,données!$E:$E,Récapitulatif!B18)-(SUMIFS(données!$G:$G,données!$A:$A,Récapitulatif!$M$2,données!$E:$E,Récapitulatif!B18))))","v":""},{"$f":"IF(SUMIFS(données!$F:$F,données!$A:$A,Récapitulatif!$N$2,données!$E:$E,Récapitulatif!B18)-(SUMIFS(données!$G:$G,données!$A:$A,Récapitulatif!$N$2,données!$E:$E,Récapitulatif!B18))=0,\"\",(SUMIFS(données!$F:$F,données!$A:$A,Récapitulatif!$N$2,données!$E:$E,Récapitulatif!B18)-(SUMIFS(données!$G:$G,données!$A:$A,Récapitulatif!$N$2,données!$E:$E,Récapitulatif!B18))))","v":""},""]
[null,"LAUQUE",{"$f":"IF(SUMIFS(données!$F:$F,données!$A:$A,Récapitulatif!$C$2,données!$E:$E,Récapitulatif!B19)-(SUMIFS(données!$G:$G,données!$A:$A,Récapitulatif!$C$2,données!$E:$E,Récapitulatif!B19))=0,\"\",(SUMIFS(données!$F:$F,données!$A:$A,Récapitulatif!$C$2,données!$E:$E,Récapitulatif!B19)-(SUMIFS(données!$G:$G,données!$A:$A,Récapitulatif!$C$2,données!$E:$E,Récapitulatif!B19))))","v":""},{"$f":"IF(SUMIFS(données!$F:$F,données!$A:$A,Récapitulatif!$D$2,données!$E:$E,Récapitulatif!B19)-(SUMIFS(données!$G:$G,données!$A:$A,Récapitulatif!$D$2,données!$E:$E,Récapitulatif!B19))=0,\"\",(SUMIFS(données!$F:$F,données!$A:$A,Récapitulatif!$D$2,données!$E:$E,Récapitulatif!B19)-(SUMIFS(données!$G:$G,données!$A:$A,Récapitulatif!$D$2,données!$E:$E,Récapitulatif!B19))))","v":""},{"$f":"IF(SUMIFS(données!$F:$F,données!$A:$A,Récapitulatif!$E$2,données!$E:$E,Récapitulatif!B19)-(SUMIFS(données!$G:$G,données!$A:$A,Récapitulatif!$E$2,données!$E:$E,Récapitulatif!B19))=0,\"\",(SUMIFS(données!$F:$F,données!$A:$A,Récapitulatif!$E$2,données!$E:$E,Récapitulatif!B19)-(SUMIFS(données!$G:$G,données!$A:$A,Récapitulatif!$E$2,données!$E:$E,Récapitulatif!B19))))","v":""},{"$f":"IF(SUMIFS(données!$F:$F,données!$A:$A,Récapitulatif!$F$2,données!$E:$E,Récapitulatif!B19)-(SUMIFS(données!$G:$G,données!$A:$A,Récapitulatif!$F$2,données!$E:$E,Récapitulatif!B19))=0,\"\",(SUMIFS(données!$F:$F,données!$A:$A,Récapitulatif!$F$2,données!$E:$E,Récapitulatif!B19)-(SUMIFS(données!$G:$G,données!$A:$A,Récapitulatif!$F$2,données!$E:$E,Récapitulatif!B19))))","v":""},{"$f":"IF(SUMIFS(données!$F:$F,données!$A:$A,Récapitulatif!$G$2,données!$E:$E,Récapitulatif!B19)-(SUMIFS(données!$G:$G,données!$A:$A,Récapitulatif!$G$2,données!$E:$E,Récapitulatif!B19))=0,\"\",(SUMIFS(données!$F:$F,données!$A:$A,Récapitulatif!$G$2,données!$E:$E,Récapitulatif!B19)-(SUMIFS(données!$G:$G,données!$A:$A,Récapitulatif!$G$2,données!$E:$E,Récapitulatif!B19))))","v":""},{"$f":"IF(SUMIFS(données!$F:$F,données!$A:$A,Récapitulatif!$H$2,données!$E:$E,Récapitulatif!B19)-(SUMIFS(données!$G:$G,données!$A:$A,Récapitulatif!$H$2,données!$E:$E,Récapitulatif!B19))=0,\"\",(SUMIFS(données!$F:$F,données!$A:$A,Récapitulatif!$H$2,données!$E:$E,Récapitulatif!B19)-(SUMIFS(données!$G:$G,données!$A:$A,Récapitulatif!$H$2,données!$E:$E,Récapitulatif!B19))))","v":""},{"$f":"IF(SUMIFS(données!$F:$F,données!$A:$A,Récapitulatif!$I$2,données!$E:$E,Récapitulatif!B19)-(SUMIFS(données!$G:$G,données!$A:$A,Récapitulatif!$I$2,données!$E:$E,Récapitulatif!B19))=0,\"\",(SUMIFS(données!$F:$F,données!$A:$A,Récapitulatif!$I$2,données!$E:$E,Récapitulatif!B19)-(SUMIFS(données!$G:$G,données!$A:$A,Récapitulatif!$I$2,données!$E:$E,Récapitulatif!B19))))","v":""},{"$f":"IF(SUMIFS(données!$F:$F,données!$A:$A,Récapitulatif!$J$2,données!$E:$E,Récapitulatif!B19)-(SUMIFS(données!$G:$G,données!$A:$A,Récapitulatif!$J$2,données!$E:$E,Récapitulatif!B19))=0,\"\",(SUMIFS(données!$F:$F,données!$A:$A,Récapitulatif!$J$2,données!$E:$E,Récapitulatif!B19)-(SUMIFS(données!$G:$G,données!$A:$A,Récapitulatif!$J$2,données!$E:$E,Récapitulatif!B19))))","v":""},{"$f":"IF(SUMIFS(données!$F:$F,données!$A:$A,Récapitulatif!$K$2,données!$E:$E,Récapitulatif!B19)-(SUMIFS(données!$G:$G,données!$A:$A,Récapitulatif!$K$2,données!$E:$E,Récapitulatif!B19))=0,\"\",(SUMIFS(données!$F:$F,données!$A:$A,Récapitulatif!$K$2,données!$E:$E,Récapitulatif!B19)-(SUMIFS(données!$G:$G,données!$A:$A,Récapitulatif!$K$2,données!$E:$E,Récapitulatif!B19))))","v":""},{"$f":"IF(SUMIFS(données!$F:$F,données!$A:$A,Récapitulatif!$L$2,données!$E:$E,Récapitulatif!B19)-(SUMIFS(données!$G:$G,données!$A:$A,Récapitulatif!$L$2,données!$E:$E,Récapitulatif!B19))=0,\"\",(SUMIFS(données!$F:$F,données!$A:$A,Récapitulatif!$L$2,données!$E:$E,Récapitulatif!B19)-(SUMIFS(données!$G:$G,données!$A:$A,Récapitulatif!$L$2,données!$E:$E,Récapitulatif!B19))))","v":""},{"$f":"IF(SUMIFS(données!$F:$F,données!$A:$A,Récapitulatif!$M$2,données!$E:$E,Récapitulatif!B19)-(SUMIFS(données!$G:$G,données!$A:$A,Récapitulatif!$M$2,données!$E:$E,Récapitulatif!B19))=0,\"\",(SUMIFS(données!$F:$F,données!$A:$A,Récapitulatif!$M$2,données!$E:$E,Récapitulatif!B19)-(SUMIFS(données!$G:$G,données!$A:$A,Récapitulatif!$M$2,données!$E:$E,Récapitulatif!B19))))","v":""},{"$f":"IF(SUMIFS(données!$F:$F,données!$A:$A,Récapitulatif!$N$2,données!$E:$E,Récapitulatif!B19)-(SUMIFS(données!$G:$G,données!$A:$A,Récapitulatif!$N$2,données!$E:$E,Récapitulatif!B19))=0,\"\",(SUMIFS(données!$F:$F,données!$A:$A,Récapitulatif!$N$2,données!$E:$E,Récapitulatif!B19)-(SUMIFS(données!$G:$G,données!$A:$A,Récapitulatif!$N$2,données!$E:$E,Récapitulatif!B19))))","v":""},""]
[null,"L'OURS BLANC",{"$f":"IF(SUMIFS(données!$F:$F,données!$A:$A,Récapitulatif!$C$2,données!$E:$E,Récapitulatif!B20)-(SUMIFS(données!$G:$G,données!$A:$A,Récapitulatif!$C$2,données!$E:$E,Récapitulatif!B20))=0,\"\",(SUMIFS(données!$F:$F,données!$A:$A,Récapitulatif!$C$2,données!$E:$E,Récapitulatif!B20)-(SUMIFS(données!$G:$G,données!$A:$A,Récapitulatif!$C$2,données!$E:$E,Récapitulatif!B20))))","v":""},{"$f":"IF(SUMIFS(données!$F:$F,données!$A:$A,Récapitulatif!$D$2,données!$E:$E,Récapitulatif!B20)-(SUMIFS(données!$G:$G,données!$A:$A,Récapitulatif!$D$2,données!$E:$E,Récapitulatif!B20))=0,\"\",(SUMIFS(données!$F:$F,données!$A:$A,Récapitulatif!$D$2,données!$E:$E,Récapitulatif!B20)-(SUMIFS(données!$G:$G,données!$A:$A,Récapitulatif!$D$2,données!$E:$E,Récapitulatif!B20))))","v":""},{"$f":"IF(SUMIFS(données!$F:$F,données!$A:$A,Récapitulatif!$E$2,données!$E:$E,Récapitulatif!B20)-(SUMIFS(données!$G:$G,données!$A:$A,Récapitulatif!$E$2,données!$E:$E,Récapitulatif!B20))=0,\"\",(SUMIFS(données!$F:$F,données!$A:$A,Récapitulatif!$E$2,données!$E:$E,Récapitulatif!B20)-(SUMIFS(données!$G:$G,données!$A:$A,Récapitulatif!$E$2,données!$E:$E,Récapitulatif!B20))))","v":""},{"$f":"IF(SUMIFS(données!$F:$F,données!$A:$A,Récapitulatif!$F$2,données!$E:$E,Récapitulatif!B20)-(SUMIFS(données!$G:$G,données!$A:$A,Récapitulatif!$F$2,données!$E:$E,Récapitulatif!B20))=0,\"\",(SUMIFS(données!$F:$F,données!$A:$A,Récapitulatif!$F$2,données!$E:$E,Récapitulatif!B20)-(SUMIFS(données!$G:$G,données!$A:$A,Récapitulatif!$F$2,données!$E:$E,Récapitulatif!B20))))","v":""},{"$f":"IF(SUMIFS(données!$F:$F,données!$A:$A,Récapitulatif!$G$2,données!$E:$E,Récapitulatif!B20)-(SUMIFS(données!$G:$G,données!$A:$A,Récapitulatif!$G$2,données!$E:$E,Récapitulatif!B20))=0,\"\",(SUMIFS(données!$F:$F,données!$A:$A,Récapitulatif!$G$2,données!$E:$E,Récapitulatif!B20)-(SUMIFS(données!$G:$G,données!$A:$A,Récapitulatif!$G$2,données!$E:$E,Récapitulatif!B20))))","v":""},{"$f":"IF(SUMIFS(données!$F:$F,données!$A:$A,Récapitulatif!$H$2,données!$E:$E,Récapitulatif!B20)-(SUMIFS(données!$G:$G,données!$A:$A,Récapitulatif!$H$2,données!$E:$E,Récapitulatif!B20))=0,\"\",(SUMIFS(données!$F:$F,données!$A:$A,Récapitulatif!$H$2,données!$E:$E,Récapitulatif!B20)-(SUMIFS(données!$G:$G,données!$A:$A,Récapitulatif!$H$2,données!$E:$E,Récapitulatif!B20))))","v":""},{"$f":"IF(SUMIFS(données!$F:$F,données!$A:$A,Récapitulatif!$I$2,données!$E:$E,Récapitulatif!B20)-(SUMIFS(données!$G:$G,données!$A:$A,Récapitulatif!$I$2,données!$E:$E,Récapitulatif!B20))=0,\"\",(SUMIFS(données!$F:$F,données!$A:$A,Récapitulatif!$I$2,données!$E:$E,Récapitulatif!B20)-(SUMIFS(données!$G:$G,données!$A:$A,Récapitulatif!$I$2,données!$E:$E,Récapitulatif!B20))))","v":""},{"$f":"IF(SUMIFS(données!$F:$F,données!$A:$A,Récapitulatif!$J$2,données!$E:$E,Récapitulatif!B20)-(SUMIFS(données!$G:$G,données!$A:$A,Récapitulatif!$J$2,données!$E:$E,Récapitulatif!B20))=0,\"\",(SUMIFS(données!$F:$F,données!$A:$A,Récapitulatif!$J$2,données!$E:$E,Récapitulatif!B20)-(SUMIFS(données!$G:$G,données!$A:$A,Récapitulatif!$J$2,données!$E:$E,Récapitulatif!B20))))","v":""},{"$f":"IF(SUMIFS(données!$F:$F,données!$A:$A,Récapitulatif!$K$2,données!$E:$E,Récapitulatif!B20)-(SUMIFS(données!$G:$G,données!$A:$A,Récapitulatif!$K$2,données!$E:$E,Récapitulatif!B20))=0,\"\",(SUMIFS(données!$F:$F,données!$A:$A,Récapitulatif!$K$2,données!$E:$E,Récapitulatif!B20)-(SUMIFS(données!$G:$G,données!$A:$A,Récapitulatif!$K$2,données!$E:$E,Récapitulatif!B20))))","v":""},{"$f":"IF(SUMIFS(données!$F:$F,données!$A:$A,Récapitulatif!$L$2,données!$E:$E,Récapitulatif!B20)-(SUMIFS(données!$G:$G,données!$A:$A,Récapitulatif!$L$2,données!$E:$E,Récapitulatif!B20))=0,\"\",(SUMIFS(données!$F:$F,données!$A:$A,Récapitulatif!$L$2,données!$E:$E,Récapitulatif!B20)-(SUMIFS(données!$G:$G,données!$A:$A,Récapitulatif!$L$2,données!$E:$E,Récapitulatif!B20))))","v":""},{"$f":"IF(SUMIFS(données!$F:$F,données!$A:$A,Récapitulatif!$M$2,données!$E:$E,Récapitulatif!B20)-(SUMIFS(données!$G:$G,données!$A:$A,Récapitulatif!$M$2,données!$E:$E,Récapitulatif!B20))=0,\"\",(SUMIFS(données!$F:$F,données!$A:$A,Récapitulatif!$M$2,données!$E:$E,Récapitulatif!B20)-(SUMIFS(données!$G:$G,données!$A:$A,Récapitulatif!$M$2,données!$E:$E,Récapitulatif!B20))))","v":""},{"$f":"IF(SUMIFS(données!$F:$F,données!$A:$A,Récapitulatif!$N$2,données!$E:$E,Récapitulatif!B20)-(SUMIFS(données!$G:$G,données!$A:$A,Récapitulatif!$N$2,données!$E:$E,Récapitulatif!B20))=0,\"\",(SUMIFS(données!$F:$F,données!$A:$A,Récapitulatif!$N$2,données!$E:$E,Récapitulatif!B20)-(SUMIFS(données!$G:$G,données!$A:$A,Récapitulatif!$N$2,données!$E:$E,Récapitulatif!B20))))","v":""},""]
[null,"OLANO82",{"$f":"IF(SUMIFS(données!$F:$F,données!$A:$A,Récapitulatif!$C$2,données!$E:$E,Récapitulatif!B21)-(SUMIFS(données!$G:$G,données!$A:$A,Récapitulatif!$C$2,données!$E:$E,Récapitulatif!B21))=0,\"\",(SUMIFS(données!$F:$F,données!$A:$A,Récapitulatif!$C$2,données!$E:$E,Récapitulatif!B21)-(SUMIFS(données!$G:$G,données!$A:$A,Récapitulatif!$C$2,données!$E:$E,Récapitulatif!B21))))","v":""},{"$f":"IF(SUMIFS(données!$F:$F,données!$A:$A,Récapitulatif!$D$2,données!$E:$E,Récapitulatif!B21)-(SUMIFS(données!$G:$G,données!$A:$A,Récapitulatif!$D$2,données!$E:$E,Récapitulatif!B21))=0,\"\",(SUMIFS(données!$F:$F,données!$A:$A,Récapitulatif!$D$2,données!$E:$E,Récapitulatif!B21)-(SUMIFS(données!$G:$G,données!$A:$A,Récapitulatif!$D$2,données!$E:$E,Récapitulatif!B21))))","v":""},{"$f":"IF(SUMIFS(données!$F:$F,données!$A:$A,Récapitulatif!$E$2,données!$E:$E,Récapitulatif!B21)-(SUMIFS(données!$G:$G,données!$A:$A,Récapitulatif!$E$2,données!$E:$E,Récapitulatif!B21))=0,\"\",(SUMIFS(données!$F:$F,données!$A:$A,Récapitulatif!$E$2,données!$E:$E,Récapitulatif!B21)-(SUMIFS(données!$G:$G,données!$A:$A,Récapitulatif!$E$2,données!$E:$E,Récapitulatif!B21))))","v":""},{"$f":"IF(SUMIFS(données!$F:$F,données!$A:$A,Récapitulatif!$F$2,données!$E:$E,Récapitulatif!B21)-(SUMIFS(données!$G:$G,données!$A:$A,Récapitulatif!$F$2,données!$E:$E,Récapitulatif!B21))=0,\"\",(SUMIFS(données!$F:$F,données!$A:$A,Récapitulatif!$F$2,données!$E:$E,Récapitulatif!B21)-(SUMIFS(données!$G:$G,données!$A:$A,Récapitulatif!$F$2,données!$E:$E,Récapitulatif!B21))))","v":""},{"$f":"IF(SUMIFS(données!$F:$F,données!$A:$A,Récapitulatif!$G$2,données!$E:$E,Récapitulatif!B21)-(SUMIFS(données!$G:$G,données!$A:$A,Récapitulatif!$G$2,données!$E:$E,Récapitulatif!B21))=0,\"\",(SUMIFS(données!$F:$F,données!$A:$A,Récapitulatif!$G$2,données!$E:$E,Récapitulatif!B21)-(SUMIFS(données!$G:$G,données!$A:$A,Récapitulatif!$G$2,données!$E:$E,Récapitulatif!B21))))","v":""},{"$f":"IF(SUMIFS(données!$F:$F,données!$A:$A,Récapitulatif!$H$2,données!$E:$E,Récapitulatif!B21)-(SUMIFS(données!$G:$G,données!$A:$A,Récapitulatif!$H$2,données!$E:$E,Récapitulatif!B21))=0,\"\",(SUMIFS(données!$F:$F,données!$A:$A,Récapitulatif!$H$2,données!$E:$E,Récapitulatif!B21)-(SUMIFS(données!$G:$G,données!$A:$A,Récapitulatif!$H$2,données!$E:$E,Récapitulatif!B21))))","v":""},{"$f":"IF(SUMIFS(données!$F:$F,données!$A:$A,Récapitulatif!$I$2,données!$E:$E,Récapitulatif!B21)-(SUMIFS(données!$G:$G,données!$A:$A,Récapitulatif!$I$2,données!$E:$E,Récapitulatif!B21))=0,\"\",(SUMIFS(données!$F:$F,données!$A:$A,Récapitulatif!$I$2,données!$E:$E,Récapitulatif!B21)-(SUMIFS(données!$G:$G,données!$A:$A,Récapitulatif!$I$2,données!$E:$E,Récapitulatif!B21))))","v":""},{"$f":"IF(SUMIFS(données!$F:$F,données!$A:$A,Récapitulatif!$J$2,données!$E:$E,Récapitulatif!B21)-(SUMIFS(données!$G:$G,données!$A:$A,Récapitulatif!$J$2,données!$E:$E,Récapitulatif!B21))=0,\"\",(SUMIFS(données!$F:$F,données!$A:$A,Récapitulatif!$J$2,données!$E:$E,Récapitulatif!B21)-(SUMIFS(données!$G:$G,données!$A:$A,Récapitulatif!$J$2,données!$E:$E,Récapitulatif!B21))))","v":""},{"$f":"IF(SUMIFS(données!$F:$F,données!$A:$A,Récapitulatif!$K$2,données!$E:$E,Récapitulatif!B21)-(SUMIFS(données!$G:$G,données!$A:$A,Récapitulatif!$K$2,données!$E:$E,Récapitulatif!B21))=0,\"\",(SUMIFS(données!$F:$F,données!$A:$A,Récapitulatif!$K$2,données!$E:$E,Récapitulatif!B21)-(SUMIFS(données!$G:$G,données!$A:$A,Récapitulatif!$K$2,données!$E:$E,Récapitulatif!B21))))","v":""},{"$f":"IF(SUMIFS(données!$F:$F,données!$A:$A,Récapitulatif!$L$2,données!$E:$E,Récapitulatif!B21)-(SUMIFS(données!$G:$G,données!$A:$A,Récapitulatif!$L$2,données!$E:$E,Récapitulatif!B21))=0,\"\",(SUMIFS(données!$F:$F,données!$A:$A,Récapitulatif!$L$2,données!$E:$E,Récapitulatif!B21)-(SUMIFS(données!$G:$G,données!$A:$A,Récapitulatif!$L$2,données!$E:$E,Récapitulatif!B21))))","v":""},{"$f":"IF(SUMIFS(données!$F:$F,données!$A:$A,Récapitulatif!$M$2,données!$E:$E,Récapitulatif!B21)-(SUMIFS(données!$G:$G,données!$A:$A,Récapitulatif!$M$2,données!$E:$E,Récapitulatif!B21))=0,\"\",(SUMIFS(données!$F:$F,données!$A:$A,Récapitulatif!$M$2,données!$E:$E,Récapitulatif!B21)-(SUMIFS(données!$G:$G,données!$A:$A,Récapitulatif!$M$2,données!$E:$E,Récapitulatif!B21))))","v":""},{"$f":"IF(SUMIFS(données!$F:$F,données!$A:$A,Récapitulatif!$N$2,données!$E:$E,Récapitulatif!B21)-(SUMIFS(données!$G:$G,données!$A:$A,Récapitulatif!$N$2,données!$E:$E,Récapitulatif!B21))=0,\"\",(SUMIFS(données!$F:$F,données!$A:$A,Récapitulatif!$N$2,données!$E:$E,Récapitulatif!B21)-(SUMIFS(données!$G:$G,données!$A:$A,Récapitulatif!$N$2,données!$E:$E,Récapitulatif!B21))))","v":""},""]
[null,"RANDON",{"$f":"IF(SUMIFS(données!$F:$F,données!$A:$A,Récapitulatif!$C$2,données!$E:$E,Récapitulatif!B22)-(SUMIFS(données!$G:$G,données!$A:$A,Récapitulatif!$C$2,données!$E:$E,Récapitulatif!B22))=0,\"\",(SUMIFS(données!$F:$F,données!$A:$A,Récapitulatif!$C$2,données!$E:$E,Récapitulatif!B22)-(SUMIFS(données!$G:$G,données!$A:$A,Récapitulatif!$C$2,données!$E:$E,Récapitulatif!B22))))","v":""},{"$f":"IF(SUMIFS(données!$F:$F,données!$A:$A,Récapitulatif!$D$2,données!$E:$E,Récapitulatif!B22)-(SUMIFS(données!$G:$G,données!$A:$A,Récapitulatif!$D$2,données!$E:$E,Récapitulatif!B22))=0,\"\",(SUMIFS(données!$F:$F,données!$A:$A,Récapitulatif!$D$2,données!$E:$E,Récapitulatif!B22)-(SUMIFS(données!$G:$G,données!$A:$A,Récapitulatif!$D$2,données!$E:$E,Récapitulatif!B22))))","v":""},{"$f":"IF(SUMIFS(données!$F:$F,données!$A:$A,Récapitulatif!$E$2,données!$E:$E,Récapitulatif!B22)-(SUMIFS(données!$G:$G,données!$A:$A,Récapitulatif!$E$2,données!$E:$E,Récapitulatif!B22))=0,\"\",(SUMIFS(données!$F:$F,données!$A:$A,Récapitulatif!$E$2,données!$E:$E,Récapitulatif!B22)-(SUMIFS(données!$G:$G,données!$A:$A,Récapitulatif!$E$2,données!$E:$E,Récapitulatif!B22))))","v":""},{"$f":"IF(SUMIFS(données!$F:$F,données!$A:$A,Récapitulatif!$F$2,données!$E:$E,Récapitulatif!B22)-(SUMIFS(données!$G:$G,données!$A:$A,Récapitulatif!$F$2,données!$E:$E,Récapitulatif!B22))=0,\"\",(SUMIFS(données!$F:$F,données!$A:$A,Récapitulatif!$F$2,données!$E:$E,Récapitulatif!B22)-(SUMIFS(données!$G:$G,données!$A:$A,Récapitulatif!$F$2,données!$E:$E,Récapitulatif!B22))))","v":""},{"$f":"IF(SUMIFS(données!$F:$F,données!$A:$A,Récapitulatif!$G$2,données!$E:$E,Récapitulatif!B22)-(SUMIFS(données!$G:$G,données!$A:$A,Récapitulatif!$G$2,données!$E:$E,Récapitulatif!B22))=0,\"\",(SUMIFS(données!$F:$F,données!$A:$A,Récapitulatif!$G$2,données!$E:$E,Récapitulatif!B22)-(SUMIFS(données!$G:$G,données!$A:$A,Récapitulatif!$G$2,données!$E:$E,Récapitulatif!B22))))","v":""},{"$f":"IF(SUMIFS(données!$F:$F,données!$A:$A,Récapitulatif!$H$2,données!$E:$E,Récapitulatif!B22)-(SUMIFS(données!$G:$G,données!$A:$A,Récapitulatif!$H$2,données!$E:$E,Récapitulatif!B22))=0,\"\",(SUMIFS(données!$F:$F,données!$A:$A,Récapitulatif!$H$2,données!$E:$E,Récapitulatif!B22)-(SUMIFS(données!$G:$G,données!$A:$A,Récapitulatif!$H$2,données!$E:$E,Récapitulatif!B22))))","v":""},{"$f":"IF(SUMIFS(données!$F:$F,données!$A:$A,Récapitulatif!$I$2,données!$E:$E,Récapitulatif!B22)-(SUMIFS(données!$G:$G,données!$A:$A,Récapitulatif!$I$2,données!$E:$E,Récapitulatif!B22))=0,\"\",(SUMIFS(données!$F:$F,données!$A:$A,Récapitulatif!$I$2,données!$E:$E,Récapitulatif!B22)-(SUMIFS(données!$G:$G,données!$A:$A,Récapitulatif!$I$2,données!$E:$E,Récapitulatif!B22))))","v":""},{"$f":"IF(SUMIFS(données!$F:$F,données!$A:$A,Récapitulatif!$J$2,données!$E:$E,Récapitulatif!B22)-(SUMIFS(données!$G:$G,données!$A:$A,Récapitulatif!$J$2,données!$E:$E,Récapitulatif!B22))=0,\"\",(SUMIFS(données!$F:$F,données!$A:$A,Récapitulatif!$J$2,données!$E:$E,Récapitulatif!B22)-(SUMIFS(données!$G:$G,données!$A:$A,Récapitulatif!$J$2,données!$E:$E,Récapitulatif!B22))))","v":""},{"$f":"IF(SUMIFS(données!$F:$F,données!$A:$A,Récapitulatif!$K$2,données!$E:$E,Récapitulatif!B22)-(SUMIFS(données!$G:$G,données!$A:$A,Récapitulatif!$K$2,données!$E:$E,Récapitulatif!B22))=0,\"\",(SUMIFS(données!$F:$F,données!$A:$A,Récapitulatif!$K$2,données!$E:$E,Récapitulatif!B22)-(SUMIFS(données!$G:$G,données!$A:$A,Récapitulatif!$K$2,données!$E:$E,Récapitulatif!B22))))","v":""},{"$f":"IF(SUMIFS(données!$F:$F,données!$A:$A,Récapitulatif!$L$2,données!$E:$E,Récapitulatif!B22)-(SUMIFS(données!$G:$G,données!$A:$A,Récapitulatif!$L$2,données!$E:$E,Récapitulatif!B22))=0,\"\",(SUMIFS(données!$F:$F,données!$A:$A,Récapitulatif!$L$2,données!$E:$E,Récapitulatif!B22)-(SUMIFS(données!$G:$G,données!$A:$A,Récapitulatif!$L$2,données!$E:$E,Récapitulatif!B22))))","v":""},{"$f":"IF(SUMIFS(données!$F:$F,données!$A:$A,Récapitulatif!$M$2,données!$E:$E,Récapitulatif!B22)-(SUMIFS(données!$G:$G,données!$A:$A,Récapitulatif!$M$2,données!$E:$E,Récapitulatif!B22))=0,\"\",(SUMIFS(données!$F:$F,données!$A:$A,Récapitulatif!$M$2,données!$E:$E,Récapitulatif!B22)-(SUMIFS(données!$G:$G,données!$A:$A,Récapitulatif!$M$2,données!$E:$E,Récapitulatif!B22))))","v":""},{"$f":"IF(SUMIFS(données!$F:$F,données!$A:$A,Récapitulatif!$N$2,données!$E:$E,Récapitulatif!B22)-(SUMIFS(données!$G:$G,données!$A:$A,Récapitulatif!$N$2,données!$E:$E,Récapitulatif!B22))=0,\"\",(SUMIFS(données!$F:$F,données!$A:$A,Récapitulatif!$N$2,données!$E:$E,Récapitulatif!B22)-(SUMIFS(données!$G:$G,données!$A:$A,Récapitulatif!$N$2,données!$E:$E,Récapitulatif!B22))))","v":""},""]
[null,"ROUCAYROL",{"$f":"IF(SUMIFS(données!$F:$F,données!$A:$A,Récapitulatif!$C$2,données!$E:$E,Récapitulatif!B23)-(SUMIFS(données!$G:$G,données!$A:$A,Récapitulatif!$C$2,données!$E:$E,Récapitulatif!B23))=0,\"\",(SUMIFS(données!$F:$F,données!$A:$A,Récapitulatif!$C$2,données!$E:$E,Récapitulatif!B23)-(SUMIFS(données!$G:$G,données!$A:$A,Récapitulatif!$C$2,données!$E:$E,Récapitulatif!B23))))","v":""},{"$f":"IF(SUMIFS(données!$F:$F,données!$A:$A,Récapitulatif!$D$2,données!$E:$E,Récapitulatif!B23)-(SUMIFS(données!$G:$G,données!$A:$A,Récapitulatif!$D$2,données!$E:$E,Récapitulatif!B23))=0,\"\",(SUMIFS(données!$F:$F,données!$A:$A,Récapitulatif!$D$2,données!$E:$E,Récapitulatif!B23)-(SUMIFS(données!$G:$G,données!$A:$A,Récapitulatif!$D$2,données!$E:$E,Récapitulatif!B23))))","v":""},{"$f":"IF(SUMIFS(données!$F:$F,données!$A:$A,Récapitulatif!$E$2,données!$E:$E,Récapitulatif!B23)-(SUMIFS(données!$G:$G,données!$A:$A,Récapitulatif!$E$2,données!$E:$E,Récapitulatif!B23))=0,\"\",(SUMIFS(données!$F:$F,données!$A:$A,Récapitulatif!$E$2,données!$E:$E,Récapitulatif!B23)-(SUMIFS(données!$G:$G,données!$A:$A,Récapitulatif!$E$2,données!$E:$E,Récapitulatif!B23))))","v":""},{"$f":"IF(SUMIFS(données!$F:$F,données!$A:$A,Récapitulatif!$F$2,données!$E:$E,Récapitulatif!B23)-(SUMIFS(données!$G:$G,données!$A:$A,Récapitulatif!$F$2,données!$E:$E,Récapitulatif!B23))=0,\"\",(SUMIFS(données!$F:$F,données!$A:$A,Récapitulatif!$F$2,données!$E:$E,Récapitulatif!B23)-(SUMIFS(données!$G:$G,données!$A:$A,Récapitulatif!$F$2,données!$E:$E,Récapitulatif!B23))))","v":""},{"$f":"IF(SUMIFS(données!$F:$F,données!$A:$A,Récapitulatif!$G$2,données!$E:$E,Récapitulatif!B23)-(SUMIFS(données!$G:$G,données!$A:$A,Récapitulatif!$G$2,données!$E:$E,Récapitulatif!B23))=0,\"\",(SUMIFS(données!$F:$F,données!$A:$A,Récapitulatif!$G$2,données!$E:$E,Récapitulatif!B23)-(SUMIFS(données!$G:$G,données!$A:$A,Récapitulatif!$G$2,données!$E:$E,Récapitulatif!B23))))","v":""},{"$f":"IF(SUMIFS(données!$F:$F,données!$A:$A,Récapitulatif!$H$2,données!$E:$E,Récapitulatif!B23)-(SUMIFS(données!$G:$G,données!$A:$A,Récapitulatif!$H$2,données!$E:$E,Récapitulatif!B23))=0,\"\",(SUMIFS(données!$F:$F,données!$A:$A,Récapitulatif!$H$2,données!$E:$E,Récapitulatif!B23)-(SUMIFS(données!$G:$G,données!$A:$A,Récapitulatif!$H$2,données!$E:$E,Récapitulatif!B23))))","v":""},{"$f":"IF(SUMIFS(données!$F:$F,données!$A:$A,Récapitulatif!$I$2,données!$E:$E,Récapitulatif!B23)-(SUMIFS(données!$G:$G,données!$A:$A,Récapitulatif!$I$2,données!$E:$E,Récapitulatif!B23))=0,\"\",(SUMIFS(données!$F:$F,données!$A:$A,Récapitulatif!$I$2,données!$E:$E,Récapitulatif!B23)-(SUMIFS(données!$G:$G,données!$A:$A,Récapitulatif!$I$2,données!$E:$E,Récapitulatif!B23))))","v":""},{"$f":"IF(SUMIFS(données!$F:$F,données!$A:$A,Récapitulatif!$J$2,données!$E:$E,Récapitulatif!B23)-(SUMIFS(données!$G:$G,données!$A:$A,Récapitulatif!$J$2,données!$E:$E,Récapitulatif!B23))=0,\"\",(SUMIFS(données!$F:$F,données!$A:$A,Récapitulatif!$J$2,données!$E:$E,Récapitulatif!B23)-(SUMIFS(données!$G:$G,données!$A:$A,Récapitulatif!$J$2,données!$E:$E,Récapitulatif!B23))))","v":""},{"$f":"IF(SUMIFS(données!$F:$F,données!$A:$A,Récapitulatif!$K$2,données!$E:$E,Récapitulatif!B23)-(SUMIFS(données!$G:$G,données!$A:$A,Récapitulatif!$K$2,données!$E:$E,Récapitulatif!B23))=0,\"\",(SUMIFS(données!$F:$F,données!$A:$A,Récapitulatif!$K$2,données!$E:$E,Récapitulatif!B23)-(SUMIFS(données!$G:$G,données!$A:$A,Récapitulatif!$K$2,données!$E:$E,Récapitulatif!B23))))","v":""},{"$f":"IF(SUMIFS(données!$F:$F,données!$A:$A,Récapitulatif!$L$2,données!$E:$E,Récapitulatif!B23)-(SUMIFS(données!$G:$G,données!$A:$A,Récapitulatif!$L$2,données!$E:$E,Récapitulatif!B23))=0,\"\",(SUMIFS(données!$F:$F,données!$A:$A,Récapitulatif!$L$2,données!$E:$E,Récapitulatif!B23)-(SUMIFS(données!$G:$G,données!$A:$A,Récapitulatif!$L$2,données!$E:$E,Récapitulatif!B23))))","v":""},{"$f":"IF(SUMIFS(données!$F:$F,données!$A:$A,Récapitulatif!$M$2,données!$E:$E,Récapitulatif!B23)-(SUMIFS(données!$G:$G,données!$A:$A,Récapitulatif!$M$2,données!$E:$E,Récapitulatif!B23))=0,\"\",(SUMIFS(données!$F:$F,données!$A:$A,Récapitulatif!$M$2,données!$E:$E,Récapitulatif!B23)-(SUMIFS(données!$G:$G,données!$A:$A,Récapitulatif!$M$2,données!$E:$E,Récapitulatif!B23))))","v":""},{"$f":"IF(SUMIFS(données!$F:$F,données!$A:$A,Récapitulatif!$N$2,données!$E:$E,Récapitulatif!B23)-(SUMIFS(données!$G:$G,données!$A:$A,Récapitulatif!$N$2,données!$E:$E,Récapitulatif!B23))=0,\"\",(SUMIFS(données!$F:$F,données!$A:$A,Récapitulatif!$N$2,données!$E:$E,Récapitulatif!B23)-(SUMIFS(données!$G:$G,données!$A:$A,Récapitulatif!$N$2,données!$E:$E,Récapitulatif!B23))))","v":""},""]
[null,"SETAK",{"$f":"IF(SUMIFS(données!$F:$F,données!$A:$A,Récapitulatif!$C$2,données!$E:$E,Récapitulatif!B24)-(SUMIFS(données!$G:$G,données!$A:$A,Récapitulatif!$C$2,données!$E:$E,Récapitulatif!B24))=0,\"\",(SUMIFS(données!$F:$F,données!$A:$A,Récapitulatif!$C$2,données!$E:$E,Récapitulatif!B24)-(SUMIFS(données!$G:$G,données!$A:$A,Récapitulatif!$C$2,données!$E:$E,Récapitulatif!B24))))","v":""},{"$f":"IF(SUMIFS(données!$F:$F,données!$A:$A,Récapitulatif!$D$2,données!$E:$E,Récapitulatif!B24)-(SUMIFS(données!$G:$G,données!$A:$A,Récapitulatif!$D$2,données!$E:$E,Récapitulatif!B24))=0,\"\",(SUMIFS(données!$F:$F,données!$A:$A,Récapitulatif!$D$2,données!$E:$E,Récapitulatif!B24)-(SUMIFS(données!$G:$G,données!$A:$A,Récapitulatif!$D$2,données!$E:$E,Récapitulatif!B24))))","v":""},{"$f":"IF(SUMIFS(données!$F:$F,données!$A:$A,Récapitulatif!$E$2,données!$E:$E,Récapitulatif!B24)-(SUMIFS(données!$G:$G,données!$A:$A,Récapitulatif!$E$2,données!$E:$E,Récapitulatif!B24))=0,\"\",(SUMIFS(données!$F:$F,données!$A:$A,Récapitulatif!$E$2,données!$E:$E,Récapitulatif!B24)-(SUMIFS(données!$G:$G,données!$A:$A,Récapitulatif!$E$2,données!$E:$E,Récapitulatif!B24))))","v":""},{"$f":"IF(SUMIFS(données!$F:$F,données!$A:$A,Récapitulatif!$F$2,données!$E:$E,Récapitulatif!B24)-(SUMIFS(données!$G:$G,données!$A:$A,Récapitulatif!$F$2,données!$E:$E,Récapitulatif!B24))=0,\"\",(SUMIFS(données!$F:$F,données!$A:$A,Récapitulatif!$F$2,données!$E:$E,Récapitulatif!B24)-(SUMIFS(données!$G:$G,données!$A:$A,Récapitulatif!$F$2,données!$E:$E,Récapitulatif!B24))))","v":""},{"$f":"IF(SUMIFS(données!$F:$F,données!$A:$A,Récapitulatif!$G$2,données!$E:$E,Récapitulatif!B24)-(SUMIFS(données!$G:$G,données!$A:$A,Récapitulatif!$G$2,données!$E:$E,Récapitulatif!B24))=0,\"\",(SUMIFS(données!$F:$F,données!$A:$A,Récapitulatif!$G$2,données!$E:$E,Récapitulatif!B24)-(SUMIFS(données!$G:$G,données!$A:$A,Récapitulatif!$G$2,données!$E:$E,Récapitulatif!B24))))","v":""},{"$f":"IF(SUMIFS(données!$F:$F,données!$A:$A,Récapitulatif!$H$2,données!$E:$E,Récapitulatif!B24)-(SUMIFS(données!$G:$G,données!$A:$A,Récapitulatif!$H$2,données!$E:$E,Récapitulatif!B24))=0,\"\",(SUMIFS(données!$F:$F,données!$A:$A,Récapitulatif!$H$2,données!$E:$E,Récapitulatif!B24)-(SUMIFS(données!$G:$G,données!$A:$A,Récapitulatif!$H$2,données!$E:$E,Récapitulatif!B24))))","v":""},{"$f":"IF(SUMIFS(données!$F:$F,données!$A:$A,Récapitulatif!$I$2,données!$E:$E,Récapitulatif!B24)-(SUMIFS(données!$G:$G,données!$A:$A,Récapitulatif!$I$2,données!$E:$E,Récapitulatif!B24))=0,\"\",(SUMIFS(données!$F:$F,données!$A:$A,Récapitulatif!$I$2,données!$E:$E,Récapitulatif!B24)-(SUMIFS(données!$G:$G,données!$A:$A,Récapitulatif!$I$2,données!$E:$E,Récapitulatif!B24))))","v":""},{"$f":"IF(SUMIFS(données!$F:$F,données!$A:$A,Récapitulatif!$J$2,données!$E:$E,Récapitulatif!B24)-(SUMIFS(données!$G:$G,données!$A:$A,Récapitulatif!$J$2,données!$E:$E,Récapitulatif!B24))=0,\"\",(SUMIFS(données!$F:$F,données!$A:$A,Récapitulatif!$J$2,données!$E:$E,Récapitulatif!B24)-(SUMIFS(données!$G:$G,données!$A:$A,Récapitulatif!$J$2,données!$E:$E,Récapitulatif!B24))))","v":""},{"$f":"IF(SUMIFS(données!$F:$F,données!$A:$A,Récapitulatif!$K$2,données!$E:$E,Récapitulatif!B24)-(SUMIFS(données!$G:$G,données!$A:$A,Récapitulatif!$K$2,données!$E:$E,Récapitulatif!B24))=0,\"\",(SUMIFS(données!$F:$F,données!$A:$A,Récapitulatif!$K$2,données!$E:$E,Récapitulatif!B24)-(SUMIFS(données!$G:$G,données!$A:$A,Récapitulatif!$K$2,données!$E:$E,Récapitulatif!B24))))","v":""},{"$f":"IF(SUMIFS(données!$F:$F,données!$A:$A,Récapitulatif!$L$2,données!$E:$E,Récapitulatif!B24)-(SUMIFS(données!$G:$G,données!$A:$A,Récapitulatif!$L$2,données!$E:$E,Récapitulatif!B24))=0,\"\",(SUMIFS(données!$F:$F,données!$A:$A,Récapitulatif!$L$2,données!$E:$E,Récapitulatif!B24)-(SUMIFS(données!$G:$G,données!$A:$A,Récapitulatif!$L$2,données!$E:$E,Récapitulatif!B24))))","v":""},{"$f":"IF(SUMIFS(données!$F:$F,données!$A:$A,Récapitulatif!$M$2,données!$E:$E,Récapitulatif!B24)-(SUMIFS(données!$G:$G,données!$A:$A,Récapitulatif!$M$2,données!$E:$E,Récapitulatif!B24))=0,\"\",(SUMIFS(données!$F:$F,données!$A:$A,Récapitulatif!$M$2,données!$E:$E,Récapitulatif!B24)-(SUMIFS(données!$G:$G,données!$A:$A,Récapitulatif!$M$2,données!$E:$E,Récapitulatif!B24))))","v":""},{"$f":"IF(SUMIFS(données!$F:$F,données!$A:$A,Récapitulatif!$N$2,données!$E:$E,Récapitulatif!B24)-(SUMIFS(données!$G:$G,données!$A:$A,Récapitulatif!$N$2,données!$E:$E,Récapitulatif!B24))=0,\"\",(SUMIFS(données!$F:$F,données!$A:$A,Récapitulatif!$N$2,données!$E:$E,Récapitulatif!B24)-(SUMIFS(données!$G:$G,données!$A:$A,Récapitulatif!$N$2,données!$E:$E,Récapitulatif!B24))))","v":""},""]
[null,"STAM82",{"$f":"IF(SUMIFS(données!$F:$F,données!$A:$A,Récapitulatif!$C$2,données!$E:$E,Récapitulatif!B25)-(SUMIFS(données!$G:$G,données!$A:$A,Récapitulatif!$C$2,données!$E:$E,Récapitulatif!B25))=0,\"\",(SUMIFS(données!$F:$F,données!$A:$A,Récapitulatif!$C$2,données!$E:$E,Récapitulatif!B25)-(SUMIFS(données!$G:$G,données!$A:$A,Récapitulatif!$C$2,données!$E:$E,Récapitulatif!B25))))","v":""},{"$f":"IF(SUMIFS(données!$F:$F,données!$A:$A,Récapitulatif!$D$2,données!$E:$E,Récapitulatif!B25)-(SUMIFS(données!$G:$G,données!$A:$A,Récapitulatif!$D$2,données!$E:$E,Récapitulatif!B25))=0,\"\",(SUMIFS(données!$F:$F,données!$A:$A,Récapitulatif!$D$2,données!$E:$E,Récapitulatif!B25)-(SUMIFS(données!$G:$G,données!$A:$A,Récapitulatif!$D$2,données!$E:$E,Récapitulatif!B25))))","v":""},{"$f":"IF(SUMIFS(données!$F:$F,données!$A:$A,Récapitulatif!$E$2,données!$E:$E,Récapitulatif!B25)-(SUMIFS(données!$G:$G,données!$A:$A,Récapitulatif!$E$2,données!$E:$E,Récapitulatif!B25))=0,\"\",(SUMIFS(données!$F:$F,données!$A:$A,Récapitulatif!$E$2,données!$E:$E,Récapitulatif!B25)-(SUMIFS(données!$G:$G,données!$A:$A,Récapitulatif!$E$2,données!$E:$E,Récapitulatif!B25))))","v":""},{"$f":"IF(SUMIFS(données!$F:$F,données!$A:$A,Récapitulatif!$F$2,données!$E:$E,Récapitulatif!B25)-(SUMIFS(données!$G:$G,données!$A:$A,Récapitulatif!$F$2,données!$E:$E,Récapitulatif!B25))=0,\"\",(SUMIFS(données!$F:$F,données!$A:$A,Récapitulatif!$F$2,données!$E:$E,Récapitulatif!B25)-(SUMIFS(données!$G:$G,données!$A:$A,Récapitulatif!$F$2,données!$E:$E,Récapitulatif!B25))))","v":""},{"$f":"IF(SUMIFS(données!$F:$F,données!$A:$A,Récapitulatif!$G$2,données!$E:$E,Récapitulatif!B25)-(SUMIFS(données!$G:$G,données!$A:$A,Récapitulatif!$G$2,données!$E:$E,Récapitulatif!B25))=0,\"\",(SUMIFS(données!$F:$F,données!$A:$A,Récapitulatif!$G$2,données!$E:$E,Récapitulatif!B25)-(SUMIFS(données!$G:$G,données!$A:$A,Récapitulatif!$G$2,données!$E:$E,Récapitulatif!B25))))","v":""},{"$f":"IF(SUMIFS(données!$F:$F,données!$A:$A,Récapitulatif!$H$2,données!$E:$E,Récapitulatif!B25)-(SUMIFS(données!$G:$G,données!$A:$A,Récapitulatif!$H$2,données!$E:$E,Récapitulatif!B25))=0,\"\",(SUMIFS(données!$F:$F,données!$A:$A,Récapitulatif!$H$2,données!$E:$E,Récapitulatif!B25)-(SUMIFS(données!$G:$G,données!$A:$A,Récapitulatif!$H$2,données!$E:$E,Récapitulatif!B25))))","v":""},{"$f":"IF(SUMIFS(données!$F:$F,données!$A:$A,Récapitulatif!$I$2,données!$E:$E,Récapitulatif!B25)-(SUMIFS(données!$G:$G,données!$A:$A,Récapitulatif!$I$2,données!$E:$E,Récapitulatif!B25))=0,\"\",(SUMIFS(données!$F:$F,données!$A:$A,Récapitulatif!$I$2,données!$E:$E,Récapitulatif!B25)-(SUMIFS(données!$G:$G,données!$A:$A,Récapitulatif!$I$2,données!$E:$E,Récapitulatif!B25))))","v":""},{"$f":"IF(SUMIFS(données!$F:$F,données!$A:$A,Récapitulatif!$J$2,données!$E:$E,Récapitulatif!B25)-(SUMIFS(données!$G:$G,données!$A:$A,Récapitulatif!$J$2,données!$E:$E,Récapitulatif!B25))=0,\"\",(SUMIFS(données!$F:$F,données!$A:$A,Récapitulatif!$J$2,données!$E:$E,Récapitulatif!B25)-(SUMIFS(données!$G:$G,données!$A:$A,Récapitulatif!$J$2,données!$E:$E,Récapitulatif!B25))))","v":""},{"$f":"IF(SUMIFS(données!$F:$F,données!$A:$A,Récapitulatif!$K$2,données!$E:$E,Récapitulatif!B25)-(SUMIFS(données!$G:$G,données!$A:$A,Récapitulatif!$K$2,données!$E:$E,Récapitulatif!B25))=0,\"\",(SUMIFS(données!$F:$F,données!$A:$A,Récapitulatif!$K$2,données!$E:$E,Récapitulatif!B25)-(SUMIFS(données!$G:$G,données!$A:$A,Récapitulatif!$K$2,données!$E:$E,Récapitulatif!B25))))","v":""},{"$f":"IF(SUMIFS(données!$F:$F,données!$A:$A,Récapitulatif!$L$2,données!$E:$E,Récapitulatif!B25)-(SUMIFS(données!$G:$G,données!$A:$A,Récapitulatif!$L$2,données!$E:$E,Récapitulatif!B25))=0,\"\",(SUMIFS(données!$F:$F,données!$A:$A,Récapitulatif!$L$2,données!$E:$E,Récapitulatif!B25)-(SUMIFS(données!$G:$G,données!$A:$A,Récapitulatif!$L$2,données!$E:$E,Récapitulatif!B25))))","v":""},{"$f":"IF(SUMIFS(données!$F:$F,données!$A:$A,Récapitulatif!$M$2,données!$E:$E,Récapitulatif!B25)-(SUMIFS(données!$G:$G,données!$A:$A,Récapitulatif!$M$2,données!$E:$E,Récapitulatif!B25))=0,\"\",(SUMIFS(données!$F:$F,données!$A:$A,Récapitulatif!$M$2,données!$E:$E,Récapitulatif!B25)-(SUMIFS(données!$G:$G,données!$A:$A,Récapitulatif!$M$2,données!$E:$E,Récapitulatif!B25))))","v":""},{"$f":"IF(SUMIFS(données!$F:$F,données!$A:$A,Récapitulatif!$N$2,données!$E:$E,Récapitulatif!B25)-(SUMIFS(données!$G:$G,données!$A:$A,Récapitulatif!$N$2,données!$E:$E,Récapitulatif!B25))=0,\"\",(SUMIFS(données!$F:$F,données!$A:$A,Récapitulatif!$N$2,données!$E:$E,Récapitulatif!B25)-(SUMIFS(données!$G:$G,données!$A:$A,Récapitulatif!$N$2,données!$E:$E,Récapitulatif!B25))))","v":""},""]
[null,"T2L",{"$f":"IF(SUMIFS(données!$F:$F,données!$A:$A,Récapitulatif!$C$2,données!$E:$E,Récapitulatif!B26)-(SUMIFS(données!$G:$G,données!$A:$A,Récapitulatif!$C$2,données!$E:$E,Récapitulatif!B26))=0,\"\",(SUMIFS(données!$F:$F,données!$A:$A,Récapitulatif!$C$2,données!$E:$E,Récapitulatif!B26)-(SUMIFS(données!$G:$G,données!$A:$A,Récapitulatif!$C$2,données!$E:$E,Récapitulatif!B26))))","v":""},{"$f":"IF(SUMIFS(données!$F:$F,données!$A:$A,Récapitulatif!$D$2,données!$E:$E,Récapitulatif!B26)-(SUMIFS(données!$G:$G,données!$A:$A,Récapitulatif!$D$2,données!$E:$E,Récapitulatif!B26))=0,\"\",(SUMIFS(données!$F:$F,données!$A:$A,Récapitulatif!$D$2,données!$E:$E,Récapitulatif!B26)-(SUMIFS(données!$G:$G,données!$A:$A,Récapitulatif!$D$2,données!$E:$E,Récapitulatif!B26))))","v":""},{"$f":"IF(SUMIFS(données!$F:$F,données!$A:$A,Récapitulatif!$E$2,données!$E:$E,Récapitulatif!B26)-(SUMIFS(données!$G:$G,données!$A:$A,Récapitulatif!$E$2,données!$E:$E,Récapitulatif!B26))=0,\"\",(SUMIFS(données!$F:$F,données!$A:$A,Récapitulatif!$E$2,données!$E:$E,Récapitulatif!B26)-(SUMIFS(données!$G:$G,données!$A:$A,Récapitulatif!$E$2,données!$E:$E,Récapitulatif!B26))))","v":""},{"$f":"IF(SUMIFS(données!$F:$F,données!$A:$A,Récapitulatif!$F$2,données!$E:$E,Récapitulatif!B26)-(SUMIFS(données!$G:$G,données!$A:$A,Récapitulatif!$F$2,données!$E:$E,Récapitulatif!B26))=0,\"\",(SUMIFS(données!$F:$F,données!$A:$A,Récapitulatif!$F$2,données!$E:$E,Récapitulatif!B26)-(SUMIFS(données!$G:$G,données!$A:$A,Récapitulatif!$F$2,données!$E:$E,Récapitulatif!B26))))","v":""},{"$f":"IF(SUMIFS(données!$F:$F,données!$A:$A,Récapitulatif!$G$2,données!$E:$E,Récapitulatif!B26)-(SUMIFS(données!$G:$G,données!$A:$A,Récapitulatif!$G$2,données!$E:$E,Récapitulatif!B26))=0,\"\",(SUMIFS(données!$F:$F,données!$A:$A,Récapitulatif!$G$2,données!$E:$E,Récapitulatif!B26)-(SUMIFS(données!$G:$G,données!$A:$A,Récapitulatif!$G$2,données!$E:$E,Récapitulatif!B26))))","v":""},{"$f":"IF(SUMIFS(données!$F:$F,données!$A:$A,Récapitulatif!$H$2,données!$E:$E,Récapitulatif!B26)-(SUMIFS(données!$G:$G,données!$A:$A,Récapitulatif!$H$2,données!$E:$E,Récapitulatif!B26))=0,\"\",(SUMIFS(données!$F:$F,données!$A:$A,Récapitulatif!$H$2,données!$E:$E,Récapitulatif!B26)-(SUMIFS(données!$G:$G,données!$A:$A,Récapitulatif!$H$2,données!$E:$E,Récapitulatif!B26))))","v":""},{"$f":"IF(SUMIFS(données!$F:$F,données!$A:$A,Récapitulatif!$I$2,données!$E:$E,Récapitulatif!B26)-(SUMIFS(données!$G:$G,données!$A:$A,Récapitulatif!$I$2,données!$E:$E,Récapitulatif!B26))=0,\"\",(SUMIFS(données!$F:$F,données!$A:$A,Récapitulatif!$I$2,données!$E:$E,Récapitulatif!B26)-(SUMIFS(données!$G:$G,données!$A:$A,Récapitulatif!$I$2,données!$E:$E,Récapitulatif!B26))))","v":""},{"$f":"IF(SUMIFS(données!$F:$F,données!$A:$A,Récapitulatif!$J$2,données!$E:$E,Récapitulatif!B26)-(SUMIFS(données!$G:$G,données!$A:$A,Récapitulatif!$J$2,données!$E:$E,Récapitulatif!B26))=0,\"\",(SUMIFS(données!$F:$F,données!$A:$A,Récapitulatif!$J$2,données!$E:$E,Récapitulatif!B26)-(SUMIFS(données!$G:$G,données!$A:$A,Récapitulatif!$J$2,données!$E:$E,Récapitulatif!B26))))","v":""},{"$f":"IF(SUMIFS(données!$F:$F,données!$A:$A,Récapitulatif!$K$2,données!$E:$E,Récapitulatif!B26)-(SUMIFS(données!$G:$G,données!$A:$A,Récapitulatif!$K$2,données!$E:$E,Récapitulatif!B26))=0,\"\",(SUMIFS(données!$F:$F,données!$A:$A,Récapitulatif!$K$2,données!$E:$E,Récapitulatif!B26)-(SUMIFS(données!$G:$G,données!$A:$A,Récapitulatif!$K$2,données!$E:$E,Récapitulatif!B26))))","v":""},{"$f":"IF(SUMIFS(données!$F:$F,données!$A:$A,Récapitulatif!$L$2,données!$E:$E,Récapitulatif!B26)-(SUMIFS(données!$G:$G,données!$A:$A,Récapitulatif!$L$2,données!$E:$E,Récapitulatif!B26))=0,\"\",(SUMIFS(données!$F:$F,données!$A:$A,Récapitulatif!$L$2,données!$E:$E,Récapitulatif!B26)-(SUMIFS(données!$G:$G,données!$A:$A,Récapitulatif!$L$2,données!$E:$E,Récapitulatif!B26))))","v":""},{"$f":"IF(SUMIFS(données!$F:$F,données!$A:$A,Récapitulatif!$M$2,données!$E:$E,Récapitulatif!B26)-(SUMIFS(données!$G:$G,données!$A:$A,Récapitulatif!$M$2,données!$E:$E,Récapitulatif!B26))=0,\"\",(SUMIFS(données!$F:$F,données!$A:$A,Récapitulatif!$M$2,données!$E:$E,Récapitulatif!B26)-(SUMIFS(données!$G:$G,données!$A:$A,Récapitulatif!$M$2,données!$E:$E,Récapitulatif!B26))))","v":""},{"$f":"IF(SUMIFS(données!$F:$F,données!$A:$A,Récapitulatif!$N$2,données!$E:$E,Récapitulatif!B26)-(SUMIFS(données!$G:$G,données!$A:$A,Récapitulatif!$N$2,données!$E:$E,Récapitulatif!B26))=0,\"\",(SUMIFS(données!$F:$F,données!$A:$A,Récapitulatif!$N$2,données!$E:$E,Récapitulatif!B26)-(SUMIFS(données!$G:$G,données!$A:$A,Récapitulatif!$N$2,données!$E:$E,Récapitulatif!B26))))","v":""},""]
[null,"TDD",{"$f":"IF(SUMIFS(données!$F:$F,données!$A:$A,Récapitulatif!$C$2,données!$E:$E,Récapitulatif!B27)-(SUMIFS(données!$G:$G,données!$A:$A,Récapitulatif!$C$2,données!$E:$E,Récapitulatif!B27))=0,\"\",(SUMIFS(données!$F:$F,données!$A:$A,Récapitulatif!$C$2,données!$E:$E,Récapitulatif!B27)-(SUMIFS(données!$G:$G,données!$A:$A,Récapitulatif!$C$2,données!$E:$E,Récapitulatif!B27))))","v":""},{"$f":"IF(SUMIFS(données!$F:$F,données!$A:$A,Récapitulatif!$D$2,données!$E:$E,Récapitulatif!B27)-(SUMIFS(données!$G:$G,données!$A:$A,Récapitulatif!$D$2,données!$E:$E,Récapitulatif!B27))=0,\"\",(SUMIFS(données!$F:$F,données!$A:$A,Récapitulatif!$D$2,données!$E:$E,Récapitulatif!B27)-(SUMIFS(données!$G:$G,données!$A:$A,Récapitulatif!$D$2,données!$E:$E,Récapitulatif!B27))))","v":""},{"$f":"IF(SUMIFS(données!$F:$F,données!$A:$A,Récapitulatif!$E$2,données!$E:$E,Récapitulatif!B27)-(SUMIFS(données!$G:$G,données!$A:$A,Récapitulatif!$E$2,données!$E:$E,Récapitulatif!B27))=0,\"\",(SUMIFS(données!$F:$F,données!$A:$A,Récapitulatif!$E$2,données!$E:$E,Récapitulatif!B27)-(SUMIFS(données!$G:$G,données!$A:$A,Récapitulatif!$E$2,données!$E:$E,Récapitulatif!B27))))","v":""},{"$f":"IF(SUMIFS(données!$F:$F,données!$A:$A,Récapitulatif!$F$2,données!$E:$E,Récapitulatif!B27)-(SUMIFS(données!$G:$G,données!$A:$A,Récapitulatif!$F$2,données!$E:$E,Récapitulatif!B27))=0,\"\",(SUMIFS(données!$F:$F,données!$A:$A,Récapitulatif!$F$2,données!$E:$E,Récapitulatif!B27)-(SUMIFS(données!$G:$G,données!$A:$A,Récapitulatif!$F$2,données!$E:$E,Récapitulatif!B27))))","v":""},{"$f":"IF(SUMIFS(données!$F:$F,données!$A:$A,Récapitulatif!$G$2,données!$E:$E,Récapitulatif!B27)-(SUMIFS(données!$G:$G,données!$A:$A,Récapitulatif!$G$2,données!$E:$E,Récapitulatif!B27))=0,\"\",(SUMIFS(données!$F:$F,données!$A:$A,Récapitulatif!$G$2,données!$E:$E,Récapitulatif!B27)-(SUMIFS(données!$G:$G,données!$A:$A,Récapitulatif!$G$2,données!$E:$E,Récapitulatif!B27))))","v":""},{"$f":"IF(SUMIFS(données!$F:$F,données!$A:$A,Récapitulatif!$H$2,données!$E:$E,Récapitulatif!B27)-(SUMIFS(données!$G:$G,données!$A:$A,Récapitulatif!$H$2,données!$E:$E,Récapitulatif!B27))=0,\"\",(SUMIFS(données!$F:$F,données!$A:$A,Récapitulatif!$H$2,données!$E:$E,Récapitulatif!B27)-(SUMIFS(données!$G:$G,données!$A:$A,Récapitulatif!$H$2,données!$E:$E,Récapitulatif!B27))))","v":""},{"$f":"IF(SUMIFS(données!$F:$F,données!$A:$A,Récapitulatif!$I$2,données!$E:$E,Récapitulatif!B27)-(SUMIFS(données!$G:$G,données!$A:$A,Récapitulatif!$I$2,données!$E:$E,Récapitulatif!B27))=0,\"\",(SUMIFS(données!$F:$F,données!$A:$A,Récapitulatif!$I$2,données!$E:$E,Récapitulatif!B27)-(SUMIFS(données!$G:$G,données!$A:$A,Récapitulatif!$I$2,données!$E:$E,Récapitulatif!B27))))","v":""},{"$f":"IF(SUMIFS(données!$F:$F,données!$A:$A,Récapitulatif!$J$2,données!$E:$E,Récapitulatif!B27)-(SUMIFS(données!$G:$G,données!$A:$A,Récapitulatif!$J$2,données!$E:$E,Récapitulatif!B27))=0,\"\",(SUMIFS(données!$F:$F,données!$A:$A,Récapitulatif!$J$2,données!$E:$E,Récapitulatif!B27)-(SUMIFS(données!$G:$G,données!$A:$A,Récapitulatif!$J$2,données!$E:$E,Récapitulatif!B27))))","v":""},{"$f":"IF(SUMIFS(données!$F:$F,données!$A:$A,Récapitulatif!$K$2,données!$E:$E,Récapitulatif!B27)-(SUMIFS(données!$G:$G,données!$A:$A,Récapitulatif!$K$2,données!$E:$E,Récapitulatif!B27))=0,\"\",(SUMIFS(données!$F:$F,données!$A:$A,Récapitulatif!$K$2,données!$E:$E,Récapitulatif!B27)-(SUMIFS(données!$G:$G,données!$A:$A,Récapitulatif!$K$2,données!$E:$E,Récapitulatif!B27))))","v":""},{"$f":"IF(SUMIFS(données!$F:$F,données!$A:$A,Récapitulatif!$L$2,données!$E:$E,Récapitulatif!B27)-(SUMIFS(données!$G:$G,données!$A:$A,Récapitulatif!$L$2,données!$E:$E,Récapitulatif!B27))=0,\"\",(SUMIFS(données!$F:$F,données!$A:$A,Récapitulatif!$L$2,données!$E:$E,Récapitulatif!B27)-(SUMIFS(données!$G:$G,données!$A:$A,Récapitulatif!$L$2,données!$E:$E,Récapitulatif!B27))))","v":""},{"$f":"IF(SUMIFS(données!$F:$F,données!$A:$A,Récapitulatif!$M$2,données!$E:$E,Récapitulatif!B27)-(SUMIFS(données!$G:$G,données!$A:$A,Récapitulatif!$M$2,données!$E:$E,Récapitulatif!B27))=0,\"\",(SUMIFS(données!$F:$F,données!$A:$A,Récapitulatif!$M$2,données!$E:$E,Récapitulatif!B27)-(SUMIFS(données!$G:$G,données!$A:$A,Récapitulatif!$M$2,données!$E:$E,Récapitulatif!B27))))","v":""},{"$f":"IF(SUMIFS(données!$F:$F,données!$A:$A,Récapitulatif!$N$2,données!$E:$E,Récapitulatif!B27)-(SUMIFS(données!$G:$G,données!$A:$A,Récapitulatif!$N$2,données!$E:$E,Récapitulatif!B27))=0,\"\",(SUMIFS(données!$F:$F,données!$A:$A,Récapitulatif!$N$2,données!$E:$E,Récapitulatif!B27)-(SUMIFS(données!$G:$G,données!$A:$A,Récapitulatif!$N$2,données!$E:$E,Récapitulatif!B27))))","v":""},""]
[null,"TDS",{"$f":"IF(SUMIFS(données!$F:$F,données!$A:$A,Récapitulatif!$C$2,données!$E:$E,Récapitulatif!B28)-(SUMIFS(données!$G:$G,données!$A:$A,Récapitulatif!$C$2,données!$E:$E,Récapitulatif!B28))=0,\"\",(SUMIFS(données!$F:$F,données!$A:$A,Récapitulatif!$C$2,données!$E:$E,Récapitulatif!B28)-(SUMIFS(données!$G:$G,données!$A:$A,Récapitulatif!$C$2,données!$E:$E,Récapitulatif!B28))))","v":""},{"$f":"IF(SUMIFS(données!$F:$F,données!$A:$A,Récapitulatif!$D$2,données!$E:$E,Récapitulatif!B28)-(SUMIFS(données!$G:$G,données!$A:$A,Récapitulatif!$D$2,données!$E:$E,Récapitulatif!B28))=0,\"\",(SUMIFS(données!$F:$F,données!$A:$A,Récapitulatif!$D$2,données!$E:$E,Récapitulatif!B28)-(SUMIFS(données!$G:$G,données!$A:$A,Récapitulatif!$D$2,données!$E:$E,Récapitulatif!B28))))","v":""},{"$f":"IF(SUMIFS(données!$F:$F,données!$A:$A,Récapitulatif!$E$2,données!$E:$E,Récapitulatif!B28)-(SUMIFS(données!$G:$G,données!$A:$A,Récapitulatif!$E$2,données!$E:$E,Récapitulatif!B28))=0,\"\",(SUMIFS(données!$F:$F,données!$A:$A,Récapitulatif!$E$2,données!$E:$E,Récapitulatif!B28)-(SUMIFS(données!$G:$G,données!$A:$A,Récapitulatif!$E$2,données!$E:$E,Récapitulatif!B28))))","v":""},{"$f":"IF(SUMIFS(données!$F:$F,données!$A:$A,Récapitulatif!$F$2,données!$E:$E,Récapitulatif!B28)-(SUMIFS(données!$G:$G,données!$A:$A,Récapitulatif!$F$2,données!$E:$E,Récapitulatif!B28))=0,\"\",(SUMIFS(données!$F:$F,données!$A:$A,Récapitulatif!$F$2,données!$E:$E,Récapitulatif!B28)-(SUMIFS(données!$G:$G,données!$A:$A,Récapitulatif!$F$2,données!$E:$E,Récapitulatif!B28))))","v":""},{"$f":"IF(SUMIFS(données!$F:$F,données!$A:$A,Récapitulatif!$G$2,données!$E:$E,Récapitulatif!B28)-(SUMIFS(données!$G:$G,données!$A:$A,Récapitulatif!$G$2,données!$E:$E,Récapitulatif!B28))=0,\"\",(SUMIFS(données!$F:$F,données!$A:$A,Récapitulatif!$G$2,données!$E:$E,Récapitulatif!B28)-(SUMIFS(données!$G:$G,données!$A:$A,Récapitulatif!$G$2,données!$E:$E,Récapitulatif!B28))))","v":""},{"$f":"IF(SUMIFS(données!$F:$F,données!$A:$A,Récapitulatif!$H$2,données!$E:$E,Récapitulatif!B28)-(SUMIFS(données!$G:$G,données!$A:$A,Récapitulatif!$H$2,données!$E:$E,Récapitulatif!B28))=0,\"\",(SUMIFS(données!$F:$F,données!$A:$A,Récapitulatif!$H$2,données!$E:$E,Récapitulatif!B28)-(SUMIFS(données!$G:$G,données!$A:$A,Récapitulatif!$H$2,données!$E:$E,Récapitulatif!B28))))","v":""},{"$f":"IF(SUMIFS(données!$F:$F,données!$A:$A,Récapitulatif!$I$2,données!$E:$E,Récapitulatif!B28)-(SUMIFS(données!$G:$G,données!$A:$A,Récapitulatif!$I$2,données!$E:$E,Récapitulatif!B28))=0,\"\",(SUMIFS(données!$F:$F,données!$A:$A,Récapitulatif!$I$2,données!$E:$E,Récapitulatif!B28)-(SUMIFS(données!$G:$G,données!$A:$A,Récapitulatif!$I$2,données!$E:$E,Récapitulatif!B28))))","v":""},{"$f":"IF(SUMIFS(données!$F:$F,données!$A:$A,Récapitulatif!$J$2,données!$E:$E,Récapitulatif!B28)-(SUMIFS(données!$G:$G,données!$A:$A,Récapitulatif!$J$2,données!$E:$E,Récapitulatif!B28))=0,\"\",(SUMIFS(données!$F:$F,données!$A:$A,Récapitulatif!$J$2,données!$E:$E,Récapitulatif!B28)-(SUMIFS(données!$G:$G,données!$A:$A,Récapitulatif!$J$2,données!$E:$E,Récapitulatif!B28))))","v":""},{"$f":"IF(SUMIFS(données!$F:$F,données!$A:$A,Récapitulatif!$K$2,données!$E:$E,Récapitulatif!B28)-(SUMIFS(données!$G:$G,données!$A:$A,Récapitulatif!$K$2,données!$E:$E,Récapitulatif!B28))=0,\"\",(SUMIFS(données!$F:$F,données!$A:$A,Récapitulatif!$K$2,données!$E:$E,Récapitulatif!B28)-(SUMIFS(données!$G:$G,données!$A:$A,Récapitulatif!$K$2,données!$E:$E,Récapitulatif!B28))))","v":""},{"$f":"IF(SUMIFS(données!$F:$F,données!$A:$A,Récapitulatif!$L$2,données!$E:$E,Récapitulatif!B28)-(SUMIFS(données!$G:$G,données!$A:$A,Récapitulatif!$L$2,données!$E:$E,Récapitulatif!B28))=0,\"\",(SUMIFS(données!$F:$F,données!$A:$A,Récapitulatif!$L$2,données!$E:$E,Récapitulatif!B28)-(SUMIFS(données!$G:$G,données!$A:$A,Récapitulatif!$L$2,données!$E:$E,Récapitulatif!B28))))","v":""},{"$f":"IF(SUMIFS(données!$F:$F,données!$A:$A,Récapitulatif!$M$2,données!$E:$E,Récapitulatif!B28)-(SUMIFS(données!$G:$G,données!$A:$A,Récapitulatif!$M$2,données!$E:$E,Récapitulatif!B28))=0,\"\",(SUMIFS(données!$F:$F,données!$A:$A,Récapitulatif!$M$2,données!$E:$E,Récapitulatif!B28)-(SUMIFS(données!$G:$G,données!$A:$A,Récapitulatif!$M$2,données!$E:$E,Récapitulatif!B28))))","v":""},{"$f":"IF(SUMIFS(données!$F:$F,données!$A:$A,Récapitulatif!$N$2,données!$E:$E,Récapitulatif!B28)-(SUMIFS(données!$G:$G,données!$A:$A,Récapitulatif!$N$2,données!$E:$E,Récapitulatif!B28))=0,\"\",(SUMIFS(données!$F:$F,données!$A:$A,Récapitulatif!$N$2,données!$E:$E,Récapitulatif!B28)-(SUMIFS(données!$G:$G,données!$A:$A,Récapitulatif!$N$2,données!$E:$E,Récapitulatif!B28))))","v":""},""]
[null,"TEL",{"$f":"IF(SUMIFS(données!$F:$F,données!$A:$A,Récapitulatif!$C$2,données!$E:$E,Récapitulatif!B29)-(SUMIFS(données!$G:$G,données!$A:$A,Récapitulatif!$C$2,données!$E:$E,Récapitulatif!B29))=0,\"\",(SUMIFS(données!$F:$F,données!$A:$A,Récapitulatif!$C$2,données!$E:$E,Récapitulatif!B29)-(SUMIFS(données!$G:$G,données!$A:$A,Récapitulatif!$C$2,données!$E:$E,Récapitulatif!B29))))","v":""},{"$f":"IF(SUMIFS(données!$F:$F,données!$A:$A,Récapitulatif!$D$2,données!$E:$E,Récapitulatif!B29)-(SUMIFS(données!$G:$G,données!$A:$A,Récapitulatif!$D$2,données!$E:$E,Récapitulatif!B29))=0,\"\",(SUMIFS(données!$F:$F,données!$A:$A,Récapitulatif!$D$2,données!$E:$E,Récapitulatif!B29)-(SUMIFS(données!$G:$G,données!$A:$A,Récapitulatif!$D$2,données!$E:$E,Récapitulatif!B29))))","v":""},{"$f":"IF(SUMIFS(données!$F:$F,données!$A:$A,Récapitulatif!$E$2,données!$E:$E,Récapitulatif!B29)-(SUMIFS(données!$G:$G,données!$A:$A,Récapitulatif!$E$2,données!$E:$E,Récapitulatif!B29))=0,\"\",(SUMIFS(données!$F:$F,données!$A:$A,Récapitulatif!$E$2,données!$E:$E,Récapitulatif!B29)-(SUMIFS(données!$G:$G,données!$A:$A,Récapitulatif!$E$2,données!$E:$E,Récapitulatif!B29))))","v":""},{"$f":"IF(SUMIFS(données!$F:$F,données!$A:$A,Récapitulatif!$F$2,données!$E:$E,Récapitulatif!B29)-(SUMIFS(données!$G:$G,données!$A:$A,Récapitulatif!$F$2,données!$E:$E,Récapitulatif!B29))=0,\"\",(SUMIFS(données!$F:$F,données!$A:$A,Récapitulatif!$F$2,données!$E:$E,Récapitulatif!B29)-(SUMIFS(données!$G:$G,données!$A:$A,Récapitulatif!$F$2,données!$E:$E,Récapitulatif!B29))))","v":3},{"$f":"IF(SUMIFS(données!$F:$F,données!$A:$A,Récapitulatif!$G$2,données!$E:$E,Récapitulatif!B29)-(SUMIFS(données!$G:$G,données!$A:$A,Récapitulatif!$G$2,données!$E:$E,Récapitulatif!B29))=0,\"\",(SUMIFS(données!$F:$F,données!$A:$A,Récapitulatif!$G$2,données!$E:$E,Récapitulatif!B29)-(SUMIFS(données!$G:$G,données!$A:$A,Récapitulatif!$G$2,données!$E:$E,Récapitulatif!B29))))","v":""},{"$f":"IF(SUMIFS(données!$F:$F,données!$A:$A,Récapitulatif!$H$2,données!$E:$E,Récapitulatif!B29)-(SUMIFS(données!$G:$G,données!$A:$A,Récapitulatif!$H$2,données!$E:$E,Récapitulatif!B29))=0,\"\",(SUMIFS(données!$F:$F,données!$A:$A,Récapitulatif!$H$2,données!$E:$E,Récapitulatif!B29)-(SUMIFS(données!$G:$G,données!$A:$A,Récapitulatif!$H$2,données!$E:$E,Récapitulatif!B29))))","v":""},{"$f":"IF(SUMIFS(données!$F:$F,données!$A:$A,Récapitulatif!$I$2,données!$E:$E,Récapitulatif!B29)-(SUMIFS(données!$G:$G,données!$A:$A,Récapitulatif!$I$2,données!$E:$E,Récapitulatif!B29))=0,\"\",(SUMIFS(données!$F:$F,données!$A:$A,Récapitulatif!$I$2,données!$E:$E,Récapitulatif!B29)-(SUMIFS(données!$G:$G,données!$A:$A,Récapitulatif!$I$2,données!$E:$E,Récapitulatif!B29))))","v":""},{"$f":"IF(SUMIFS(données!$F:$F,données!$A:$A,Récapitulatif!$J$2,données!$E:$E,Récapitulatif!B29)-(SUMIFS(données!$G:$G,données!$A:$A,Récapitulatif!$J$2,données!$E:$E,Récapitulatif!B29))=0,\"\",(SUMIFS(données!$F:$F,données!$A:$A,Récapitulatif!$J$2,données!$E:$E,Récapitulatif!B29)-(SUMIFS(données!$G:$G,données!$A:$A,Récapitulatif!$J$2,données!$E:$E,Récapitulatif!B29))))","v":""},{"$f":"IF(SUMIFS(données!$F:$F,données!$A:$A,Récapitulatif!$K$2,données!$E:$E,Récapitulatif!B29)-(SUMIFS(données!$G:$G,données!$A:$A,Récapitulatif!$K$2,données!$E:$E,Récapitulatif!B29))=0,\"\",(SUMIFS(données!$F:$F,données!$A:$A,Récapitulatif!$K$2,données!$E:$E,Récapitulatif!B29)-(SUMIFS(données!$G:$G,données!$A:$A,Récapitulatif!$K$2,données!$E:$E,Récapitulatif!B29))))","v":""},{"$f":"IF(SUMIFS(données!$F:$F,données!$A:$A,Récapitulatif!$L$2,données!$E:$E,Récapitulatif!B29)-(SUMIFS(données!$G:$G,données!$A:$A,Récapitulatif!$L$2,données!$E:$E,Récapitulatif!B29))=0,\"\",(SUMIFS(données!$F:$F,données!$A:$A,Récapitulatif!$L$2,données!$E:$E,Récapitulatif!B29)-(SUMIFS(données!$G:$G,données!$A:$A,Récapitulatif!$L$2,données!$E:$E,Récapitulatif!B29))))","v":""},{"$f":"IF(SUMIFS(données!$F:$F,données!$A:$A,Récapitulatif!$M$2,données!$E:$E,Récapitulatif!B29)-(SUMIFS(données!$G:$G,données!$A:$A,Récapitulatif!$M$2,données!$E:$E,Récapitulatif!B29))=0,\"\",(SUMIFS(données!$F:$F,données!$A:$A,Récapitulatif!$M$2,données!$E:$E,Récapitulatif!B29)-(SUMIFS(données!$G:$G,données!$A:$A,Récapitulatif!$M$2,données!$E:$E,Récapitulatif!B29))))","v":""},{"$f":"IF(SUMIFS(données!$F:$F,données!$A:$A,Récapitulatif!$N$2,données!$E:$E,Récapitulatif!B29)-(SUMIFS(données!$G:$G,données!$A:$A,Récapitulatif!$N$2,données!$E:$E,Récapitulatif!B29))=0,\"\",(SUMIFS(données!$F:$F,données!$A:$A,Récapitulatif!$N$2,données!$E:$E,Récapitulatif!B29)-(SUMIFS(données!$G:$G,données!$A:$A,Récapitulatif!$N$2,données!$E:$E,Récapitulatif!B29))))","v":""},3]
[null,"TMF34",{"$f":"IF(SUMIFS(données!$F:$F,données!$A:$A,Récapitulatif!$C$2,données!$E:$E,Récapitulatif!B30)-(SUMIFS(données!$G:$G,données!$A:$A,Récapitulatif!$C$2,données!$E:$E,Récapitulatif!B30))=0,\"\",(SUMIFS(données!$F:$F,données!$A:$A,Récapitulatif!$C$2,données!$E:$E,Récapitulatif!B30)-(SUMIFS(données!$G:$G,données!$A:$A,Récapitulatif!$C$2,données!$E:$E,Récapitulatif!B30))))","v":""},{"$f":"IF(SUMIFS(données!$F:$F,données!$A:$A,Récapitulatif!$D$2,données!$E:$E,Récapitulatif!B30)-(SUMIFS(données!$G:$G,données!$A:$A,Récapitulatif!$D$2,données!$E:$E,Récapitulatif!B30))=0,\"\",(SUMIFS(données!$F:$F,données!$A:$A,Récapitulatif!$D$2,données!$E:$E,Récapitulatif!B30)-(SUMIFS(données!$G:$G,données!$A:$A,Récapitulatif!$D$2,données!$E:$E,Récapitulatif!B30))))","v":""},{"$f":"IF(SUMIFS(données!$F:$F,données!$A:$A,Récapitulatif!$E$2,données!$E:$E,Récapitulatif!B30)-(SUMIFS(données!$G:$G,données!$A:$A,Récapitulatif!$E$2,données!$E:$E,Récapitulatif!B30))=0,\"\",(SUMIFS(données!$F:$F,données!$A:$A,Récapitulatif!$E$2,données!$E:$E,Récapitulatif!B30)-(SUMIFS(données!$G:$G,données!$A:$A,Récapitulatif!$E$2,données!$E:$E,Récapitulatif!B30))))","v":""},{"$f":"IF(SUMIFS(données!$F:$F,données!$A:$A,Récapitulatif!$F$2,données!$E:$E,Récapitulatif!B30)-(SUMIFS(données!$G:$G,données!$A:$A,Récapitulatif!$F$2,données!$E:$E,Récapitulatif!B30))=0,\"\",(SUMIFS(données!$F:$F,données!$A:$A,Récapitulatif!$F$2,données!$E:$E,Récapitulatif!B30)-(SUMIFS(données!$G:$G,données!$A:$A,Récapitulatif!$F$2,données!$E:$E,Récapitulatif!B30))))","v":""},{"$f":"IF(SUMIFS(données!$F:$F,données!$A:$A,Récapitulatif!$G$2,données!$E:$E,Récapitulatif!B30)-(SUMIFS(données!$G:$G,données!$A:$A,Récapitulatif!$G$2,données!$E:$E,Récapitulatif!B30))=0,\"\",(SUMIFS(données!$F:$F,données!$A:$A,Récapitulatif!$G$2,données!$E:$E,Récapitulatif!B30)-(SUMIFS(données!$G:$G,données!$A:$A,Récapitulatif!$G$2,données!$E:$E,Récapitulatif!B30))))","v":""},{"$f":"IF(SUMIFS(données!$F:$F,données!$A:$A,Récapitulatif!$H$2,données!$E:$E,Récapitulatif!B30)-(SUMIFS(données!$G:$G,données!$A:$A,Récapitulatif!$H$2,données!$E:$E,Récapitulatif!B30))=0,\"\",(SUMIFS(données!$F:$F,données!$A:$A,Récapitulatif!$H$2,données!$E:$E,Récapitulatif!B30)-(SUMIFS(données!$G:$G,données!$A:$A,Récapitulatif!$H$2,données!$E:$E,Récapitulatif!B30))))","v":""},{"$f":"IF(SUMIFS(données!$F:$F,données!$A:$A,Récapitulatif!$I$2,données!$E:$E,Récapitulatif!B30)-(SUMIFS(données!$G:$G,données!$A:$A,Récapitulatif!$I$2,données!$E:$E,Récapitulatif!B30))=0,\"\",(SUMIFS(données!$F:$F,données!$A:$A,Récapitulatif!$I$2,données!$E:$E,Récapitulatif!B30)-(SUMIFS(données!$G:$G,données!$A:$A,Récapitulatif!$I$2,données!$E:$E,Récapitulatif!B30))))","v":""},{"$f":"IF(SUMIFS(données!$F:$F,données!$A:$A,Récapitulatif!$J$2,données!$E:$E,Récapitulatif!B30)-(SUMIFS(données!$G:$G,données!$A:$A,Récapitulatif!$J$2,données!$E:$E,Récapitulatif!B30))=0,\"\",(SUMIFS(données!$F:$F,données!$A:$A,Récapitulatif!$J$2,données!$E:$E,Récapitulatif!B30)-(SUMIFS(données!$G:$G,données!$A:$A,Récapitulatif!$J$2,données!$E:$E,Récapitulatif!B30))))","v":""},{"$f":"IF(SUMIFS(données!$F:$F,données!$A:$A,Récapitulatif!$K$2,données!$E:$E,Récapitulatif!B30)-(SUMIFS(données!$G:$G,données!$A:$A,Récapitulatif!$K$2,données!$E:$E,Récapitulatif!B30))=0,\"\",(SUMIFS(données!$F:$F,données!$A:$A,Récapitulatif!$K$2,données!$E:$E,Récapitulatif!B30)-(SUMIFS(données!$G:$G,données!$A:$A,Récapitulatif!$K$2,données!$E:$E,Récapitulatif!B30))))","v":""},{"$f":"IF(SUMIFS(données!$F:$F,données!$A:$A,Récapitulatif!$L$2,données!$E:$E,Récapitulatif!B30)-(SUMIFS(données!$G:$G,données!$A:$A,Récapitulatif!$L$2,données!$E:$E,Récapitulatif!B30))=0,\"\",(SUMIFS(données!$F:$F,données!$A:$A,Récapitulatif!$L$2,données!$E:$E,Récapitulatif!B30)-(SUMIFS(données!$G:$G,données!$A:$A,Récapitulatif!$L$2,données!$E:$E,Récapitulatif!B30))))","v":""},{"$f":"IF(SUMIFS(données!$F:$F,données!$A:$A,Récapitulatif!$M$2,données!$E:$E,Récapitulatif!B30)-(SUMIFS(données!$G:$G,données!$A:$A,Récapitulatif!$M$2,données!$E:$E,Récapitulatif!B30))=0,\"\",(SUMIFS(données!$F:$F,données!$A:$A,Récapitulatif!$M$2,données!$E:$E,Récapitulatif!B30)-(SUMIFS(données!$G:$G,données!$A:$A,Récapitulatif!$M$2,données!$E:$E,Récapitulatif!B30))))","v":""},{"$f":"IF(SUMIFS(données!$F:$F,données!$A:$A,Récapitulatif!$N$2,données!$E:$E,Récapitulatif!B30)-(SUMIFS(données!$G:$G,données!$A:$A,Récapitulatif!$N$2,données!$E:$E,Récapitulatif!B30))=0,\"\",(SUMIFS(données!$F:$F,données!$A:$A,Récapitulatif!$N$2,données!$E:$E,Récapitulatif!B30)-(SUMIFS(données!$G:$G,données!$A:$A,Récapitulatif!$N$2,données!$E:$E,Récapitulatif!B30))))","v":""},""]
[null,"TMF47",{"$f":"IF(SUMIFS(données!$F:$F,données!$A:$A,Récapitulatif!$C$2,données!$E:$E,Récapitulatif!B31)-(SUMIFS(données!$G:$G,données!$A:$A,Récapitulatif!$C$2,données!$E:$E,Récapitulatif!B31))=0,\"\",(SUMIFS(données!$F:$F,données!$A:$A,Récapitulatif!$C$2,données!$E:$E,Récapitulatif!B31)-(SUMIFS(données!$G:$G,données!$A:$A,Récapitulatif!$C$2,données!$E:$E,Récapitulatif!B31))))","v":""},{"$f":"IF(SUMIFS(données!$F:$F,données!$A:$A,Récapitulatif!$D$2,données!$E:$E,Récapitulatif!B31)-(SUMIFS(données!$G:$G,données!$A:$A,Récapitulatif!$D$2,données!$E:$E,Récapitulatif!B31))=0,\"\",(SUMIFS(données!$F:$F,données!$A:$A,Récapitulatif!$D$2,données!$E:$E,Récapitulatif!B31)-(SUMIFS(données!$G:$G,données!$A:$A,Récapitulatif!$D$2,données!$E:$E,Récapitulatif!B31))))","v":""},{"$f":"IF(SUMIFS(données!$F:$F,données!$A:$A,Récapitulatif!$E$2,données!$E:$E,Récapitulatif!B31)-(SUMIFS(données!$G:$G,données!$A:$A,Récapitulatif!$E$2,données!$E:$E,Récapitulatif!B31))=0,\"\",(SUMIFS(données!$F:$F,données!$A:$A,Récapitulatif!$E$2,données!$E:$E,Récapitulatif!B31)-(SUMIFS(données!$G:$G,données!$A:$A,Récapitulatif!$E$2,données!$E:$E,Récapitulatif!B31))))","v":""},{"$f":"IF(SUMIFS(données!$F:$F,données!$A:$A,Récapitulatif!$F$2,données!$E:$E,Récapitulatif!B31)-(SUMIFS(données!$G:$G,données!$A:$A,Récapitulatif!$F$2,données!$E:$E,Récapitulatif!B31))=0,\"\",(SUMIFS(données!$F:$F,données!$A:$A,Récapitulatif!$F$2,données!$E:$E,Récapitulatif!B31)-(SUMIFS(données!$G:$G,données!$A:$A,Récapitulatif!$F$2,données!$E:$E,Récapitulatif!B31))))","v":""},{"$f":"IF(SUMIFS(données!$F:$F,données!$A:$A,Récapitulatif!$G$2,données!$E:$E,Récapitulatif!B31)-(SUMIFS(données!$G:$G,données!$A:$A,Récapitulatif!$G$2,données!$E:$E,Récapitulatif!B31))=0,\"\",(SUMIFS(données!$F:$F,données!$A:$A,Récapitulatif!$G$2,données!$E:$E,Récapitulatif!B31)-(SUMIFS(données!$G:$G,données!$A:$A,Récapitulatif!$G$2,données!$E:$E,Récapitulatif!B31))))","v":""},{"$f":"IF(SUMIFS(données!$F:$F,données!$A:$A,Récapitulatif!$H$2,données!$E:$E,Récapitulatif!B31)-(SUMIFS(données!$G:$G,données!$A:$A,Récapitulatif!$H$2,données!$E:$E,Récapitulatif!B31))=0,\"\",(SUMIFS(données!$F:$F,données!$A:$A,Récapitulatif!$H$2,données!$E:$E,Récapitulatif!B31)-(SUMIFS(données!$G:$G,données!$A:$A,Récapitulatif!$H$2,données!$E:$E,Récapitulatif!B31))))","v":""},{"$f":"IF(SUMIFS(données!$F:$F,données!$A:$A,Récapitulatif!$I$2,données!$E:$E,Récapitulatif!B31)-(SUMIFS(données!$G:$G,données!$A:$A,Récapitulatif!$I$2,données!$E:$E,Récapitulatif!B31))=0,\"\",(SUMIFS(données!$F:$F,données!$A:$A,Récapitulatif!$I$2,données!$E:$E,Récapitulatif!B31)-(SUMIFS(données!$G:$G,données!$A:$A,Récapitulatif!$I$2,données!$E:$E,Récapitulatif!B31))))","v":""},{"$f":"IF(SUMIFS(données!$F:$F,données!$A:$A,Récapitulatif!$J$2,données!$E:$E,Récapitulatif!B31)-(SUMIFS(données!$G:$G,données!$A:$A,Récapitulatif!$J$2,données!$E:$E,Récapitulatif!B31))=0,\"\",(SUMIFS(données!$F:$F,données!$A:$A,Récapitulatif!$J$2,données!$E:$E,Récapitulatif!B31)-(SUMIFS(données!$G:$G,données!$A:$A,Récapitulatif!$J$2,données!$E:$E,Récapitulatif!B31))))","v":""},{"$f":"IF(SUMIFS(données!$F:$F,données!$A:$A,Récapitulatif!$K$2,données!$E:$E,Récapitulatif!B31)-(SUMIFS(données!$G:$G,données!$A:$A,Récapitulatif!$K$2,données!$E:$E,Récapitulatif!B31))=0,\"\",(SUMIFS(données!$F:$F,données!$A:$A,Récapitulatif!$K$2,données!$E:$E,Récapitulatif!B31)-(SUMIFS(données!$G:$G,données!$A:$A,Récapitulatif!$K$2,données!$E:$E,Récapitulatif!B31))))","v":""},{"$f":"IF(SUMIFS(données!$F:$F,données!$A:$A,Récapitulatif!$L$2,données!$E:$E,Récapitulatif!B31)-(SUMIFS(données!$G:$G,données!$A:$A,Récapitulatif!$L$2,données!$E:$E,Récapitulatif!B31))=0,\"\",(SUMIFS(données!$F:$F,données!$A:$A,Récapitulatif!$L$2,données!$E:$E,Récapitulatif!B31)-(SUMIFS(données!$G:$G,données!$A:$A,Récapitulatif!$L$2,données!$E:$E,Récapitulatif!B31))))","v":""},{"$f":"IF(SUMIFS(données!$F:$F,données!$A:$A,Récapitulatif!$M$2,données!$E:$E,Récapitulatif!B31)-(SUMIFS(données!$G:$G,données!$A:$A,Récapitulatif!$M$2,données!$E:$E,Récapitulatif!B31))=0,\"\",(SUMIFS(données!$F:$F,données!$A:$A,Récapitulatif!$M$2,données!$E:$E,Récapitulatif!B31)-(SUMIFS(données!$G:$G,données!$A:$A,Récapitulatif!$M$2,données!$E:$E,Récapitulatif!B31))))","v":""},{"$f":"IF(SUMIFS(données!$F:$F,données!$A:$A,Récapitulatif!$N$2,données!$E:$E,Récapitulatif!B31)-(SUMIFS(données!$G:$G,données!$A:$A,Récapitulatif!$N$2,données!$E:$E,Récapitulatif!B31))=0,\"\",(SUMIFS(données!$F:$F,données!$A:$A,Récapitulatif!$N$2,données!$E:$E,Récapitulatif!B31)-(SUMIFS(données!$G:$G,données!$A:$A,Récapitulatif!$N$2,données!$E:$E,Récapitulatif!B31))))","v":""},""]
[null,"TRANSCN",{"$f":"IF(SUMIFS(données!$F:$F,données!$A:$A,Récapitulatif!$C$2,données!$E:$E,Récapitulatif!B32)-(SUMIFS(données!$G:$G,données!$A:$A,Récapitulatif!$C$2,données!$E:$E,Récapitulatif!B32))=0,\"\",(SUMIFS(données!$F:$F,données!$A:$A,Récapitulatif!$C$2,données!$E:$E,Récapitulatif!B32)-(SUMIFS(données!$G:$G,données!$A:$A,Récapitulatif!$C$2,données!$E:$E,Récapitulatif!B32))))","v":""},{"$f":"IF(SUMIFS(données!$F:$F,données!$A:$A,Récapitulatif!$D$2,données!$E:$E,Récapitulatif!B32)-(SUMIFS(données!$G:$G,données!$A:$A,Récapitulatif!$D$2,données!$E:$E,Récapitulatif!B32))=0,\"\",(SUMIFS(données!$F:$F,données!$A:$A,Récapitulatif!$D$2,données!$E:$E,Récapitulatif!B32)-(SUMIFS(données!$G:$G,données!$A:$A,Récapitulatif!$D$2,données!$E:$E,Récapitulatif!B32))))","v":""},{"$f":"IF(SUMIFS(données!$F:$F,données!$A:$A,Récapitulatif!$E$2,données!$E:$E,Récapitulatif!B32)-(SUMIFS(données!$G:$G,données!$A:$A,Récapitulatif!$E$2,données!$E:$E,Récapitulatif!B32))=0,\"\",(SUMIFS(données!$F:$F,données!$A:$A,Récapitulatif!$E$2,données!$E:$E,Récapitulatif!B32)-(SUMIFS(données!$G:$G,données!$A:$A,Récapitulatif!$E$2,données!$E:$E,Récapitulatif!B32))))","v":""},{"$f":"IF(SUMIFS(données!$F:$F,données!$A:$A,Récapitulatif!$F$2,données!$E:$E,Récapitulatif!B32)-(SUMIFS(données!$G:$G,données!$A:$A,Récapitulatif!$F$2,données!$E:$E,Récapitulatif!B32))=0,\"\",(SUMIFS(données!$F:$F,données!$A:$A,Récapitulatif!$F$2,données!$E:$E,Récapitulatif!B32)-(SUMIFS(données!$G:$G,données!$A:$A,Récapitulatif!$F$2,données!$E:$E,Récapitulatif!B32))))","v":""},{"$f":"IF(SUMIFS(données!$F:$F,données!$A:$A,Récapitulatif!$G$2,données!$E:$E,Récapitulatif!B32)-(SUMIFS(données!$G:$G,données!$A:$A,Récapitulatif!$G$2,données!$E:$E,Récapitulatif!B32))=0,\"\",(SUMIFS(données!$F:$F,données!$A:$A,Récapitulatif!$G$2,données!$E:$E,Récapitulatif!B32)-(SUMIFS(données!$G:$G,données!$A:$A,Récapitulatif!$G$2,données!$E:$E,Récapitulatif!B32))))","v":""},{"$f":"IF(SUMIFS(données!$F:$F,données!$A:$A,Récapitulatif!$H$2,données!$E:$E,Récapitulatif!B32)-(SUMIFS(données!$G:$G,données!$A:$A,Récapitulatif!$H$2,données!$E:$E,Récapitulatif!B32))=0,\"\",(SUMIFS(données!$F:$F,données!$A:$A,Récapitulatif!$H$2,données!$E:$E,Récapitulatif!B32)-(SUMIFS(données!$G:$G,données!$A:$A,Récapitulatif!$H$2,données!$E:$E,Récapitulatif!B32))))","v":""},{"$f":"IF(SUMIFS(données!$F:$F,données!$A:$A,Récapitulatif!$I$2,données!$E:$E,Récapitulatif!B32)-(SUMIFS(données!$G:$G,données!$A:$A,Récapitulatif!$I$2,données!$E:$E,Récapitulatif!B32))=0,\"\",(SUMIFS(données!$F:$F,données!$A:$A,Récapitulatif!$I$2,données!$E:$E,Récapitulatif!B32)-(SUMIFS(données!$G:$G,données!$A:$A,Récapitulatif!$I$2,données!$E:$E,Récapitulatif!B32))))","v":""},{"$f":"IF(SUMIFS(données!$F:$F,données!$A:$A,Récapitulatif!$J$2,données!$E:$E,Récapitulatif!B32)-(SUMIFS(données!$G:$G,données!$A:$A,Récapitulatif!$J$2,données!$E:$E,Récapitulatif!B32))=0,\"\",(SUMIFS(données!$F:$F,données!$A:$A,Récapitulatif!$J$2,données!$E:$E,Récapitulatif!B32)-(SUMIFS(données!$G:$G,données!$A:$A,Récapitulatif!$J$2,données!$E:$E,Récapitulatif!B32))))","v":""},{"$f":"IF(SUMIFS(données!$F:$F,données!$A:$A,Récapitulatif!$K$2,données!$E:$E,Récapitulatif!B32)-(SUMIFS(données!$G:$G,données!$A:$A,Récapitulatif!$K$2,données!$E:$E,Récapitulatif!B32))=0,\"\",(SUMIFS(données!$F:$F,données!$A:$A,Récapitulatif!$K$2,données!$E:$E,Récapitulatif!B32)-(SUMIFS(données!$G:$G,données!$A:$A,Récapitulatif!$K$2,données!$E:$E,Récapitulatif!B32))))","v":""},{"$f":"IF(SUMIFS(données!$F:$F,données!$A:$A,Récapitulatif!$L$2,données!$E:$E,Récapitulatif!B32)-(SUMIFS(données!$G:$G,données!$A:$A,Récapitulatif!$L$2,données!$E:$E,Récapitulatif!B32))=0,\"\",(SUMIFS(données!$F:$F,données!$A:$A,Récapitulatif!$L$2,données!$E:$E,Récapitulatif!B32)-(SUMIFS(données!$G:$G,données!$A:$A,Récapitulatif!$L$2,données!$E:$E,Récapitulatif!B32))))","v":""},{"$f":"IF(SUMIFS(données!$F:$F,données!$A:$A,Récapitulatif!$M$2,données!$E:$E,Récapitulatif!B32)-(SUMIFS(données!$G:$G,données!$A:$A,Récapitulatif!$M$2,données!$E:$E,Récapitulatif!B32))=0,\"\",(SUMIFS(données!$F:$F,données!$A:$A,Récapitulatif!$M$2,données!$E:$E,Récapitulatif!B32)-(SUMIFS(données!$G:$G,données!$A:$A,Récapitulatif!$M$2,données!$E:$E,Récapitulatif!B32))))","v":""},{"$f":"IF(SUMIFS(données!$F:$F,données!$A:$A,Récapitulatif!$N$2,données!$E:$E,Récapitulatif!B32)-(SUMIFS(données!$G:$G,données!$A:$A,Récapitulatif!$N$2,données!$E:$E,Récapitulatif!B32))=0,\"\",(SUMIFS(données!$F:$F,données!$A:$A,Récapitulatif!$N$2,données!$E:$E,Récapitulatif!B32)-(SUMIFS(données!$G:$G,données!$A:$A,Récapitulatif!$N$2,données!$E:$E,Récapitulatif!B32))))","v":""},""]
[null,"TRANSOCCITAN",{"$f":"IF(SUMIFS(données!$F:$F,données!$A:$A,Récapitulatif!$C$2,données!$E:$E,Récapitulatif!B33)-(SUMIFS(données!$G:$G,données!$A:$A,Récapitulatif!$C$2,données!$E:$E,Récapitulatif!B33))=0,\"\",(SUMIFS(données!$F:$F,données!$A:$A,Récapitulatif!$C$2,données!$E:$E,Récapitulatif!B33)-(SUMIFS(données!$G:$G,données!$A:$A,Récapitulatif!$C$2,données!$E:$E,Récapitulatif!B33))))","v":""},{"$f":"IF(SUMIFS(données!$F:$F,données!$A:$A,Récapitulatif!$D$2,données!$E:$E,Récapitulatif!B33)-(SUMIFS(données!$G:$G,données!$A:$A,Récapitulatif!$D$2,données!$E:$E,Récapitulatif!B33))=0,\"\",(SUMIFS(données!$F:$F,données!$A:$A,Récapitulatif!$D$2,données!$E:$E,Récapitulatif!B33)-(SUMIFS(données!$G:$G,données!$A:$A,Récapitulatif!$D$2,données!$E:$E,Récapitulatif!B33))))","v":""},{"$f":"IF(SUMIFS(données!$F:$F,données!$A:$A,Récapitulatif!$E$2,données!$E:$E,Récapitulatif!B33)-(SUMIFS(données!$G:$G,données!$A:$A,Récapitulatif!$E$2,données!$E:$E,Récapitulatif!B33))=0,\"\",(SUMIFS(données!$F:$F,données!$A:$A,Récapitulatif!$E$2,données!$E:$E,Récapitulatif!B33)-(SUMIFS(données!$G:$G,données!$A:$A,Récapitulatif!$E$2,données!$E:$E,Récapitulatif!B33))))","v":""},{"$f":"IF(SUMIFS(données!$F:$F,données!$A:$A,Récapitulatif!$F$2,données!$E:$E,Récapitulatif!B33)-(SUMIFS(données!$G:$G,données!$A:$A,Récapitulatif!$F$2,données!$E:$E,Récapitulatif!B33))=0,\"\",(SUMIFS(données!$F:$F,données!$A:$A,Récapitulatif!$F$2,données!$E:$E,Récapitulatif!B33)-(SUMIFS(données!$G:$G,données!$A:$A,Récapitulatif!$F$2,données!$E:$E,Récapitulatif!B33))))","v":""},{"$f":"IF(SUMIFS(données!$F:$F,données!$A:$A,Récapitulatif!$G$2,données!$E:$E,Récapitulatif!B33)-(SUMIFS(données!$G:$G,données!$A:$A,Récapitulatif!$G$2,données!$E:$E,Récapitulatif!B33))=0,\"\",(SUMIFS(données!$F:$F,données!$A:$A,Récapitulatif!$G$2,données!$E:$E,Récapitulatif!B33)-(SUMIFS(données!$G:$G,données!$A:$A,Récapitulatif!$G$2,données!$E:$E,Récapitulatif!B33))))","v":""},{"$f":"IF(SUMIFS(données!$F:$F,données!$A:$A,Récapitulatif!$H$2,données!$E:$E,Récapitulatif!B33)-(SUMIFS(données!$G:$G,données!$A:$A,Récapitulatif!$H$2,données!$E:$E,Récapitulatif!B33))=0,\"\",(SUMIFS(données!$F:$F,données!$A:$A,Récapitulatif!$H$2,données!$E:$E,Récapitulatif!B33)-(SUMIFS(données!$G:$G,données!$A:$A,Récapitulatif!$H$2,données!$E:$E,Récapitulatif!B33))))","v":""},{"$f":"IF(SUMIFS(données!$F:$F,données!$A:$A,Récapitulatif!$I$2,données!$E:$E,Récapitulatif!B33)-(SUMIFS(données!$G:$G,données!$A:$A,Récapitulatif!$I$2,données!$E:$E,Récapitulatif!B33))=0,\"\",(SUMIFS(données!$F:$F,données!$A:$A,Récapitulatif!$I$2,données!$E:$E,Récapitulatif!B33)-(SUMIFS(données!$G:$G,données!$A:$A,Récapitulatif!$I$2,données!$E:$E,Récapitulatif!B33))))","v":""},{"$f":"IF(SUMIFS(données!$F:$F,données!$A:$A,Récapitulatif!$J$2,données!$E:$E,Récapitulatif!B33)-(SUMIFS(données!$G:$G,données!$A:$A,Récapitulatif!$J$2,données!$E:$E,Récapitulatif!B33))=0,\"\",(SUMIFS(données!$F:$F,données!$A:$A,Récapitulatif!$J$2,données!$E:$E,Récapitulatif!B33)-(SUMIFS(données!$G:$G,données!$A:$A,Récapitulatif!$J$2,données!$E:$E,Récapitulatif!B33))))","v":""},{"$f":"IF(SUMIFS(données!$F:$F,données!$A:$A,Récapitulatif!$K$2,données!$E:$E,Récapitulatif!B33)-(SUMIFS(données!$G:$G,données!$A:$A,Récapitulatif!$K$2,données!$E:$E,Récapitulatif!B33))=0,\"\",(SUMIFS(données!$F:$F,données!$A:$A,Récapitulatif!$K$2,données!$E:$E,Récapitulatif!B33)-(SUMIFS(données!$G:$G,données!$A:$A,Récapitulatif!$K$2,données!$E:$E,Récapitulatif!B33))))","v":""},{"$f":"IF(SUMIFS(données!$F:$F,données!$A:$A,Récapitulatif!$L$2,données!$E:$E,Récapitulatif!B33)-(SUMIFS(données!$G:$G,données!$A:$A,Récapitulatif!$L$2,données!$E:$E,Récapitulatif!B33))=0,\"\",(SUMIFS(données!$F:$F,données!$A:$A,Récapitulatif!$L$2,données!$E:$E,Récapitulatif!B33)-(SUMIFS(données!$G:$G,données!$A:$A,Récapitulatif!$L$2,données!$E:$E,Récapitulatif!B33))))","v":""},{"$f":"IF(SUMIFS(données!$F:$F,données!$A:$A,Récapitulatif!$M$2,données!$E:$E,Récapitulatif!B33)-(SUMIFS(données!$G:$G,données!$A:$A,Récapitulatif!$M$2,données!$E:$E,Récapitulatif!B33))=0,\"\",(SUMIFS(données!$F:$F,données!$A:$A,Récapitulatif!$M$2,données!$E:$E,Récapitulatif!B33)-(SUMIFS(données!$G:$G,données!$A:$A,Récapitulatif!$M$2,données!$E:$E,Récapitulatif!B33))))","v":""},{"$f":"IF(SUMIFS(données!$F:$F,données!$A:$A,Récapitulatif!$N$2,données!$E:$E,Récapitulatif!B33)-(SUMIFS(données!$G:$G,données!$A:$A,Récapitulatif!$N$2,données!$E:$E,Récapitulatif!B33))=0,\"\",(SUMIFS(données!$F:$F,données!$A:$A,Récapitulatif!$N$2,données!$E:$E,Récapitulatif!B33)-(SUMIFS(données!$G:$G,données!$A:$A,Récapitulatif!$N$2,données!$E:$E,Récapitulatif!B33))))","v":""},""]
[null,"TRESSERRAS",{"$f":"IF(SUMIFS(données!$F:$F,données!$A:$A,Récapitulatif!$C$2,données!$E:$E,Récapitulatif!B34)-(SUMIFS(données!$G:$G,données!$A:$A,Récapitulatif!$C$2,données!$E:$E,Récapitulatif!B34))=0,\"\",(SUMIFS(données!$F:$F,données!$A:$A,Récapitulatif!$C$2,données!$E:$E,Récapitulatif!B34)-(SUMIFS(données!$G:$G,données!$A:$A,Récapitulatif!$C$2,données!$E:$E,Récapitulatif!B34))))","v":""},{"$f":"IF(SUMIFS(données!$F:$F,données!$A:$A,Récapitulatif!$D$2,données!$E:$E,Récapitulatif!B34)-(SUMIFS(données!$G:$G,données!$A:$A,Récapitulatif!$D$2,données!$E:$E,Récapitulatif!B34))=0,\"\",(SUMIFS(données!$F:$F,données!$A:$A,Récapitulatif!$D$2,données!$E:$E,Récapitulatif!B34)-(SUMIFS(données!$G:$G,données!$A:$A,Récapitulatif!$D$2,données!$E:$E,Récapitulatif!B34))))","v":""},{"$f":"IF(SUMIFS(données!$F:$F,données!$A:$A,Récapitulatif!$E$2,données!$E:$E,Récapitulatif!B34)-(SUMIFS(données!$G:$G,données!$A:$A,Récapitulatif!$E$2,données!$E:$E,Récapitulatif!B34))=0,\"\",(SUMIFS(données!$F:$F,données!$A:$A,Récapitulatif!$E$2,données!$E:$E,Récapitulatif!B34)-(SUMIFS(données!$G:$G,données!$A:$A,Récapitulatif!$E$2,données!$E:$E,Récapitulatif!B34))))","v":""},{"$f":"IF(SUMIFS(données!$F:$F,données!$A:$A,Récapitulatif!$F$2,données!$E:$E,Récapitulatif!B34)-(SUMIFS(données!$G:$G,données!$A:$A,Récapitulatif!$F$2,données!$E:$E,Récapitulatif!B34))=0,\"\",(SUMIFS(données!$F:$F,données!$A:$A,Récapitulatif!$F$2,données!$E:$E,Récapitulatif!B34)-(SUMIFS(données!$G:$G,données!$A:$A,Récapitulatif!$F$2,données!$E:$E,Récapitulatif!B34))))","v":""},{"$f":"IF(SUMIFS(données!$F:$F,données!$A:$A,Récapitulatif!$G$2,données!$E:$E,Récapitulatif!B34)-(SUMIFS(données!$G:$G,données!$A:$A,Récapitulatif!$G$2,données!$E:$E,Récapitulatif!B34))=0,\"\",(SUMIFS(données!$F:$F,données!$A:$A,Récapitulatif!$G$2,données!$E:$E,Récapitulatif!B34)-(SUMIFS(données!$G:$G,données!$A:$A,Récapitulatif!$G$2,données!$E:$E,Récapitulatif!B34))))","v":""},{"$f":"IF(SUMIFS(données!$F:$F,données!$A:$A,Récapitulatif!$H$2,données!$E:$E,Récapitulatif!B34)-(SUMIFS(données!$G:$G,données!$A:$A,Récapitulatif!$H$2,données!$E:$E,Récapitulatif!B34))=0,\"\",(SUMIFS(données!$F:$F,données!$A:$A,Récapitulatif!$H$2,données!$E:$E,Récapitulatif!B34)-(SUMIFS(données!$G:$G,données!$A:$A,Récapitulatif!$H$2,données!$E:$E,Récapitulatif!B34))))","v":""},{"$f":"IF(SUMIFS(données!$F:$F,données!$A:$A,Récapitulatif!$I$2,données!$E:$E,Récapitulatif!B34)-(SUMIFS(données!$G:$G,données!$A:$A,Récapitulatif!$I$2,données!$E:$E,Récapitulatif!B34))=0,\"\",(SUMIFS(données!$F:$F,données!$A:$A,Récapitulatif!$I$2,données!$E:$E,Récapitulatif!B34)-(SUMIFS(données!$G:$G,données!$A:$A,Récapitulatif!$I$2,données!$E:$E,Récapitulatif!B34))))","v":""},{"$f":"IF(SUMIFS(données!$F:$F,données!$A:$A,Récapitulatif!$J$2,données!$E:$E,Récapitulatif!B34)-(SUMIFS(données!$G:$G,données!$A:$A,Récapitulatif!$J$2,données!$E:$E,Récapitulatif!B34))=0,\"\",(SUMIFS(données!$F:$F,données!$A:$A,Récapitulatif!$J$2,données!$E:$E,Récapitulatif!B34)-(SUMIFS(données!$G:$G,données!$A:$A,Récapitulatif!$J$2,données!$E:$E,Récapitulatif!B34))))","v":""},{"$f":"IF(SUMIFS(données!$F:$F,données!$A:$A,Récapitulatif!$K$2,données!$E:$E,Récapitulatif!B34)-(SUMIFS(données!$G:$G,données!$A:$A,Récapitulatif!$K$2,données!$E:$E,Récapitulatif!B34))=0,\"\",(SUMIFS(données!$F:$F,données!$A:$A,Récapitulatif!$K$2,données!$E:$E,Récapitulatif!B34)-(SUMIFS(données!$G:$G,données!$A:$A,Récapitulatif!$K$2,données!$E:$E,Récapitulatif!B34))))","v":""},{"$f":"IF(SUMIFS(données!$F:$F,données!$A:$A,Récapitulatif!$L$2,données!$E:$E,Récapitulatif!B34)-(SUMIFS(données!$G:$G,données!$A:$A,Récapitulatif!$L$2,données!$E:$E,Récapitulatif!B34))=0,\"\",(SUMIFS(données!$F:$F,données!$A:$A,Récapitulatif!$L$2,données!$E:$E,Récapitulatif!B34)-(SUMIFS(données!$G:$G,données!$A:$A,Récapitulatif!$L$2,données!$E:$E,Récapitulatif!B34))))","v":""},{"$f":"IF(SUMIFS(données!$F:$F,données!$A:$A,Récapitulatif!$M$2,données!$E:$E,Récapitulatif!B34)-(SUMIFS(données!$G:$G,données!$A:$A,Récapitulatif!$M$2,données!$E:$E,Récapitulatif!B34))=0,\"\",(SUMIFS(données!$F:$F,données!$A:$A,Récapitulatif!$M$2,données!$E:$E,Récapitulatif!B34)-(SUMIFS(données!$G:$G,données!$A:$A,Récapitulatif!$M$2,données!$E:$E,Récapitulatif!B34))))","v":""},{"$f":"IF(SUMIFS(données!$F:$F,données!$A:$A,Récapitulatif!$N$2,données!$E:$E,Récapitulatif!B34)-(SUMIFS(données!$G:$G,données!$A:$A,Récapitulatif!$N$2,données!$E:$E,Récapitulatif!B34))=0,\"\",(SUMIFS(données!$F:$F,données!$A:$A,Récapitulatif!$N$2,données!$E:$E,Récapitulatif!B34)-(SUMIFS(données!$G:$G,données!$A:$A,Récapitulatif!$N$2,données!$E:$E,Récapitulatif!B34))))","v":""},""]
[null,"Total",{"$f":"SUM(C3:C34)","v":0},{"$f":"SUM(D3:D34)","v":-2},{"$f":"SUM(E3:E34)","v":0},3,0,0,0,0,0,0,0,0]